Supplier Name,Transaction Number, Paid Date, Paid Amount, Department,Costcentre,Description,Irrecoverable VAT
1 CALL BUSINESS SOLUTIONS LIMITED,1943976,20-Nov-19,42.00,Adult Care & Health ,P4201,"Equipment, Furniture & Materials",
1 CALL BUSINESS SOLUTIONS LIMITED,1943976,20-Nov-19,114.00,Delivery Services (Assistant Chief Executive) ,D2620,"Equipment, Furniture & Materials",
1 CALL BUSINESS SOLUTIONS LIMITED,1943976,20-Nov-19,78.00,Delivery Services (Assistant Chief Executive) ,T4020,"Equipment, Furniture & Materials",
1 CALL BUSINESS SOLUTIONS LIMITED,1944225,21-Nov-19,78.00,Delivery Services (Assistant Chief Executive) ,D2402,"Equipment, Furniture & Materials",
1 CALL BUSINESS SOLUTIONS LIMITED,1944225,21-Nov-19,114.00,Delivery Services (Assistant Chief Executive) ,D2710,"Equipment, Furniture & Materials",
1 CALL BUSINESS SOLUTIONS LIMITED,1944225,21-Nov-19,60.00,Delivery Services (Assistant Chief Executive) ,L3970,"Equipment, Furniture & Materials",
1 CALL BUSINESS SOLUTIONS LIMITED,1944637,25-Nov-19,42.00,Delivery Services (Assistant Chief Executive) ,D2510,"Equipment, Furniture & Materials",
1 CALL BUSINESS SOLUTIONS LIMITED,1944637,25-Nov-19,78.00,Delivery Services (Assistant Chief Executive) ,D2640,"Equipment, Furniture & Materials",
1 CALL BUSINESS SOLUTIONS LIMITED,1944637,25-Nov-19,18.00,Delivery Services (Assistant Chief Executive) ,L2080,"Equipment, Furniture & Materials",
1 CALL BUSINESS SOLUTIONS LIMITED,1944637,25-Nov-19,42.00,Delivery Services (Assistant Chief Executive) ,L3240,"Equipment, Furniture & Materials",
1 CALL BUSINESS SOLUTIONS LIMITED,1945280,26-Nov-19,96.00,Delivery Services (Assistant Chief Executive) ,D2510,"Equipment, Furniture & Materials",
1 CALL BUSINESS SOLUTIONS LIMITED,1945280,26-Nov-19,114.00,Delivery Services (Assistant Chief Executive) ,D2540,"Equipment, Furniture & Materials",
1 CALL BUSINESS SOLUTIONS LIMITED,1945280,26-Nov-19,78.00,Delivery Services (Assistant Chief Executive) ,D2640,"Equipment, Furniture & Materials",
1 CALL BUSINESS SOLUTIONS LIMITED,1945926,28-Nov-19,"1,234.20",Delivery Services (Assistant Chief Executive) ,D2510,"Equipment, Furniture & Materials",
1 CALL BUSINESS SOLUTIONS LIMITED,1947041,29-Nov-19,198.00,Delivery Services (Assistant Chief Executive) ,L2300,"Equipment, Furniture & Materials",
1 CALL BUSINESS SOLUTIONS LIMITED,1947041,29-Nov-19,24.00,Delivery Services (Assistant Chief Executive) ,L2300,"Equipment, Furniture & Materials",
1 CALL BUSINESS SOLUTIONS LIMITED,1947041,29-Nov-19,54.00,Delivery Services (Assistant Chief Executive) ,L2300,"Equipment, Furniture & Materials",
1 CALL BUSINESS SOLUTIONS LIMITED,1945926,28-Nov-19,100.80,Business Management ,B7531,Expenses,
1 CALL BUSINESS SOLUTIONS LIMITED,1945926,28-Nov-19,540.00,Business Management ,B7528,General Supplies and Services,
1 CALL BUSINESS SOLUTIONS LIMITED,1945668,27-Nov-19,264.00,Childrens Services ,H4000,Grants to Voluntary Organisations,
1 CALL BUSINESS SOLUTIONS LIMITED,1945668,27-Nov-19,144.00,Childrens Services ,H4000,Grants to Voluntary Organisations,
1 CALL BUSINESS SOLUTIONS LIMITED,1940832,07-Nov-19,"2,453.10",Delivery Services (Assistant Chief Executive) ,D2510,Hired or Contracted services,
1 CALL BUSINESS SOLUTIONS LIMITED,1941590,12-Nov-19,"2,550.58",Delivery Services (Assistant Chief Executive) ,D2510,Hired or Contracted services,
1 CALL BUSINESS SOLUTIONS LIMITED,1941590,12-Nov-19,"11,996.00",Delivery Services (Assistant Chief Executive) ,D2510,Hired or Contracted services,
1 CALL BUSINESS SOLUTIONS LIMITED,1941590,12-Nov-19,24.00,Adult Care & Health ,P4201,"Printing, Stationery & General Office Expenses",
1 CALL BUSINESS SOLUTIONS LIMITED,1945926,28-Nov-19,48.00,Childrens Services ,E6150,Recharges Other,
1 CALL BUSINESS SOLUTIONS LIMITED,1941590,12-Nov-19,48.00,Delivery Services (Assistant Chief Executive) ,D8014,Recharges Other,
1 CALL BUSINESS SOLUTIONS LIMITED,1940832,07-Nov-19,54.00,Delivery Services (Assistant Chief Executive) ,D2520,"Repairs, alterations and maintenance",
1 CALL BUSINESS SOLUTIONS LIMITED,1940832,07-Nov-19,243.60,Delivery Services (Assistant Chief Executive) ,D2700,"Repairs, alterations and maintenance",
1 CALL BUSINESS SOLUTIONS LIMITED,1941343,11-Nov-19,192.00,Delivery Services (Assistant Chief Executive) ,L2020,"Repairs, alterations and maintenance",
1 CALL BUSINESS SOLUTIONS LIMITED,1941590,12-Nov-19,174.00,Delivery Services (Assistant Chief Executive) ,D2180,"Repairs, alterations and maintenance",
1 CALL BUSINESS SOLUTIONS LIMITED,1941590,12-Nov-19,78.00,Delivery Services (Assistant Chief Executive) ,D2520,"Repairs, alterations and maintenance",
1 CALL BUSINESS SOLUTIONS LIMITED,1941590,12-Nov-19,102.00,Delivery Services (Assistant Chief Executive) ,D2520,"Repairs, alterations and maintenance",
1 CALL BUSINESS SOLUTIONS LIMITED,1941590,12-Nov-19,78.00,Delivery Services (Assistant Chief Executive) ,D2680,"Repairs, alterations and maintenance",
1 CALL BUSINESS SOLUTIONS LIMITED,1941590,12-Nov-19,438.00,Delivery Services (Assistant Chief Executive) ,D3140,"Repairs, alterations and maintenance",
1 CALL BUSINESS SOLUTIONS LIMITED,1941590,12-Nov-19,132.00,Delivery Services (Assistant Chief Executive) ,D3512,"Repairs, alterations and maintenance",
1 CALL BUSINESS SOLUTIONS LIMITED,1943490,18-Nov-19,288.00,Delivery Services (Assistant Chief Executive) ,D2540,"Repairs, alterations and maintenance",
1 CALL BUSINESS SOLUTIONS LIMITED,1943976,20-Nov-19,36.00,Delivery Services (Assistant Chief Executive) ,D8000,"Repairs, alterations and maintenance",
1 CALL BUSINESS SOLUTIONS LIMITED,1945926,28-Nov-19,78.00,Delivery Services (Assistant Chief Executive) ,D2510,"Repairs, alterations and maintenance",
1 CALL BUSINESS SOLUTIONS LIMITED,1945926,28-Nov-19,300.00,Delivery Services (Assistant Chief Executive) ,D2510,"Repairs, alterations and maintenance",
1 CALL BUSINESS SOLUTIONS LIMITED,1945926,28-Nov-19,72.00,Delivery Services (Assistant Chief Executive) ,V2500,"Repairs, alterations and maintenance",
1 CALL BUSINESS SOLUTIONS LIMITED,1947041,29-Nov-19,270.00,Delivery Services (Assistant Chief Executive) ,D2540,"Repairs, alterations and maintenance",
1 CALL BUSINESS SOLUTIONS LIMITED,1947041,29-Nov-19,360.00,Delivery Services (Assistant Chief Executive) ,D3150,"Repairs, alterations and maintenance",
1 CALL BUSINESS SOLUTIONS LIMITED,1941590,12-Nov-19,176.40,Adult Care & Health ,P4201,Services,
1 CALL BUSINESS SOLUTIONS LIMITED,1944225,21-Nov-19,192.00,Business Management ,F4600,Services,
174 LAW SOLICITORS,1947043,29-Nov-19,84.60,Business Management ,A1305,Hired or Contracted services,
1ST AFFINITY FOSTERING SERVICE LIMITED,1940199,01-Nov-19,"3,520.67",Childrens Services ,E7080,Care Provision,
1ST AFFINITY FOSTERING SERVICE LIMITED,1940199,01-Nov-19,"3,066.39",Childrens Services ,E7080,Care Provision,
1ST AFFINITY FOSTERING SERVICE LIMITED,1940199,01-Nov-19,"3,520.67",Childrens Services ,E7080,Care Provision,
1ST ENABLE LIMITED,1941027,08-Nov-19,"19,346.07",Adult Care & Health ,S6121,Learning & Disability Support - Adults (18-64),
365 SUPPORT LIMITED,1940677,06-Nov-19,"88,609.97",Adult Care & Health ,S6161,Mental Health Support - Adults (18-64),
51 WELLINGTON ROAD RES HOME,1945281,26-Nov-19,"1,884.00",Adult Care & Health ,S6121,Learning & Disability Support - Adults (18-64),
51 WELLINGTON ROAD RES HOME,1945281,26-Nov-19,"1,884.00",Adult Care & Health ,S6121,Learning & Disability Support - Adults (18-64),
51 WELLINGTON ROAD RES HOME,1945281,26-Nov-19,"1,884.00",Adult Care & Health ,S6121,Learning & Disability Support - Adults (18-64),
51 WELLINGTON ROAD RES HOME,1945281,26-Nov-19,"1,884.00",Adult Care & Health ,S6121,Learning & Disability Support - Adults (18-64),
51 WELLINGTON ROAD RES HOME,1945281,26-Nov-19,720.00,Adult Care & Health ,S6121,Learning & Disability Support - Adults (18-64),
51 WELLINGTON ROAD RES HOME,1945281,26-Nov-19,"1,884.00",Adult Care & Health ,S6141,Learning & Disability Support - Adults (18-64),
51 WELLINGTON ROAD RES HOME,1945281,26-Nov-19,"1,884.00",Adult Care & Health ,S6141,Learning & Disability Support - Adults (18-64),
51 WELLINGTON ROAD RES HOME,1945281,26-Nov-19,"1,884.00",Adult Care & Health ,S6142,Learning & Disability Support - Adults (18-64),
51 WELLINGTON ROAD RES HOME,1945281,26-Nov-19,"1,884.00",Adult Care & Health ,S6142,Mental Health Support - Older People (65+),
A E YATES LIMITED,1943025,15-Nov-19,"1,117,745.44",RE  Environment & Regulation,C5300,Contractors - Main,
A SMOOTH MOVE,1943777,19-Nov-19,36.83,Adult Care & Health ,S6161,Hired or Contracted services,
A SMOOTH MOVE,1943777,19-Nov-19,34.67,Adult Care & Health ,S6162,Hired or Contracted services,
A SMOOTH MOVE,1943777,19-Nov-19,36.83,Adult Care & Health ,S6162,Hired or Contracted services,
A TEAM WIRRAL LIMITED,1940541,05-Nov-19,"1,633.08",Delivery Services (Assistant Chief Executive) ,E5730,School Transport - Primary,
A TEAM WIRRAL LIMITED,1941591,12-Nov-19,"14,647.10",Delivery Services (Assistant Chief Executive) ,E5730,School Transport - Primary,
A TEAM WIRRAL LIMITED,1943493,18-Nov-19,"14,577.52",Delivery Services (Assistant Chief Executive) ,E5730,School Transport - Primary,
A TEAM WIRRAL LIMITED,1944641,25-Nov-19,"15,395.03",Delivery Services (Assistant Chief Executive) ,E5730,School Transport - Primary,
A WILDERNESS WAY LIMITED,1940200,01-Nov-19,"28,971.67",Childrens Services ,E7080,Care Provision,
A WILDERNESS WAY LIMITED,1940200,01-Nov-19,"1,440.00",Childrens Services ,E7080,Care Provision,
A WILDERNESS WAY LIMITED,1940200,01-Nov-19,73.80,Childrens Services ,E7080,Care Provision,
A1 MOBILE INDUSTRIAL DOMESTIC SURFACE CLEANERS ATA DESCALING SERVICES,1944642,25-Nov-19,350.00,Delivery Services (Assistant Chief Executive) ,L4971,"Repairs, alterations and maintenance",
A1A TRAVEL,1941592,12-Nov-19,268.02,Delivery Services (Assistant Chief Executive) ,S5600,Care Provision,
A1A TRAVEL,1940542,05-Nov-19,"16,006.18",Delivery Services (Assistant Chief Executive) ,E5730,School Transport - Secondary,
A1A TRAVEL,1941592,12-Nov-19,"17,557.50",Delivery Services (Assistant Chief Executive) ,E5730,School Transport - Secondary,
A2B TRAVEL (UK) LIMITED,1940543,05-Nov-19,"2,238.30",Delivery Services (Assistant Chief Executive) ,E5730,School Transport - College,
A2B TRAVEL (UK) LIMITED,1944643,25-Nov-19,"2,238.30",Delivery Services (Assistant Chief Executive) ,E5730,School Transport - College,
A2B TRAVEL (UK) LIMITED,1940543,05-Nov-19,"5,926.80",Delivery Services (Assistant Chief Executive) ,E5730,School Transport - Special,
A2B TRAVEL (UK) LIMITED,1944643,25-Nov-19,"5,388.00",Delivery Services (Assistant Chief Executive) ,E5730,School Transport - Special,
AA FENCING UK LIMITED,1944401,22-Nov-19,632.66,Delivery Services (Assistant Chief Executive) ,V1920,"Equipment, Furniture & Materials",
AA FENCING UK LIMITED,1944645,25-Nov-19,"4,622.64",Delivery Services (Assistant Chief Executive) ,V1920,"Equipment, Furniture & Materials",
AA FENCING UK LIMITED,1944645,25-Nov-19,"4,644.24",Delivery Services (Assistant Chief Executive) ,V1920,"Equipment, Furniture & Materials",
AA FENCING UK LIMITED,1944645,25-Nov-19,754.39,Delivery Services (Assistant Chief Executive) ,V1920,"Equipment, Furniture & Materials",
AARON CARE GROUP LIMITED,1945282,26-Nov-19,"1,976.88",Adult Care & Health ,S6131,Memory & Cognition Support - Older People (65+),
AB SCREENPRINT LIMITED,1945927,28-Nov-19,432.00,Childrens Services ,E9510,"Equipment, Furniture & Materials",
ABBEY LAWNS LTD,1945283,26-Nov-19,-569.40,Adult Care & Health ,S6142,Customer and Client - Community Care,
ABBEY LAWNS LTD,1945283,26-Nov-19,"1,478.48",Adult Care & Health ,S6142,Mental Health Support - Older People (65+),
ABBEY STAIRLIFTS LIMITED,1944402,22-Nov-19,"2,098.00",RE  Housing & Community Safety,C4117,Expenditure on Capital Grants,
ABBEYFIELD HOYLAKE & WEST KIRBY,1945284,26-Nov-19,"16,956.00",Adult Care & Health ,S6100,Memory & Cognition Support - Older People (65+),
ABBEYFIELD HOYLAKE & WEST KIRBY,1945284,26-Nov-19,"1,884.00",Adult Care & Health ,S6141,Memory & Cognition Support - Older People (65+),
ABBEYFIELD HOYLAKE & WEST KIRBY,1945284,26-Nov-19,"1,884.00",Adult Care & Health ,S6142,Mental Health Support - Older People (65+),
ABBEYFIELD HOYLAKE & WEST KIRBY,1945284,26-Nov-19,-672.86,Adult Care & Health ,S6131,Physical Support - Older People (65+),
ABBEYFIELD HOYLAKE & WEST KIRBY,1945284,26-Nov-19,-201.86,Adult Care & Health ,S6131,Physical Support - Older People (65+),
ABBEYFIELD HOYLAKE & WEST KIRBY,1945284,26-Nov-19,-201.86,Adult Care & Health ,S6131,Physical Support - Older People (65+),
ABBEYFIELD HOYLAKE & WEST KIRBY,1945284,26-Nov-19,-538.29,Adult Care & Health ,S6132,Physical Support - Older People (65+),
ABBEYFIELD HOYLAKE & WEST KIRBY,1945284,26-Nov-19,-403.71,Adult Care & Health ,S6132,Physical Support - Older People (65+),
ABBEYFIELD HOYLAKE & WEST KIRBY,1945284,26-Nov-19,-807.43,Adult Care & Health ,S6141,Physical Support - Older People (65+),
ABBEYFIELD HOYLAKE & WEST KIRBY,1945284,26-Nov-19,"1,884.00",Adult Care & Health ,S6142,Physical Support - Older People (65+),
ABBEYFIELD HOYLAKE & WEST KIRBY,1945284,26-Nov-19,-240.31,Adult Care & Health ,S6131,Social Care Activities,
ABBEYFIELD HOYLAKE & WEST KIRBY,1945284,26-Nov-19,-403.71,Adult Care & Health ,S6131,Social Care Activities,
ABBEYFIELD WIRRAL EXTRA CARE,1945285,26-Nov-19,"1,884.00",Adult Care & Health ,S6141,Mental Health Support - Older People (65+),
ABBEYFIELD WIRRAL EXTRA CARE,1945285,26-Nov-19,"1,884.00",Adult Care & Health ,S6132,Physical Support - Older People (65+),
ABBEYFIELD WIRRAL EXTRA CARE,1945285,26-Nov-19,"1,884.00",Adult Care & Health ,S6132,Physical Support - Older People (65+),
ABBEYFIELD WIRRAL EXTRA CARE,1945285,26-Nov-19,"1,884.00",Adult Care & Health ,S6132,Physical Support - Older People (65+),
ABBEYFIELD WIRRAL EXTRA CARE,1945285,26-Nov-19,"1,884.00",Adult Care & Health ,S6132,Physical Support - Older People (65+),
ABBEYFIELD WIRRAL EXTRA CARE,1945285,26-Nov-19,"1,884.00",Adult Care & Health ,S6132,Physical Support - Older People (65+),
ABBEYFIELD WIRRAL EXTRA CARE,1945285,26-Nov-19,"1,884.00",Adult Care & Health ,S6141,Physical Support - Older People (65+),
ABBEYFIELD WIRRAL EXTRA CARE,1945285,26-Nov-19,"1,884.00",Adult Care & Health ,S6142,Physical Support - Older People (65+),
ABBEYFIELD WIRRAL EXTRA CARE,1945285,26-Nov-19,538.29,Adult Care & Health ,S6131,Social Care Activities,
ABBEYFIELD WIRRAL EXTRA CARE,1945285,26-Nov-19,67.29,Adult Care & Health ,S6131,Social Care Activities,
ABBEYFIELD WIRRAL EXTRA CARE,1945285,26-Nov-19,"1,816.71",Adult Care & Health ,S6142,Social Care Activities,
ABBOTT ASSOCIATES,1945928,28-Nov-19,104.00,Business Management ,A1305,General Supplies and Services,
ABL HEALTH LIMITED,1943028,15-Nov-19,"58,156.50",Adult Care & Health ,P4040,Hired or Contracted services,
ABOUT WITH FRIENDS,1940409,04-Nov-19,"1,008.24",Adult Care & Health ,S6161,Mental Health Support - Adults (18-64),
AC  ENTERTAINMENT TECHNOLOGIES LIMITED,1943979,20-Nov-19,"1,774.95",Delivery Services (Assistant Chief Executive) ,L3950,"Equipment, Furniture & Materials",
ACCOUNTANT GENERAL OF THE SENIOR COURTS,240021,06-Nov-19,"13,500.00",Childrens Services ,E6540,Hired or Contracted services,
ACCOUNTANT GENERAL OF THE SENIOR COURTS,240021,06-Nov-19,"13,500.00",Childrens Services ,E6540,Hired or Contracted services,
ACORN CARE & EDUCATION LIMITED,1940545,05-Nov-19,784.00,Delivery Services (Assistant Chief Executive) ,E5730,School Transport - Special,
ACTION FOR CHILDREN SERVICES LIMITED(COMPANY),1947046,29-Nov-19,"11,181.30",Adult Care & Health ,P4090,Contracts With Voluntary Organisations,
ACTIVATE COMMUNITY AND EDUCATION SERVICES,1945286,26-Nov-19,"5,525.55",Childrens Services ,E5944,Special Educ Needs Top Ups,
ACTIVE 8 SUPPORT SERVICES,1941854,13-Nov-19,"1,584.99",Childrens Services ,E7081,Care Provision,
ACTIVE 8 SUPPORT SERVICES,1941854,13-Nov-19,"1,792.13",Childrens Services ,E7081,Care Provision,
ACTIVE 8 SUPPORT SERVICES,1941854,13-Nov-19,"1,363.56",Childrens Services ,E7081,Care Provision,
ACTIVE 8 SUPPORT SERVICES,1941854,13-Nov-19,"1,584.99",Childrens Services ,E7081,Care Provision,
ACTIVE 8 SUPPORT SERVICES,1941854,13-Nov-19,"1,363.56",Childrens Services ,E7081,Care Provision,
ACTIVE 8 SUPPORT SERVICES,1941854,13-Nov-19,"1,363.56",Childrens Services ,E7081,Care Provision,
ACTIVE 8 SUPPORT SERVICES,1944230,21-Nov-19,"2,247.86",Childrens Services ,E7081,Care Provision,
ACTIVE 8 SUPPORT SERVICES,1944230,21-Nov-19,"1,584.99",Childrens Services ,E7081,Care Provision,
ACTIVE 8 SUPPORT SERVICES,1944230,21-Nov-19,"1,806.41",Childrens Services ,E7081,Care Provision,
ACTIVE 8 SUPPORT SERVICES,1944230,21-Nov-19,"1,363.56",Childrens Services ,E7081,Care Provision,
ACTIVE 8 SUPPORT SERVICES,1944230,21-Nov-19,650.00,Childrens Services ,E7081,Care Provision,
ACTIVE 8 SUPPORT SERVICES,1944230,21-Nov-19,650.00,Childrens Services ,E7081,Care Provision,
ACTIVE 8 SUPPORT SERVICES,1944230,21-Nov-19,"1,363.56",Childrens Services ,E7081,Care Provision,
ACTIVE 8 SUPPORT SERVICES,1944230,21-Nov-19,"1,584.99",Childrens Services ,E7081,Care Provision,
ACTIVE 8 SUPPORT SERVICES,1944230,21-Nov-19,"1,397.56",Childrens Services ,E7081,Care Provision,
ACTIVE 8 SUPPORT SERVICES,1944230,21-Nov-19,650.00,Childrens Services ,E7081,Care Provision,
ACTIVE 8 SUPPORT SERVICES,1944230,21-Nov-19,"1,397.56",Childrens Services ,E7081,Care Provision,
ACTIVE 8 SUPPORT SERVICES,1944646,25-Nov-19,"33,552.05",Childrens Services ,E6540,Hired or Contracted services,
ACTIVECARE LIMITED T/A WESTWOOD HALL,1945287,26-Nov-19,"2,044.00",Adult Care & Health ,S6131,Memory & Cognition Support - Older People (65+),
ACTIVECARE LIMITED T/A WESTWOOD HALL,1945287,26-Nov-19,"1,884.00",Adult Care & Health ,S6131,Physical Support - Older People (65+),
ACTIVECARE LIMITED T/A WESTWOOD HALL,1945287,26-Nov-19,"2,044.00",Adult Care & Health ,S6131,Physical Support - Older People (65+),
ACTIVECARE LIMITED T/A WESTWOOD HALL,1945287,26-Nov-19,200.00,Adult Care & Health ,S6131,Physical Support - Older People (65+),
ACTIVECARE LIMITED T/A WESTWOOD HALL,1945287,26-Nov-19,"2,044.00",Adult Care & Health ,S6131,Physical Support - Older People (65+),
ACTIVECARE LIMITED T/A WESTWOOD HALL,1945287,26-Nov-19,"2,044.00",Adult Care & Health ,S6131,Physical Support - Older People (65+),
ACTIVECARE LIMITED T/A WESTWOOD HALL,1945287,26-Nov-19,"1,314.00",Adult Care & Health ,S6132,Physical Support - Older People (65+),
ACTIVECARE LIMITED T/A WESTWOOD HALL,1945287,26-Nov-19,"1,884.00",Adult Care & Health ,S6167,Physical Support - Older People (65+),
ADAMS SELFSTORE LLP,1943030,15-Nov-19,210.00,Economic & Housing Growth ,H6080,Expenses,
ADEPT CLEANING SERVICES,1947047,29-Nov-19,"4,801.32",Delivery Services (Assistant Chief Executive) ,L3950,Cleaning & Domestic Supplies,
ADLIB AUDIO LIMITED,1940546,05-Nov-19,"5,994.00",Business Management ,B7516,General Supplies and Services,
ADTAXIS-WIRRAL,1940548,05-Nov-19,"1,155.30",Delivery Services (Assistant Chief Executive) ,E5730,Care Provision,
ADTAXIS-WIRRAL,1941596,12-Nov-19,"2,965.20",Delivery Services (Assistant Chief Executive) ,E5730,School Transport - Special,
ADTAXIS-WIRRAL,1943498,18-Nov-19,"2,935.20",Delivery Services (Assistant Chief Executive) ,E5730,School Transport - Special,
ADTAXIS-WIRRAL,1944649,25-Nov-19,"3,293.40",Delivery Services (Assistant Chief Executive) ,E5730,School Transport - Special,
ADVANCE SYSTEMS (NW) LIMITED,1944406,22-Nov-19,"1,067.40",Childrens Services ,H4090,"Equipment, Furniture & Materials",
ADVANCED CHILD CARE ASSESSMENTS LIMITED,1944231,21-Nov-19,"1,964.88",Childrens Services ,E7031,Care Provision,
ADVANCED CHILD CARE ASSESSMENTS LIMITED,1941597,12-Nov-19,"2,557.80",Business Management ,A1305,Legal Service Provider,
ADVANCED CHILD CARE ASSESSMENTS LIMITED,1947050,29-Nov-19,"2,145.36",Business Management ,A1305,Legal Service Provider,
ADVOCACY SERVICES NORTH EAST WALES LIMITED,1943031,15-Nov-19,45.00,Adult Care & Health ,S6211,Medical Service Provider,
AFTERCARE THE NEXT STEP LIMITED,1943981,20-Nov-19,"12,768.00",Adult Care & Health ,S6121,Learning & Disability Support - Adults (18-64),
AFTERCARE THE NEXT STEP LIMITED,1944408,22-Nov-19,"12,768.00",Adult Care & Health ,S6121,Learning & Disability Support - Adults (18-64),
AGE CONCERN WIRRAL T/A AGE UK WIRRAL,1945288,26-Nov-19,"2,100.00",Adult Care & Health ,S6131,Memory & Cognition Support - Older People (65+),
AGE CONCERN WIRRAL T/A AGE UK WIRRAL,1945288,26-Nov-19,424.00,Adult Care & Health ,S6131,Memory & Cognition Support - Older People (65+),
AGE CONCERN WIRRAL T/A AGE UK WIRRAL,1945288,26-Nov-19,424.00,Adult Care & Health ,S6131,Physical Support - Older People (65+),
AGE CONCERN WIRRAL T/A AGE UK WIRRAL,1945288,26-Nov-19,"2,100.00",Adult Care & Health ,S6131,Physical Support - Older People (65+),
AGE CONCERN WIRRAL T/A AGE UK WIRRAL,1945288,26-Nov-19,"2,100.00",Adult Care & Health ,S6131,Physical Support - Older People (65+),
AGE CONCERN WIRRAL T/A AGE UK WIRRAL,1945288,26-Nov-19,424.00,Adult Care & Health ,S6131,Physical Support - Older People (65+),
AGE CONCERN WIRRAL T/A AGE UK WIRRAL,1945288,26-Nov-19,"2,100.00",Adult Care & Health ,S6131,Physical Support - Older People (65+),
AGE CONCERN WIRRAL T/A AGE UK WIRRAL,1945288,26-Nov-19,"2,100.00",Adult Care & Health ,S6142,Physical Support - Older People (65+),
AGE CONCERN WIRRAL T/A AGE UK WIRRAL,1945288,26-Nov-19,424.00,Adult Care & Health ,S6142,Physical Support - Older People (65+),
AGE CONCERN WIRRAL T/A AGE UK WIRRAL,1945288,26-Nov-19,525.00,Adult Care & Health ,S6167,Social Care Activities,
AGE CONCERN WIRRAL T/A AGE UK WIRRAL,1945288,26-Nov-19,300.00,Adult Care & Health ,S6167,Social Care Activities,
ALD AUTOMOTIVE LIMITED,1940549,05-Nov-19,"1,518.26",Delivery Services (Assistant Chief Executive) ,T4020,Contract Hire & Operating Leases,
ALD AUTOMOTIVE LIMITED,1940549,05-Nov-19,420.73,Delivery Services (Assistant Chief Executive) ,T4020,Contract Hire & Operating Leases,
ALD AUTOMOTIVE LIMITED,1940549,05-Nov-19,419.25,Delivery Services (Assistant Chief Executive) ,T4020,Contract Hire & Operating Leases,
ALD AUTOMOTIVE LIMITED,1940549,05-Nov-19,-900.24,Delivery Services (Assistant Chief Executive) ,T4020,Contract Hire & Operating Leases,
ALEVE MEDICAL SERVICES LIMITED,1941037,08-Nov-19,"2,331.36",Adult Care & Health ,S6211,Medical Service Provider,
ALF & NOAH DEVELOPMENTS LIMITED,1941349,11-Nov-19,"1,347.50",Childrens Services ,E9965,Grants & Subscriptions,
ALINE MOBILITY,1941350,11-Nov-19,706.84,Adult Care & Health ,S6134,"Equipment, Furniture & Materials",
ALINE MOBILITY,1941350,11-Nov-19,280.80,Adult Care & Health ,S6134,"Equipment, Furniture & Materials",
ALINE MOBILITY,1941350,11-Nov-19,"2,182.86",Delivery Services (Assistant Chief Executive) ,L3190,"Equipment, Furniture & Materials",
ALINE MOBILITY,1941350,11-Nov-19,410.10,Delivery Services (Assistant Chief Executive) ,L3190,"Equipment, Furniture & Materials",
ALINE MOBILITY,1941600,12-Nov-19,395.40,Delivery Services (Assistant Chief Executive) ,L3190,"Equipment, Furniture & Materials",
ALINE MOBILITY,1941857,13-Nov-19,158.48,Delivery Services (Assistant Chief Executive) ,L3190,"Equipment, Furniture & Materials",
ALINE MOBILITY,1941857,13-Nov-19,126.48,Delivery Services (Assistant Chief Executive) ,L3190,"Equipment, Furniture & Materials",
ALINE MOBILITY,1941350,11-Nov-19,114.78,Delivery Services (Assistant Chief Executive) ,D3533,"Repairs, alterations and maintenance",
ALINE MOBILITY,1941350,11-Nov-19,36.00,Delivery Services (Assistant Chief Executive) ,D3534,"Repairs, alterations and maintenance",
ALINE MOBILITY,1941350,11-Nov-19,36.00,Delivery Services (Assistant Chief Executive) ,D3534,"Repairs, alterations and maintenance",
ALISON BLACK LIMITED T/A SPORTMAX,1940837,07-Nov-19,256.70,Delivery Services (Assistant Chief Executive) ,L3250,"Equipment, Furniture & Materials",
ALISON BLACK LIMITED T/A SPORTMAX,1941601,12-Nov-19,628.41,Delivery Services (Assistant Chief Executive) ,L3240,"Equipment, Furniture & Materials",
ALISON BLACK LIMITED T/A SPORTMAX,1943983,20-Nov-19,370.82,Delivery Services (Assistant Chief Executive) ,L3030,"Equipment, Furniture & Materials",
ALISON BLACK LIMITED T/A SPORTMAX,1943983,20-Nov-19,87.20,Delivery Services (Assistant Chief Executive) ,L3180,"Equipment, Furniture & Materials",
ALISON BLACK LIMITED T/A SPORTMAX,1945952,28-Nov-19,890.99,Delivery Services (Assistant Chief Executive) ,L3320,"Equipment, Furniture & Materials",
ALLAN CONLIN T/A AMCECOLOGICAL,1943780,19-Nov-19,"2,394.00",RE  Housing & Community Safety,C6917,Contractors - Main,
ALLIANCE LEISURE SERVICES LIMITED,1945292,26-Nov-19,"4,937.50",Delivery Services (Assistant Chief Executive) ,L3240,"Advertising, Publicity & Marketing",
ALLIANCE LEISURE SERVICES LIMITED,1945292,26-Nov-19,"4,937.50",Delivery Services (Assistant Chief Executive) ,L3240,"Advertising, Publicity & Marketing",
ALLIANCE LEISURE SERVICES LIMITED,1945292,26-Nov-19,"4,937.50",Delivery Services (Assistant Chief Executive) ,L3240,"Advertising, Publicity & Marketing",
ALLIANCE LEISURE SERVICES LIMITED,1945292,26-Nov-19,"4,937.50",Delivery Services (Assistant Chief Executive) ,L3240,"Advertising, Publicity & Marketing",
ALLIED HEALTHCARE GROUP LIMITED,1943984,20-Nov-19,"2,625.00",Adult Care & Health ,S6121,School Transport - Primary,
ALLIED HEALTHCARE GROUP LIMITED,1945676,27-Nov-19,"57,530.35",Adult Care & Health ,S6111,School Transport - Primary,
ALLIED PUBLICITY SERVICES (MANCHESTER) LIMITED,1945955,28-Nov-19,"2,067.50",Business Management ,F1120,Hired or Contracted services,
ALLISON ATHILL(CHILDMINDER),1945956,28-Nov-19,278.79,Childrens Services ,E1170,Services,
ALLISON ATHILL(CHILDMINDER),1945956,28-Nov-19,223.25,Childrens Services ,E1170,Services,
ALLISON ATHILL(CHILDMINDER),1945956,28-Nov-19,223.25,Childrens Services ,E1170,Services,
ALPHA (RSL) LTD,1944411,22-Nov-19,230.64,Economic & Housing Growth ,H7180,Grants Paid,
ALPHA (RSL) LTD,1944411,22-Nov-19,540.30,Economic & Housing Growth ,H7180,Grants Paid,
ALPHA (RSL) LTD,1944411,22-Nov-19,316.12,Economic & Housing Growth ,H7180,Grants Paid,
ALPHA (RSL) LTD,1944411,22-Nov-19,268.87,Economic & Housing Growth ,H7180,Grants Paid,
ALPHA (RSL) LTD,1944411,22-Nov-19,512.55,Economic & Housing Growth ,H7180,Grants Paid,
ALPHA (RSL) LTD,1944411,22-Nov-19,282.25,Economic & Housing Growth ,H7180,Grants Paid,
ALPHA (RSL) LTD,1944411,22-Nov-19,83.27,Economic & Housing Growth ,H7180,Grants Paid,
ALPHA (RSL) LTD,1944411,22-Nov-19,418.08,Economic & Housing Growth ,H7180,Grants Paid,
ALPHA (RSL) LTD,1944411,22-Nov-19,132.00,Economic & Housing Growth ,H7180,Grants Paid,
ALPHA (RSL) LTD,1944411,22-Nov-19,275.24,Economic & Housing Growth ,H7180,Grants Paid,
ALPHA (RSL) LTD,1944411,22-Nov-19,214.40,Economic & Housing Growth ,H7180,Grants Paid,
ALPHABIOLABORATORIES LIMITED,1941352,11-Nov-19,186.00,Business Management ,A1305,Legal Service Provider,
ALPHABIOLABORATORIES LIMITED,1942108,14-Nov-19,258.96,Business Management ,A1305,Legal Service Provider,
ALPHABIOLABORATORIES LIMITED,1943985,20-Nov-19,304.20,Business Management ,A1305,Legal Service Provider,
ALPHABIOLABORATORIES LIMITED,1943985,20-Nov-19,551.70,Business Management ,A1305,Legal Service Provider,
ALPHABIOLABORATORIES LIMITED,1945677,27-Nov-19,171.00,Business Management ,A1305,Legal Service Provider,
AL'S COACHES LIMITED,1943033,15-Nov-19,200.00,Delivery Services (Assistant Chief Executive) ,T4020,Contract Hire & Operating Leases,
ALTERNATIVE APPROACH,1940201,01-Nov-19,"3,342.42",Childrens Services ,E7080,Care Provision,
ALTERNATIVE APPROACH,1940201,01-Nov-19,"3,342.42",Childrens Services ,E7080,Care Provision,
ALTERNATIVE APPROACH,1941858,13-Nov-19,"1,193.70",Childrens Services ,E7080,Care Provision,
ALTERNATIVE APPROACH,1941858,13-Nov-19,"3,342.42",Childrens Services ,E7080,Care Provision,
ALTERNATIVE APPROACH,1941858,13-Nov-19,"2,626.17",Childrens Services ,E7080,Care Provision,
ALTERNATIVE FUTURES LTD,1943781,19-Nov-19,"309,948.58",Adult Care & Health ,S6131,Learning & Disability Support - Adults (18-64),
AMANDE CONCERTS LTD,1947054,29-Nov-19,"17,071.46",Delivery Services (Assistant Chief Executive) ,L3950,Customer and Client Receipts - Non Vatable,
AMAZON PRIME,CC,19-Oct-19,7.99,Business Management ,F4300,Expenses,
AMBER BUTTON,1943504,18-Nov-19,"1,218.90",Childrens Services ,E9965,Grants & Subscriptions,
AMBER FAMILY LIMITED,1941860,13-Nov-19,"19,750.00",Childrens Services ,E7080,Care Provision,
AMBEROL LIMITED,1942116,14-Nov-19,521.10,Business Management ,B7609,Grants to Voluntary Organisations,
AMENITY TREE CARE LIMITED,1942117,14-Nov-19,"1,742.86",Delivery Services (Assistant Chief Executive) ,L4976,"Repairs, alterations and maintenance",
AMENITY TREE CARE LIMITED,1942117,14-Nov-19,580.96,Delivery Services (Assistant Chief Executive) ,L4976,"Repairs, alterations and maintenance",
AMEY OW LIMITED,1940412,04-Nov-19,"2,985.95",RE  Environment & Regulation,C5109,Consultants Fees,
AMEY OW LIMITED,1941861,13-Nov-19,"15,931.67",RE  Environment & Regulation,C5300,Consultants Fees,
AMF PRECISION ENGINEERING LIMITED,1941354,11-Nov-19,"1,722.00",Childrens Services ,E9965,Grants & Subscriptions,
AMION CONSULTING LIMITED,1943040,15-Nov-19,"2,535.60",Economic & Housing Growth ,B8474,Consultants,
AMY'S CHILDMINDING - AMY BRENNAN,1945964,28-Nov-19,218.89,Childrens Services ,E1170,Services,
ANCHOR CAREHOMES GROUP LIMITED,1945294,26-Nov-19,"2,100.00",Adult Care & Health ,S6131,Memory & Cognition Support - Older People (65+),
ANCHOR CAREHOMES GROUP LIMITED,1945294,26-Nov-19,"2,100.00",Adult Care & Health ,S6132,Memory & Cognition Support - Older People (65+),
ANCHOR CAREHOMES GROUP LIMITED,1945294,26-Nov-19,"2,100.00",Adult Care & Health ,S6132,Memory & Cognition Support - Older People (65+),
ANCHOR CAREHOMES GROUP LIMITED,1945294,26-Nov-19,"2,100.00",Adult Care & Health ,S6132,Memory & Cognition Support - Older People (65+),
ANCHOR CAREHOMES GROUP LIMITED,1945294,26-Nov-19,"2,100.00",Adult Care & Health ,S6132,Memory & Cognition Support - Older People (65+),
ANCHOR CAREHOMES GROUP LIMITED,1945294,26-Nov-19,"2,100.00",Adult Care & Health ,S6132,Memory & Cognition Support - Older People (65+),
ANCHOR CAREHOMES GROUP LIMITED,1945294,26-Nov-19,"2,100.00",Adult Care & Health ,S6132,Memory & Cognition Support - Older People (65+),
ANCHOR CAREHOMES GROUP LIMITED,1945294,26-Nov-19,"2,100.00",Adult Care & Health ,S6132,Memory & Cognition Support - Older People (65+),
ANCHOR CAREHOMES GROUP LIMITED,1945294,26-Nov-19,-300.00,Adult Care & Health ,S6132,Memory & Cognition Support - Older People (65+),
ANCHOR CAREHOMES GROUP LIMITED,1945294,26-Nov-19,"-2,100.00",Adult Care & Health ,S6132,Memory & Cognition Support - Older People (65+),
ANCHOR CAREHOMES GROUP LIMITED,1945294,26-Nov-19,"-2,100.00",Adult Care & Health ,S6132,Memory & Cognition Support - Older People (65+),
ANCHOR CAREHOMES GROUP LIMITED,1945294,26-Nov-19,"2,100.00",Adult Care & Health ,S6132,Memory & Cognition Support - Older People (65+),
ANCHOR CAREHOMES GROUP LIMITED,1945294,26-Nov-19,-750.00,Adult Care & Health ,S6141,Memory & Cognition Support - Older People (65+),
ANCHOR CAREHOMES GROUP LIMITED,1945294,26-Nov-19,675.00,Adult Care & Health ,S6141,Memory & Cognition Support - Older People (65+),
ANCHOR CAREHOMES GROUP LIMITED,1945294,26-Nov-19,"2,100.00",Adult Care & Health ,S6141,Memory & Cognition Support - Older People (65+),
ANCHOR CAREHOMES GROUP LIMITED,1945294,26-Nov-19,"2,100.00",Adult Care & Health ,S6142,Memory & Cognition Support - Older People (65+),
ANCHOR CAREHOMES GROUP LIMITED,1945294,26-Nov-19,"2,100.00",Adult Care & Health ,S6142,Memory & Cognition Support - Older People (65+),
ANCHOR CAREHOMES GROUP LIMITED,1945295,26-Nov-19,"1,884.00",Adult Care & Health ,S6132,Memory & Cognition Support - Older People (65+),
ANCHOR CAREHOMES GROUP LIMITED,1945295,26-Nov-19,"1,884.00",Adult Care & Health ,S6141,Memory & Cognition Support - Older People (65+),
ANCHOR CAREHOMES GROUP LIMITED,1945294,26-Nov-19,"1,884.00",Adult Care & Health ,S6132,Mental Health Support - Older People (65+),
ANCHOR CAREHOMES GROUP LIMITED,1945294,26-Nov-19,"2,100.00",Adult Care & Health ,S6132,Mental Health Support - Older People (65+),
ANCHOR CAREHOMES GROUP LIMITED,1945294,26-Nov-19,"2,100.00",Adult Care & Health ,S6132,Mental Health Support - Older People (65+),
ANCHOR CAREHOMES GROUP LIMITED,1945294,26-Nov-19,"2,100.00",Adult Care & Health ,S6132,Mental Health Support - Older People (65+),
ANCHOR CAREHOMES GROUP LIMITED,1945294,26-Nov-19,"2,100.00",Adult Care & Health ,S6167,Mental Health Support - Older People (65+),
ANCHOR CAREHOMES GROUP LIMITED,1945294,26-Nov-19,"2,100.00",Adult Care & Health ,S6167,Mental Health Support - Older People (65+),
ANCHOR CAREHOMES GROUP LIMITED,1945294,26-Nov-19,380.00,Adult Care & Health ,S6167,Mental Health Support - Older People (65+),
ANCHOR CAREHOMES GROUP LIMITED,1945295,26-Nov-19,"1,884.00",Adult Care & Health ,S6141,Mental Health Support - Older People (65+),
ANCHOR CAREHOMES GROUP LIMITED,1945294,26-Nov-19,"2,100.00",Adult Care & Health ,S6132,Physical Support - Older People (65+),
ANCHOR CAREHOMES GROUP LIMITED,1945294,26-Nov-19,"1,884.00",Adult Care & Health ,S6132,Physical Support - Older People (65+),
ANCHOR CAREHOMES GROUP LIMITED,1945294,26-Nov-19,220.00,Adult Care & Health ,S6132,Physical Support - Older People (65+),
ANCHOR CAREHOMES GROUP LIMITED,1945294,26-Nov-19,"2,100.00",Adult Care & Health ,S6132,Physical Support - Older People (65+),
ANCHOR CAREHOMES GROUP LIMITED,1945294,26-Nov-19,"1,884.00",Adult Care & Health ,S6132,Physical Support - Older People (65+),
ANCHOR CAREHOMES GROUP LIMITED,1945294,26-Nov-19,"2,100.00",Adult Care & Health ,S6132,Physical Support - Older People (65+),
ANCHOR CAREHOMES GROUP LIMITED,1945294,26-Nov-19,"2,100.00",Adult Care & Health ,S6132,Physical Support - Older People (65+),
ANCHOR CAREHOMES GROUP LIMITED,1945294,26-Nov-19,"2,100.00",Adult Care & Health ,S6132,Physical Support - Older People (65+),
ANCHOR CAREHOMES GROUP LIMITED,1945294,26-Nov-19,"1,884.00",Adult Care & Health ,S6132,Physical Support - Older People (65+),
ANCHOR CAREHOMES GROUP LIMITED,1945294,26-Nov-19,"2,100.00",Adult Care & Health ,S6132,Physical Support - Older People (65+),
ANCHOR CAREHOMES GROUP LIMITED,1945294,26-Nov-19,"2,100.00",Adult Care & Health ,S6132,Physical Support - Older People (65+),
ANCHOR CAREHOMES GROUP LIMITED,1945294,26-Nov-19,"1,884.00",Adult Care & Health ,S6132,Physical Support - Older People (65+),
ANCHOR CAREHOMES GROUP LIMITED,1945294,26-Nov-19,"1,884.00",Adult Care & Health ,S6132,Physical Support - Older People (65+),
ANCHOR CAREHOMES GROUP LIMITED,1945294,26-Nov-19,"2,100.00",Adult Care & Health ,S6132,Physical Support - Older People (65+),
ANCHOR CAREHOMES GROUP LIMITED,1945294,26-Nov-19,"2,100.00",Adult Care & Health ,S6132,Physical Support - Older People (65+),
ANCHOR CAREHOMES GROUP LIMITED,1945294,26-Nov-19,"2,100.00",Adult Care & Health ,S6142,Physical Support - Older People (65+),
ANCHOR CAREHOMES GROUP LIMITED,1945294,26-Nov-19,"2,100.00",Adult Care & Health ,S6142,Physical Support - Older People (65+),
ANCHOR CAREHOMES GROUP LIMITED,1945294,26-Nov-19,200.00,Adult Care & Health ,S6142,Physical Support - Older People (65+),
ANCHOR CAREHOMES GROUP LIMITED,1945294,26-Nov-19,"2,100.00",Adult Care & Health ,S6142,Physical Support - Older People (65+),
ANCHOR CAREHOMES GROUP LIMITED,1945294,26-Nov-19,200.00,Adult Care & Health ,S6142,Physical Support - Older People (65+),
ANCHOR CAREHOMES GROUP LIMITED,1945294,26-Nov-19,"2,100.00",Adult Care & Health ,S6142,Physical Support - Older People (65+),
ANCHOR CAREHOMES GROUP LIMITED,1945294,26-Nov-19,"2,100.00",Adult Care & Health ,S6167,Physical Support - Older People (65+),
ANCHOR CAREHOMES GROUP LIMITED,1945294,26-Nov-19,"2,100.00",Adult Care & Health ,S6167,Physical Support - Older People (65+),
ANCHOR CAREHOMES GROUP LIMITED,1945295,26-Nov-19,"1,884.00",Adult Care & Health ,S6132,Physical Support - Older People (65+),
ANCHOR CAREHOMES GROUP LIMITED,1945295,26-Nov-19,"1,143.86",Adult Care & Health ,S6132,Physical Support - Older People (65+),
ANCHOR CAREHOMES GROUP LIMITED,1945295,26-Nov-19,"1,884.00",Adult Care & Health ,S6141,Physical Support - Older People (65+),
ANCHOR CAREHOMES GROUP LIMITED,1945295,26-Nov-19,"1,884.00",Adult Care & Health ,S6141,Physical Support - Older People (65+),
ANCHOR CAREHOMES GROUP LIMITED,1945295,26-Nov-19,"1,884.00",Adult Care & Health ,S6141,Physical Support - Older People (65+),
ANCHOR CAREHOMES GROUP LIMITED,1945295,26-Nov-19,"1,884.00",Adult Care & Health ,S6141,Physical Support - Older People (65+),
ANCHOR CAREHOMES GROUP LIMITED,1945295,26-Nov-19,"1,884.00",Adult Care & Health ,S6141,Physical Support - Older People (65+),
ANCHOR CAREHOMES GROUP LIMITED,1945295,26-Nov-19,"1,884.00",Adult Care & Health ,S6141,Physical Support - Older People (65+),
ANCHOR CAREHOMES GROUP LIMITED,1945295,26-Nov-19,"1,884.00",Adult Care & Health ,S6141,Physical Support - Older People (65+),
ANCHOR CAREHOMES GROUP LIMITED,1945295,26-Nov-19,"1,884.00",Adult Care & Health ,S6141,Physical Support - Older People (65+),
ANCHOR CAREHOMES GROUP LIMITED,1945295,26-Nov-19,400.00,Adult Care & Health ,S6141,Physical Support - Older People (65+),
ANCHOR CAREHOMES GROUP LIMITED,1945295,26-Nov-19,"1,884.00",Adult Care & Health ,S6141,Physical Support - Older People (65+),
ANCHOR CAREHOMES GROUP LIMITED,1945295,26-Nov-19,"1,884.00",Adult Care & Health ,S6141,Physical Support - Older People (65+),
ANCHOR CAREHOMES GROUP LIMITED,1945295,26-Nov-19,"1,884.00",Adult Care & Health ,S6141,Physical Support - Older People (65+),
ANCHOR CAREHOMES GROUP LIMITED,1945295,26-Nov-19,"1,884.00",Adult Care & Health ,S6141,Physical Support - Older People (65+),
ANCHOR CAREHOMES GROUP LIMITED,1945295,26-Nov-19,320.00,Adult Care & Health ,S6141,Physical Support - Older People (65+),
ANCHOR CAREHOMES GROUP LIMITED,1945295,26-Nov-19,256.29,Adult Care & Health ,S6141,Physical Support - Older People (65+),
ANCHOR CAREHOMES GROUP LIMITED,1945295,26-Nov-19,403.71,Adult Care & Health ,S6141,Physical Support - Older People (65+),
ANCHOR CAREHOMES GROUP LIMITED,1945295,26-Nov-19,"1,884.00",Adult Care & Health ,S6141,Physical Support - Older People (65+),
ANCHOR CAREHOMES GROUP LIMITED,1945295,26-Nov-19,"1,196.00",Adult Care & Health ,S6141,Physical Support - Older People (65+),
ANCHOR CAREHOMES GROUP LIMITED,1945295,26-Nov-19,"1,196.00",Adult Care & Health ,S6141,Physical Support - Older People (65+),
ANCHOR CAREHOMES GROUP LIMITED,1945295,26-Nov-19,"1,884.00",Adult Care & Health ,S6141,Physical Support - Older People (65+),
ANCHOR CAREHOMES GROUP LIMITED,1945295,26-Nov-19,538.29,Adult Care & Health ,S6141,Physical Support - Older People (65+),
ANCHOR CAREHOMES GROUP LIMITED,1945295,26-Nov-19,"1,884.00",Adult Care & Health ,S6141,Physical Support - Older People (65+),
ANCHOR CAREHOMES GROUP LIMITED,1945295,26-Nov-19,"1,884.00",Adult Care & Health ,S6142,Physical Support - Older People (65+),
ANCHOR CAREHOMES GROUP LIMITED,1945295,26-Nov-19,"1,884.00",Adult Care & Health ,S6141,Sensory Support - Older People (65+),
ANCHOR CAREHOMES GROUP LIMITED,1945295,26-Nov-19,400.00,Adult Care & Health ,S6141,Sensory Support - Older People (65+),
ANCHOR TRUST                 ,1944413,22-Nov-19,108.12,Economic & Housing Growth ,H7180,Grants Paid,
ANCHOR TRUST                 ,1944413,22-Nov-19,128.59,Economic & Housing Growth ,H7180,Grants Paid,
ANCHOR TRUST                 ,1944413,22-Nov-19,134.16,Economic & Housing Growth ,H7180,Grants Paid,
ANCHOR TRUST                 ,1944413,22-Nov-19,488.77,Economic & Housing Growth ,H7180,Grants Paid,
ANCHOR TRUST                 ,1944413,22-Nov-19,474.98,Economic & Housing Growth ,H7180,Grants Paid,
ANCHOR TRUST                 ,1944413,22-Nov-19,801.96,Economic & Housing Growth ,H7180,Grants Paid,
ANCHOR TRUST                 ,1945296,26-Nov-19,538.29,Adult Care & Health ,S6142,Memory & Cognition Support - Older People (65+),
ANCHOR TRUST                 ,1945296,26-Nov-19,"1,884.00",Adult Care & Health ,S6142,Memory & Cognition Support - Older People (65+),
ANCHOR TRUST                 ,1945296,26-Nov-19,200.00,Adult Care & Health ,S6142,Memory & Cognition Support - Older People (65+),
ANCHOR TRUST                 ,1945296,26-Nov-19,"1,884.00",Adult Care & Health ,S6141,Mental Health Support - Older People (65+),
ANCHOR TRUST                 ,1945296,26-Nov-19,"1,884.00",Adult Care & Health ,S6167,Mental Health Support - Older People (65+),
ANCHOR TRUST                 ,1945296,26-Nov-19,672.86,Adult Care & Health ,S6111,Physical Support - Older People (65+),
ANCHOR TRUST                 ,1945296,26-Nov-19,"1,884.00",Adult Care & Health ,S6132,Physical Support - Older People (65+),
ANCHOR TRUST                 ,1945296,26-Nov-19,"1,884.00",Adult Care & Health ,S6141,Physical Support - Older People (65+),
ANCHOR TRUST                 ,1945296,26-Nov-19,260.00,Adult Care & Health ,S6141,Physical Support - Older People (65+),
ANCHOR TRUST                 ,1945296,26-Nov-19,"1,884.00",Adult Care & Health ,S6142,Physical Support - Older People (65+),
ANCHOR TRUST                 ,1945296,26-Nov-19,"1,884.00",Adult Care & Health ,S6142,Physical Support - Older People (65+),
ANCHOR TRUST                 ,1945296,26-Nov-19,"1,884.00",Adult Care & Health ,S6142,Physical Support - Older People (65+),
ANCHOR TRUST                 ,1945296,26-Nov-19,400.00,Adult Care & Health ,S6142,Physical Support - Older People (65+),
ANCHOR TRUST                 ,1945296,26-Nov-19,"1,884.00",Adult Care & Health ,S6142,Physical Support - Older People (65+),
ANCHOR TRUST                 ,1945296,26-Nov-19,"1,884.00",Adult Care & Health ,S6142,Physical Support - Older People (65+),
ANCHOR TRUST                 ,1945296,26-Nov-19,"1,884.00",Adult Care & Health ,S6142,Physical Support - Older People (65+),
ANCHOR TRUST                 ,1945296,26-Nov-19,200.00,Adult Care & Health ,S6142,Physical Support - Older People (65+),
ANCHOR TRUST                 ,1945296,26-Nov-19,-71.43,Adult Care & Health ,S6142,Physical Support - Older People (65+),
ANCHOR TRUST                 ,1945296,26-Nov-19,-672.86,Adult Care & Health ,S6142,Physical Support - Older People (65+),
ANCHOR TRUST                 ,1945296,26-Nov-19,-200.00,Adult Care & Health ,S6142,Physical Support - Older People (65+),
ANCHOR TRUST                 ,1945296,26-Nov-19,"-1,884.00",Adult Care & Health ,S6142,Physical Support - Older People (65+),
ANCHOR TRUST                 ,1945296,26-Nov-19,-200.00,Adult Care & Health ,S6142,Physical Support - Older People (65+),
ANCHOR TRUST                 ,1945296,26-Nov-19,"-1,884.00",Adult Care & Health ,S6142,Physical Support - Older People (65+),
ANCHOR TRUST                 ,1945296,26-Nov-19,"1,884.00",Adult Care & Health ,S6167,Physical Support - Older People (65+),
ANCHOR TRUST HOMES,1945297,26-Nov-19,201.86,Adult Care & Health ,S6131,Memory & Cognition Support - Older People (65+),
ANCHOR TRUST HOMES,1945297,26-Nov-19,"1,884.00",Adult Care & Health ,S6132,Memory & Cognition Support - Older People (65+),
ANCHOR TRUST HOMES,1945297,26-Nov-19,400.00,Adult Care & Health ,S6132,Memory & Cognition Support - Older People (65+),
ANCHOR TRUST HOMES,1945297,26-Nov-19,"1,884.00",Adult Care & Health ,S6141,Memory & Cognition Support - Older People (65+),
ANCHOR TRUST HOMES,1945297,26-Nov-19,"1,808.00",Adult Care & Health ,S6132,Mental Health Support - Older People (65+),
ANCHOR TRUST HOMES,1945297,26-Nov-19,"1,884.00",Adult Care & Health ,S6132,Mental Health Support - Older People (65+),
ANCHOR TRUST HOMES,1945297,26-Nov-19,"1,884.00",Adult Care & Health ,S6132,Mental Health Support - Older People (65+),
ANCHOR TRUST HOMES,1945297,26-Nov-19,"1,884.00",Adult Care & Health ,S6141,Mental Health Support - Older People (65+),
ANCHOR TRUST HOMES,1945297,26-Nov-19,"1,884.00",Adult Care & Health ,S6166,Mental Health Support - Older People (65+),
ANCHOR TRUST HOMES,1945297,26-Nov-19,"1,884.00",Adult Care & Health ,S6131,Physical Support - Older People (65+),
ANCHOR TRUST HOMES,1945297,26-Nov-19,400.00,Adult Care & Health ,S6131,Physical Support - Older People (65+),
ANCHOR TRUST HOMES,1945297,26-Nov-19,"1,884.00",Adult Care & Health ,S6131,Physical Support - Older People (65+),
ANCHOR TRUST HOMES,1945297,26-Nov-19,134.57,Adult Care & Health ,S6131,Physical Support - Older People (65+),
ANCHOR TRUST HOMES,1945297,26-Nov-19,"1,884.00",Adult Care & Health ,S6131,Physical Support - Older People (65+),
ANCHOR TRUST HOMES,1945297,26-Nov-19,242.86,Adult Care & Health ,S6132,Physical Support - Older People (65+),
ANCHOR TRUST HOMES,1945297,26-Nov-19,"1,143.86",Adult Care & Health ,S6132,Physical Support - Older People (65+),
ANCHOR TRUST HOMES,1945297,26-Nov-19,400.00,Adult Care & Health ,S6132,Physical Support - Older People (65+),
ANCHOR TRUST HOMES,1945297,26-Nov-19,"1,884.00",Adult Care & Health ,S6132,Physical Support - Older People (65+),
ANCHOR TRUST HOMES,1945297,26-Nov-19,"1,884.00",Adult Care & Health ,S6132,Physical Support - Older People (65+),
ANCHOR TRUST HOMES,1945297,26-Nov-19,"1,884.00",Adult Care & Health ,S6132,Physical Support - Older People (65+),
ANCHOR TRUST HOMES,1945297,26-Nov-19,"1,884.00",Adult Care & Health ,S6132,Physical Support - Older People (65+),
ANCHOR TRUST HOMES,1945297,26-Nov-19,400.00,Adult Care & Health ,S6132,Physical Support - Older People (65+),
ANCHOR TRUST HOMES,1945297,26-Nov-19,"1,884.00",Adult Care & Health ,S6132,Physical Support - Older People (65+),
ANCHOR TRUST HOMES,1945297,26-Nov-19,200.00,Adult Care & Health ,S6132,Physical Support - Older People (65+),
ANCHOR TRUST HOMES,1945297,26-Nov-19,"1,884.00",Adult Care & Health ,S6132,Physical Support - Older People (65+),
ANCHOR TRUST HOMES,1945297,26-Nov-19,"1,884.00",Adult Care & Health ,S6132,Physical Support - Older People (65+),
ANCHOR TRUST HOMES,1945297,26-Nov-19,"1,884.00",Adult Care & Health ,S6132,Physical Support - Older People (65+),
ANCHOR TRUST HOMES,1945297,26-Nov-19,"1,884.00",Adult Care & Health ,S6141,Physical Support - Older People (65+),
ANCHOR TRUST HOMES,1945297,26-Nov-19,"1,884.00",Adult Care & Health ,S6141,Physical Support - Older People (65+),
ANCHOR TRUST HOMES,1945297,26-Nov-19,300.00,Adult Care & Health ,S6141,Physical Support - Older People (65+),
ANCHOR TRUST HOMES,1945297,26-Nov-19,"1,413.00",Adult Care & Health ,S6141,Physical Support - Older People (65+),
ANCHOR TRUST HOMES,1945297,26-Nov-19,"1,884.00",Adult Care & Health ,S6141,Physical Support - Older People (65+),
ANCHOR TRUST HOMES,1945297,26-Nov-19,320.00,Adult Care & Health ,S6141,Physical Support - Older People (65+),
ANCHOR TRUST HOMES,1945297,26-Nov-19,"1,614.86",Adult Care & Health ,S6141,Physical Support - Older People (65+),
ANCHOR TRUST HOMES,1945297,26-Nov-19,67.29,Adult Care & Health ,S6142,Physical Support - Older People (65+),
ANCHOR TRUST HOMES,1945297,26-Nov-19,"1,816.71",Adult Care & Health ,S6142,Physical Support - Older People (65+),
ANCHOR TRUST HOMES,1945297,26-Nov-19,"1,884.00",Adult Care & Health ,S6167,Physical Support - Older People (65+),
ANCHOR TRUST HOMES,1945297,26-Nov-19,"1,884.00",Adult Care & Health ,S6132,Social Care Activities,
ANDREW HAGGIS,1940204,01-Nov-19,330.00,Business Management ,A1305,Legal Service Provider,
ANDREW HAGGIS,1940204,01-Nov-19,270.00,Business Management ,A1305,Legal Service Provider,
ANDREW HAGGIS,1947056,29-Nov-19,600.00,Business Management ,A1305,Legal Service Provider,
ANDREW STEPHENS T/A STG,1944666,25-Nov-19,260.00,Business Management ,B7624,"Equipment, Furniture & Materials",
ANGEL SPRINGS LIMITED T/A WATERLOGIC,1941862,13-Nov-19,35.57,Childrens Services ,E1440,Catering,
ANGEL SPRINGS LIMITED T/A WATERLOGIC,1943988,20-Nov-19,168.07,Business Management ,F1110,"Equipment, Furniture & Materials",
ANGEL SPRINGS LIMITED T/A WATERLOGIC,1944235,21-Nov-19,957.31,Delivery Services (Assistant Chief Executive) ,D2520,"Equipment, Furniture & Materials",
ANGEL SPRINGS LIMITED T/A WATERLOGIC,1944235,21-Nov-19,159.55,Delivery Services (Assistant Chief Executive) ,L3240,"Equipment, Furniture & Materials",
ANGEL SPRINGS LIMITED T/A WATERLOGIC,1944235,21-Nov-19,319.10,Delivery Services (Assistant Chief Executive) ,L3240,"Equipment, Furniture & Materials",
ANGEL SPRINGS LIMITED T/A WATERLOGIC,1944235,21-Nov-19,319.10,Delivery Services (Assistant Chief Executive) ,L3240,"Equipment, Furniture & Materials",
ANGEL SPRINGS LIMITED T/A WATERLOGIC,1944235,21-Nov-19,164.34,Delivery Services (Assistant Chief Executive) ,L3910,"Equipment, Furniture & Materials",
ANGEL SPRINGS LIMITED T/A WATERLOGIC,1941603,12-Nov-19,232.32,Delivery Services (Assistant Chief Executive) ,D2550,"Repairs, alterations and maintenance",
ANGELS CARE WIRRAL LIMITED,1941864,13-Nov-19,"1,330.50",Adult Care & Health ,S6131,Physical Support - Older People (65+),
ANGELS CARE WIRRAL LIMITED,1943505,18-Nov-19,823.50,Adult Care & Health ,S6131,Physical Support - Older People (65+),
ANNA'S LITTLE ANGELS - ANNA COOK,1945987,28-Nov-19,278.79,Childrens Services ,E1170,Services,
ANNA'S LITTLE ANGELS - ANNA COOK,1945987,28-Nov-19,437.78,Childrens Services ,E1170,Services,
ANSCO SIGNS LIMITED,1940205,01-Nov-19,9.92,Delivery Services (Assistant Chief Executive) ,V1920,"Equipment, Furniture & Materials",
ANSCO SIGNS LIMITED,1941356,11-Nov-19,296.40,Delivery Services (Assistant Chief Executive) ,V1920,"Equipment, Furniture & Materials",
ANSCO SIGNS LIMITED,1943046,15-Nov-19,516.98,Delivery Services (Assistant Chief Executive) ,V1920,"Equipment, Furniture & Materials",
ANSCO SIGNS LIMITED,1940552,05-Nov-19,170.28,Delivery Services (Assistant Chief Executive) ,H2930,Waste Service Provider,
ANTALIS LIMITED,1941357,11-Nov-19,318.24,Business Management ,F3000,"Equipment, Furniture & Materials",
ANTALIS LIMITED,1942146,14-Nov-19,315.60,Business Management ,F3000,"Equipment, Furniture & Materials",
ANTALIS LIMITED,1944414,22-Nov-19,315.60,Business Management ,F3000,"Equipment, Furniture & Materials",
ANTALIS LIMITED,1944677,25-Nov-19,318.24,Business Management ,F3000,"Equipment, Furniture & Materials",
ANTALIS LIMITED,1945685,27-Nov-19,63.22,Business Management ,F3000,"Equipment, Furniture & Materials",
ANTOINETTE KATHLEEN CARR,1941358,11-Nov-19,60.00,Childrens Services ,E9160,Medical Service Provider,
APEX CHILDRENS SERVICES LIMITED,1940206,01-Nov-19,"11,537.89",Childrens Services ,E7080,Care Provision,
APEX CHILDRENS SERVICES LIMITED,1940206,01-Nov-19,"11,537.89",Childrens Services ,E7080,Care Provision,
APEX CHILDRENS SERVICES LIMITED,1940206,01-Nov-19,"12,410.32",Childrens Services ,E7080,Care Provision,
APNA SOCIAL CARE LIMITED,1943047,15-Nov-19,"1,595.00",Childrens Services ,E9510,"Equipment, Furniture & Materials",
APOLLO CARE (WIRRAL) LIMITED,1941040,08-Nov-19,"5,444.40",Adult Care & Health ,S6111,Physical Support - Older People (65+),
APOLLO CARE (WIRRAL) LIMITED,1943048,15-Nov-19,"6,867.90",Adult Care & Health ,S6111,Physical Support - Older People (65+),
APOLLO CARE (WIRRAL) LIMITED,1943507,18-Nov-19,"2,386.80",Adult Care & Health ,S6167,Physical Support - Older People (65+),
APOLLO CARE (WIRRAL) LIMITED,1945306,26-Nov-19,"4,176.90",Adult Care & Health ,S6111,Physical Support - Older People (65+),
APPINERE LIMITED T/A SIGNS EXPRESS LIVERPOOL NORTH & WIRRAL,1940841,07-Nov-19,930.00,Business Management ,B7950,"Advertising, Publicity & Marketing",
APPINERE LIMITED T/A SIGNS EXPRESS LIVERPOOL NORTH & WIRRAL,1947058,29-Nov-19,186.00,Business Management ,B7950,"Advertising, Publicity & Marketing",
APPLE BLOSSOM COURT LIMITED,1945307,26-Nov-19,"2,688.60",Adult Care & Health ,S6121,Learning & Disability Support - Adults (18-64),
APPLE BLOSSOM COURT LIMITED,1945307,26-Nov-19,"3,283.64",Adult Care & Health ,S6121,Learning & Disability Support - Adults (18-64),
APPLE BLOSSOM COURT LIMITED,1945307,26-Nov-19,"2,738.00",Adult Care & Health ,S6121,Learning & Disability Support - Adults (18-64),
APPLE BLOSSOM COURT LIMITED,1945307,26-Nov-19,813.00,Adult Care & Health ,S6121,Learning & Disability Support - Adults (18-64),
APPLE BLOSSOM COURT LIMITED,1945307,26-Nov-19,"1,884.00",Adult Care & Health ,S6121,Learning & Disability Support - Adults (18-64),
APPLE BLOSSOM COURT LIMITED,1945307,26-Nov-19,"1,093.68",Adult Care & Health ,S6121,Learning & Disability Support - Adults (18-64),
APPLE BLOSSOM COURT LIMITED,1945307,26-Nov-19,"2,460.00",Adult Care & Health ,S6121,Learning & Disability Support - Adults (18-64),
APPLE BLOSSOM COURT LIMITED,1945307,26-Nov-19,"1,759.08",Adult Care & Health ,S6121,Learning & Disability Support - Adults (18-64),
APPLE BLOSSOM COURT LIMITED,1945307,26-Nov-19,464.29,Adult Care & Health ,S6121,Learning & Disability Support - Adults (18-64),
APPLE BLOSSOM COURT LIMITED,1945307,26-Nov-19,675.00,Adult Care & Health ,S6121,Learning & Disability Support - Adults (18-64),
APPLE BLOSSOM COURT LIMITED,1945307,26-Nov-19,"2,228.16",Adult Care & Health ,S6142,Learning & Disability Support - Adults (18-64),
APPLE BLOSSOM COURT LIMITED,1945307,26-Nov-19,"1,884.00",Adult Care & Health ,S6142,Learning & Disability Support - Adults (18-64),
APPLE BLOSSOM COURT LIMITED,1945307,26-Nov-19,"1,884.00",Adult Care & Health ,S6142,Learning & Disability Support - Adults (18-64),
APPLE BLOSSOM COURT LIMITED,1945307,26-Nov-19,"1,093.68",Adult Care & Health ,S6142,Learning & Disability Support - Adults (18-64),
APPLE BLOSSOM COURT LIMITED,1945307,26-Nov-19,"2,614.84",Adult Care & Health ,S6121,Learning & Disability Support - Older People (65+),
APPLE BLOSSOM COURT LIMITED,1945307,26-Nov-19,"-1,480.29",Adult Care & Health ,S6142,Physical Support - Adults (18-64),
APPLE BLOSSOM COURT LIMITED,1945307,26-Nov-19,"-1,884.00",Adult Care & Health ,S6142,Physical Support - Adults (18-64),
AQUAID (LIVERPOOL),1940683,06-Nov-19,53.94,Childrens Services ,E1440,Catering,
AQUAID (LIVERPOOL),1945999,28-Nov-19,43.15,Childrens Services ,E1440,Catering,
AQUILA TRAINING SERVICES LIMITED,1944684,25-Nov-19,"3,252.60",Economic & Housing Growth ,H7091,Training Expenses,
ARBTECH CONSULTING LIMITED,1940416,04-Nov-19,718.80,RE  Housing & Community Safety,C6917,Contractors - Main,
ARC4 LIMITED,1943050,15-Nov-19,"4,195.18",Economic & Housing Growth ,B7054,Services,
ARCO LTD,1940417,04-Nov-19,43.25,Delivery Services (Assistant Chief Executive) ,T4020,"Clothes, Uniform & Laundry",
ARCO LTD,1940417,04-Nov-19,-43.25,Delivery Services (Assistant Chief Executive) ,T4020,"Clothes, Uniform & Laundry",
ARCO LTD,1941607,12-Nov-19,216.24,Delivery Services (Assistant Chief Executive) ,T4020,"Clothes, Uniform & Laundry",
ARCO LTD,1941607,12-Nov-19,346.54,Delivery Services (Assistant Chief Executive) ,T4020,"Clothes, Uniform & Laundry",
ARCO LTD,1941607,12-Nov-19,-216.24,Delivery Services (Assistant Chief Executive) ,T4020,"Clothes, Uniform & Laundry",
ARCO LTD,1946001,28-Nov-19,333.50,Delivery Services (Assistant Chief Executive) ,L4976,"Clothes, Uniform & Laundry",
ARCO LTD,1946001,28-Nov-19,-277.92,Delivery Services (Assistant Chief Executive) ,L4976,"Clothes, Uniform & Laundry",
ARCO LTD,1940417,04-Nov-19,43.94,Delivery Services (Assistant Chief Executive) ,L3250,Services,
ARDEN PLANT LTD T/A PETER DOUGLASS PLATFORMS,1945308,26-Nov-19,"1,554.00",Delivery Services (Assistant Chief Executive) ,T4020,Contract Hire & Operating Leases,
ARDEN PLANT LTD T/A PETER DOUGLASS PLATFORMS,1945308,26-Nov-19,"1,554.00",Delivery Services (Assistant Chief Executive) ,T4020,Contract Hire & Operating Leases,
ARDEN PLANT LTD T/A PETER DOUGLASS PLATFORMS,1946002,28-Nov-19,"1,554.00",Delivery Services (Assistant Chief Executive) ,T4020,Contract Hire & Operating Leases,
ARDEN PLANT LTD T/A PETER DOUGLASS PLATFORMS,1946002,28-Nov-19,"1,554.00",Delivery Services (Assistant Chief Executive) ,T4020,Contract Hire & Operating Leases,
ARGYLE SATELLITE CONTRACT SERVICE LIMITED,1940684,06-Nov-19,123.37,Adult Care & Health ,S6142,Care Provision,
ARGYLE SATELLITE CONTRACT SERVICE LIMITED,1940684,06-Nov-19,48.79,Childrens Services ,E7028,Care Provision,
ARGYLE SATELLITE CONTRACT SERVICE LIMITED,1940684,06-Nov-19,84.55,Childrens Services ,E7035,Care Provision,
ARGYLE SATELLITE CONTRACT SERVICE LIMITED,1943990,20-Nov-19,39.82,Childrens Services ,E7032,Care Provision,
ARGYLE SATELLITE CONTRACT SERVICE LIMITED,1943990,20-Nov-19,47.06,Childrens Services ,E7032,Care Provision,
ARGYLE SATELLITE CONTRACT SERVICE LIMITED,1945309,26-Nov-19,22.43,Childrens Services ,E7032,Care Provision,
ARGYLE SATELLITE CONTRACT SERVICE LIMITED,1940553,05-Nov-19,"2,550.66",Delivery Services (Assistant Chief Executive) ,S5600,Care Provision,
ARGYLE SATELLITE CONTRACT SERVICE LIMITED,1941608,12-Nov-19,"1,837.98",Delivery Services (Assistant Chief Executive) ,S5600,Care Provision,
ARGYLE SATELLITE CONTRACT SERVICE LIMITED,1943511,18-Nov-19,"2,235.06",Delivery Services (Assistant Chief Executive) ,S5600,Care Provision,
ARGYLE SATELLITE CONTRACT SERVICE LIMITED,1944686,25-Nov-19,"1,745.28",Delivery Services (Assistant Chief Executive) ,S5600,Care Provision,
ARGYLE SATELLITE CONTRACT SERVICE LIMITED,1944237,21-Nov-19,50.00,Business Management ,A1700,Customer and Client Receipts - Non Vatable,
ARGYLE SATELLITE CONTRACT SERVICE LIMITED,1940553,05-Nov-19,"4,926.56",Delivery Services (Assistant Chief Executive) ,E5730,School Transport - Primary,
ARGYLE SATELLITE CONTRACT SERVICE LIMITED,1943511,18-Nov-19,"5,340.29",Delivery Services (Assistant Chief Executive) ,E5730,School Transport - Primary,
ARGYLE SATELLITE CONTRACT SERVICE LIMITED,1944686,25-Nov-19,"5,360.25",Delivery Services (Assistant Chief Executive) ,E5730,School Transport - Primary,
ARJO UK LIMITED,1944687,25-Nov-19,154.73,Delivery Services (Assistant Chief Executive) ,L3240,"Equipment, Furniture & Materials",
ARJO UK LIMITED,1945687,27-Nov-19,79.20,Delivery Services (Assistant Chief Executive) ,L3240,"Equipment, Furniture & Materials",
ARK COMMUNITY TRANSPORT,1940555,05-Nov-19,"10,098.00",Delivery Services (Assistant Chief Executive) ,S5600,Care Provision,
ARK COMMUNITY TRANSPORT,1941609,12-Nov-19,"10,098.00",Delivery Services (Assistant Chief Executive) ,S5600,Care Provision,
ARK COMMUNITY TRANSPORT,1943512,18-Nov-19,"10,098.00",Delivery Services (Assistant Chief Executive) ,S5600,Care Provision,
ARK COMMUNITY TRANSPORT,1944688,25-Nov-19,"10,098.00",Delivery Services (Assistant Chief Executive) ,S5600,Care Provision,
ARMSTRONG LYON HYDRAULICS LIMITED,1944690,25-Nov-19,597.60,Delivery Services (Assistant Chief Executive) ,L4975,Direct Transport Costs,
ARNOLD CLARK,1940419,04-Nov-19,64.86,Delivery Services (Assistant Chief Executive) ,T4020,Contract Hire & Operating Leases,
ARNOLD CLARK,1940419,04-Nov-19,31.44,Delivery Services (Assistant Chief Executive) ,T4020,Contract Hire & Operating Leases,
ARNOLD CLARK,1941363,11-Nov-19,478.97,Delivery Services (Assistant Chief Executive) ,T4020,Contract Hire & Operating Leases,
ARNOLD CLARK,1941363,11-Nov-19,142.30,Delivery Services (Assistant Chief Executive) ,T4020,Contract Hire & Operating Leases,
ARNOLD CLARK,1942151,14-Nov-19,151.70,Delivery Services (Assistant Chief Executive) ,T4020,Contract Hire & Operating Leases,
ARNOLD CLARK,1944691,25-Nov-19,156.41,Delivery Services (Assistant Chief Executive) ,T4020,Contract Hire & Operating Leases,
ARNOLD CLARK,1946007,28-Nov-19,52.21,Delivery Services (Assistant Chief Executive) ,T4020,Contract Hire & Operating Leases,
ARNOLD CLARK,1946007,28-Nov-19,151.70,Delivery Services (Assistant Chief Executive) ,T4020,Contract Hire & Operating Leases,
ARRIVA NORTH WEST LIMITED,1941610,12-Nov-19,"1,365.00",Childrens Services ,E9966,Travel Exps-Other,
ARTEMIS PRODUCTIONS UK,1941868,13-Nov-19,800.00,Business Management ,B7516,General Supplies and Services,
ARTHUR HALL,1940556,05-Nov-19,22.00,Business Management ,A4000,Services,
ARVAL UK LIMITED,1941364,11-Nov-19,882.19,Delivery Services (Assistant Chief Executive) ,T4020,Contract Hire & Operating Leases,
ASBESTOS CONTROL & TREATMENT LIMITED,1946008,28-Nov-19,479.00,Children & Young People,C2820,Contractors - Main,
ASBESTOS CONTROL & TREATMENT LIMITED,1945688,27-Nov-19,262.37,Childrens Services ,E2380,"Repairs, alterations and maintenance",
ASBESTOS CONTROL & TREATMENT LIMITED,1945688,27-Nov-19,"3,240.00",Childrens Services ,E3050,"Repairs, alterations and maintenance",
ASBESTOS CONTROL & TREATMENT LIMITED,1946008,28-Nov-19,426.82,Childrens Services ,E1850,"Repairs, alterations and maintenance",
ASCENTIS,1940844,07-Nov-19,14.00,Childrens Services ,E6150,Educational Provider,
ASCENTIS,1943991,20-Nov-19,15.00,Childrens Services ,E6150,Educational Provider,
ASCENTIS,1944239,21-Nov-19,85.00,Childrens Services ,E6150,Educational Provider,
ASCENTIS,1946009,28-Nov-19,396.00,Childrens Services ,E6150,Educational Provider,
ASD LIGHTING PLC,1944693,25-Nov-19,"28,368.00",RE  Environment & Regulation,C5233,Contractors - Main,
ASDA,CC,25-Oct-19,39.75,Economic & Housing Growth ,H6080,"Equipment, Furniture & Materials",
ASDA,CC,25-Oct-19,71.50,Economic & Housing Growth ,H6080,"Equipment, Furniture & Materials",
ASDA,CC,25-Oct-19,61.00,Economic & Housing Growth ,H6080,"Equipment, Furniture & Materials",
ASDA,CC,29-Oct-19,73.75,Economic & Housing Growth ,H6080,"Equipment, Furniture & Materials",
ASH HOUSE DAY NURSERY,1946010,28-Nov-19,"3,066.64",Childrens Services ,E1170,Services,
ASH HOUSE DAY NURSERY,1946010,28-Nov-19,"8,781.21",Childrens Services ,E1170,Services,
ASH HOUSE DAY NURSERY,1946010,28-Nov-19,"3,714.06",Childrens Services ,E1170,Services,
ASH WASTE SERVICES LIMITED,1946011,28-Nov-19,463.97,Delivery Services (Assistant Chief Executive) ,V1920,"Equipment, Furniture & Materials",
ASH WASTE SERVICES LIMITED,1946011,28-Nov-19,"2,886.00",Delivery Services (Assistant Chief Executive) ,V1920,"Equipment, Furniture & Materials",
ASHDOWN SUPPLIES,1943053,15-Nov-19,539.14,Delivery Services (Assistant Chief Executive) ,L4950,"Equipment, Furniture & Materials",
ASHDOWN SUPPLIES,1943053,15-Nov-19,179.71,Delivery Services (Assistant Chief Executive) ,L4950,"Equipment, Furniture & Materials",
ASKEWS & HOLTS LIBRARY SERVICES LIMITED,1941046,08-Nov-19,127.54,Balance Sheet,00000,Debtors - Inland Revenue,
ASKEWS & HOLTS LIBRARY SERVICES LIMITED,1943054,15-Nov-19,257.96,Balance Sheet,00000,Debtors - Inland Revenue,
ASKEWS & HOLTS LIBRARY SERVICES LIMITED,1943054,15-Nov-19,61.56,Balance Sheet,00000,Debtors - Inland Revenue,
ASKEWS & HOLTS LIBRARY SERVICES LIMITED,1944242,21-Nov-19,97.51,Balance Sheet,00000,Debtors - Inland Revenue,
ASKEWS & HOLTS LIBRARY SERVICES LIMITED,1944417,22-Nov-19,38.05,Balance Sheet,00000,Debtors - Inland Revenue,
ASKEWS & HOLTS LIBRARY SERVICES LIMITED,1945689,27-Nov-19,41.58,Balance Sheet,00000,Debtors - Inland Revenue,
ASKEWS & HOLTS LIBRARY SERVICES LIMITED,1945689,27-Nov-19,70.33,Balance Sheet,00000,Debtors - Inland Revenue,
ASKEWS & HOLTS LIBRARY SERVICES LIMITED,1946014,28-Nov-19,88.98,Balance Sheet,00000,Debtors - Inland Revenue,
ASKEWS & HOLTS LIBRARY SERVICES LIMITED,1947062,29-Nov-19,43.92,Balance Sheet,00000,Debtors - Inland Revenue,
ASPIRATIONS CARE,1943514,18-Nov-19,"67,394.01",Adult Care & Health ,S6121,Learning & Disability Support - Adults (18-64),
ASPIRE CARE SUPPORT SERVICES LIMITED,1944418,22-Nov-19,"314,819.70",Adult Care & Health ,S6131,Physical Support - Older People (65+),
ASSIST MANAGED SERVICES LIMITED,1945690,27-Nov-19,"7,860.02",Delivery Services (Assistant Chief Executive) ,V2230,Agency Staff,
ASSIST MANAGED SERVICES LIMITED,1946015,28-Nov-19,"7,860.02",Delivery Services (Assistant Chief Executive) ,V2230,Agency Staff,
ASSOCIATION FOR PUBLIC SERVICE EXCELLENCE (APSE),1943515,18-Nov-19,420.00,Delivery Services (Assistant Chief Executive) ,L4950,"Equipment, Furniture & Materials",
ASSURED HEALTHCARE SOLUTIONS LIMITED,1945313,26-Nov-19,"1,894.60",Adult Care & Health ,S6131,Memory & Cognition Support - Older People (65+),
ASTON BOND LAW LIMITED,1944419,22-Nov-19,955.00,RE  Housing & Community Safety,C6952,Purchase Of Land & Buildings,
ASTRA MARQUEES LIMITED,1940557,05-Nov-19,102.00,Business Management ,B7531,Expenses,
ATHENA CARE (NEW BRIGHTON ONE) LIMITED,1945314,26-Nov-19,"1,280.00",Adult Care & Health ,S6141,Memory & Cognition Support - Older People (65+),
ATHENA CARE (NEW BRIGHTON ONE) LIMITED,1945314,26-Nov-19,"2,100.00",Adult Care & Health ,S6141,Memory & Cognition Support - Older People (65+),
ATHENA CARE (NEW BRIGHTON ONE) LIMITED,1945314,26-Nov-19,-219.43,Adult Care & Health ,S6141,Memory & Cognition Support - Older People (65+),
ATHENA CARE (NEW BRIGHTON ONE) LIMITED,1945314,26-Nov-19,75.00,Adult Care & Health ,S6131,Physical Support - Older People (65+),
ATHENA CARE (NEW BRIGHTON ONE) LIMITED,1945314,26-Nov-19,"2,025.00",Adult Care & Health ,S6131,Physical Support - Older People (65+),
ATHENA CARE (NEW BRIGHTON ONE) LIMITED,1945314,26-Nov-19,"1,884.00",Adult Care & Health ,S6141,Physical Support - Older People (65+),
ATHENA CARE (NEW BRIGHTON ONE) LIMITED,1945314,26-Nov-19,"1,296.00",Adult Care & Health ,S6141,Physical Support - Older People (65+),
ATHENA CARE (NEW BRIGHTON ONE) LIMITED,1945314,26-Nov-19,"1,884.00",Adult Care & Health ,S6141,Physical Support - Older People (65+),
ATHENA CARE (NEW BRIGHTON ONE) LIMITED,1945314,26-Nov-19,"1,496.00",Adult Care & Health ,S6141,Physical Support - Older People (65+),
ATHENA CARE (NEW BRIGHTON ONE) LIMITED,1945314,26-Nov-19,"-1,314.00",Adult Care & Health ,S6142,Physical Support - Older People (65+),
ATHENA CARE (NEW BRIGHTON ONE) LIMITED,1945314,26-Nov-19,-876.00,Adult Care & Health ,S6167,Physical Support - Older People (65+),
ATHENA HEALTHCARE (NEW BRIGHTON TWO) LIMITED,1945315,26-Nov-19,"1,950.00",Adult Care & Health ,S6132,Physical Support - Older People (65+),
ATHENA HEALTHCARE (NEW BRIGHTON TWO) LIMITED,1945315,26-Nov-19,"2,100.00",Adult Care & Health ,S6141,Physical Support - Older People (65+),
ATHERTON & PARTNERS LTD,1942154,14-Nov-19,"3,954.24",Children & Young People,C2820,Contractors - Main,
ATHERTON & PARTNERS LTD,1942154,14-Nov-19,922.24,Children & Young People,C2820,Contractors - Main,
ATHERTON & PARTNERS LTD,1945316,26-Nov-19,"9,701.95",Childrens Services ,E1420,"Repairs, alterations and maintenance",
ATLAS FIRE & SECURITY LIMITED,1940845,07-Nov-19,168.00,Children & Young People,C2099,Contractors - Main,
ATLAS FIRE & SECURITY LIMITED,1946016,28-Nov-19,"3,892.80",Children & Young People,C2084,Contractors - Main,
ATLAS FIRE & SECURITY LIMITED,1947063,29-Nov-19,222.00,Children & Young People,C1669,Contractors - Main,
ATLAS FIRE & SECURITY LIMITED,1941365,11-Nov-19,108.00,Childrens Services ,E1440,Fixtures & Fittings,
ATLAS FIRE & SECURITY LIMITED,1944420,22-Nov-19,516.00,Delivery Services (Assistant Chief Executive) ,L2430,Fixtures & Fittings,
ATLAS FIRE & SECURITY LIMITED,1945317,26-Nov-19,"1,900.80",Delivery Services (Assistant Chief Executive) ,L2300,"Repairs, alterations and maintenance",
ATLAS FIRE & SECURITY LIMITED,1946016,28-Nov-19,"1,875.60",Delivery Services (Assistant Chief Executive) ,D2700,"Repairs, alterations and maintenance",
AUNTIE EM'S CHILDMINDING SERVICE,1946017,28-Nov-19,836.36,Childrens Services ,E1170,Services,
AUNTIE EM'S CHILDMINDING SERVICE,1946017,28-Nov-19,669.74,Childrens Services ,E1170,Services,
AUNTIE JAYNE'S HOUSE LIMITED,1946018,28-Nov-19,557.57,Childrens Services ,E1170,Services,
AUNTIE JAYNE'S HOUSE LIMITED,1946018,28-Nov-19,"6,251.84",Childrens Services ,E1170,Services,
AUNTIE JAYNE'S HOUSE LIMITED,1946018,28-Nov-19,"1,581.79",Childrens Services ,E1170,Services,
AUNTY K'S DAYCARE,1946019,28-Nov-19,248.08,Childrens Services ,E1170,Services,
AUNTY K'S DAYCARE,1946019,28-Nov-19,291.86,Childrens Services ,E1170,Services,
AUTISM INITIATIVES,1944243,21-Nov-19,"2,372.08",Childrens Services ,E7080,Care Provision,
AUTISM INITIATIVES,1944243,21-Nov-19,"7,847.54",Childrens Services ,E7080,Care Provision,
AUTISM INITIATIVES,1945318,26-Nov-19,-414.20,Adult Care & Health ,S6121,Customer and Client - Community Care,
AUTISM INITIATIVES,1941049,08-Nov-19,351.47,Adult Care & Health ,S6121,Learning & Disability Support - Adults (18-64),
AUTISM INITIATIVES,1941049,08-Nov-19,"6,176.77",Adult Care & Health ,S6121,Learning & Disability Support - Adults (18-64),
AUTISM INITIATIVES,1945318,26-Nov-19,"4,792.28",Adult Care & Health ,S6121,Learning & Disability Support - Adults (18-64),
AUTISM INITIATIVES,1945318,26-Nov-19,"2,223.30",Adult Care & Health ,S6121,Learning & Disability Support - Adults (18-64),
AUTISM INITIATIVES,1945318,26-Nov-19,"5,133.94",Adult Care & Health ,S6121,Learning & Disability Support - Adults (18-64),
AUTISM INITIATIVES,1945318,26-Nov-19,"11,979.20",Adult Care & Health ,S6121,Learning & Disability Support - Adults (18-64),
AUTISM TOGETHER,1943787,19-Nov-19,91.38,Adult Care & Health ,E6760,Care Provision,
AUTISM TOGETHER,1945319,26-Nov-19,-414.20,Adult Care & Health ,S6121,Customer and Client - Community Care,
AUTISM TOGETHER,1945319,26-Nov-19,-414.20,Adult Care & Health ,S6121,Customer and Client - Community Care,
AUTISM TOGETHER,1945320,26-Nov-19,-414.20,Adult Care & Health ,S6121,Customer and Client - Community Care,
AUTISM TOGETHER,1945320,26-Nov-19,-414.20,Adult Care & Health ,S6121,Customer and Client - Community Care,
AUTISM TOGETHER,1945320,26-Nov-19,-414.20,Adult Care & Health ,S6121,Customer and Client - Community Care,
AUTISM TOGETHER,1945320,26-Nov-19,-414.20,Adult Care & Health ,S6121,Customer and Client - Community Care,
AUTISM TOGETHER,1945320,26-Nov-19,-414.20,Adult Care & Health ,S6121,Customer and Client - Community Care,
AUTISM TOGETHER,1945320,26-Nov-19,-414.20,Adult Care & Health ,S6121,Customer and Client - Community Care,
AUTISM TOGETHER,1945320,26-Nov-19,-414.20,Adult Care & Health ,S6121,Customer and Client - Community Care,
AUTISM TOGETHER,1945320,26-Nov-19,-414.20,Adult Care & Health ,S6121,Customer and Client - Community Care,
AUTISM TOGETHER,1945320,26-Nov-19,-414.20,Adult Care & Health ,S6121,Customer and Client - Community Care,
AUTISM TOGETHER,1945320,26-Nov-19,-347.00,Adult Care & Health ,S6121,Customer and Client - Community Care,
AUTISM TOGETHER,1945320,26-Nov-19,-23.59,Adult Care & Health ,S6121,Customer and Client - Community Care,
AUTISM TOGETHER,1945320,26-Nov-19,-414.20,Adult Care & Health ,S6131,Customer and Client - Community Care,
AUTISM TOGETHER,1940687,06-Nov-19,"139,538.86",Adult Care & Health ,S6121,Learning & Disability Support - Adults (18-64),
AUTISM TOGETHER,1940687,06-Nov-19,"237,891.60",Adult Care & Health ,S6141,Learning & Disability Support - Adults (18-64),
AUTISM TOGETHER,1945319,26-Nov-19,"8,623.24",Adult Care & Health ,S6121,Learning & Disability Support - Adults (18-64),
AUTISM TOGETHER,1945319,26-Nov-19,"1,400.00",Adult Care & Health ,S6121,Learning & Disability Support - Adults (18-64),
AUTISM TOGETHER,1945319,26-Nov-19,610.00,Adult Care & Health ,S6121,Learning & Disability Support - Adults (18-64),
AUTISM TOGETHER,1945319,26-Nov-19,"9,912.04",Adult Care & Health ,S6121,Learning & Disability Support - Adults (18-64),
AUTISM TOGETHER,1945319,26-Nov-19,"6,908.48",Adult Care & Health ,S6121,Learning & Disability Support - Adults (18-64),
AUTISM TOGETHER,1945319,26-Nov-19,"5,252.92",Adult Care & Health ,S6121,Learning & Disability Support - Adults (18-64),
AUTISM TOGETHER,1945319,26-Nov-19,"4,515.52",Adult Care & Health ,S6121,Learning & Disability Support - Adults (18-64),
AUTISM TOGETHER,1945320,26-Nov-19,"1,820.00",Adult Care & Health ,S6121,Learning & Disability Support - Adults (18-64),
AUTISM TOGETHER,1945320,26-Nov-19,"9,064.16",Adult Care & Health ,S6121,Learning & Disability Support - Adults (18-64),
AUTISM TOGETHER,1945320,26-Nov-19,"1,280.00",Adult Care & Health ,S6121,Learning & Disability Support - Adults (18-64),
AUTISM TOGETHER,1945320,26-Nov-19,"3,972.20",Adult Care & Health ,S6121,Learning & Disability Support - Adults (18-64),
AUTISM TOGETHER,1945320,26-Nov-19,"1,220.00",Adult Care & Health ,S6121,Learning & Disability Support - Adults (18-64),
AUTISM TOGETHER,1945320,26-Nov-19,488.00,Adult Care & Health ,S6121,Learning & Disability Support - Adults (18-64),
AUTISM TOGETHER,1945320,26-Nov-19,"1,098.00",Adult Care & Health ,S6121,Learning & Disability Support - Adults (18-64),
AUTISM TOGETHER,1945320,26-Nov-19,"1,098.00",Adult Care & Health ,S6121,Learning & Disability Support - Adults (18-64),
AUTISM TOGETHER,1945320,26-Nov-19,"7,191.68",Adult Care & Health ,S6121,Learning & Disability Support - Adults (18-64),
AUTISM TOGETHER,1945320,26-Nov-19,488.00,Adult Care & Health ,S6121,Learning & Disability Support - Adults (18-64),
AUTISM TOGETHER,1945320,26-Nov-19,"4,413.84",Adult Care & Health ,S6121,Learning & Disability Support - Adults (18-64),
AUTISM TOGETHER,1945320,26-Nov-19,"1,098.00",Adult Care & Health ,S6121,Learning & Disability Support - Adults (18-64),
AUTISM TOGETHER,1945320,26-Nov-19,"4,112.52",Adult Care & Health ,S6121,Learning & Disability Support - Adults (18-64),
AUTISM TOGETHER,1945320,26-Nov-19,"8,510.44",Adult Care & Health ,S6121,Learning & Disability Support - Adults (18-64),
AUTISM TOGETHER,1945320,26-Nov-19,"8,991.24",Adult Care & Health ,S6121,Learning & Disability Support - Adults (18-64),
AUTISM TOGETHER,1945320,26-Nov-19,"9,111.80",Adult Care & Health ,S6121,Learning & Disability Support - Adults (18-64),
AUTISM TOGETHER,1945320,26-Nov-19,"10,047.12",Adult Care & Health ,S6121,Learning & Disability Support - Adults (18-64),
AUTISM TOGETHER,1945320,26-Nov-19,"1,098.00",Adult Care & Health ,S6121,Learning & Disability Support - Adults (18-64),
AUTISM TOGETHER,1945320,26-Nov-19,"1,098.00",Adult Care & Health ,S6121,Learning & Disability Support - Adults (18-64),
AUTISM TOGETHER,1945320,26-Nov-19,"3,972.20",Adult Care & Health ,S6121,Learning & Disability Support - Adults (18-64),
AUTISM TOGETHER,1945320,26-Nov-19,"1,098.00",Adult Care & Health ,S6121,Learning & Disability Support - Adults (18-64),
AUTISM TOGETHER,1945320,26-Nov-19,610.00,Adult Care & Health ,S6121,Learning & Disability Support - Adults (18-64),
AUTISM TOGETHER,1945320,26-Nov-19,"1,098.00",Adult Care & Health ,S6121,Learning & Disability Support - Adults (18-64),
AUTISM TOGETHER,1945320,26-Nov-19,"1,098.00",Adult Care & Health ,S6121,Learning & Disability Support - Adults (18-64),
AUTISM TOGETHER,1945320,26-Nov-19,"10,065.40",Adult Care & Health ,S6121,Learning & Disability Support - Adults (18-64),
AUTISM TOGETHER,1945320,26-Nov-19,732.00,Adult Care & Health ,S6121,Learning & Disability Support - Adults (18-64),
AUTISM TOGETHER,1945320,26-Nov-19,976.00,Adult Care & Health ,S6121,Learning & Disability Support - Adults (18-64),
AUTISM TOGETHER,1945320,26-Nov-19,"9,171.00",Adult Care & Health ,S6121,Learning & Disability Support - Adults (18-64),
AUTISM TOGETHER,1945320,26-Nov-19,854.00,Adult Care & Health ,S6121,Learning & Disability Support - Adults (18-64),
AUTISM TOGETHER,1945320,26-Nov-19,"4,327.68",Adult Care & Health ,S6121,Learning & Disability Support - Adults (18-64),
AUTISM TOGETHER,1945320,26-Nov-19,"1,098.00",Adult Care & Health ,S6121,Learning & Disability Support - Adults (18-64),
AUTISM TOGETHER,1945320,26-Nov-19,"1,098.00",Adult Care & Health ,S6121,Learning & Disability Support - Adults (18-64),
AUTISM TOGETHER,1945320,26-Nov-19,854.00,Adult Care & Health ,S6121,Learning & Disability Support - Adults (18-64),
AUTISM TOGETHER,1945320,26-Nov-19,854.00,Adult Care & Health ,S6121,Learning & Disability Support - Adults (18-64),
AUTISM TOGETHER,1945320,26-Nov-19,"7,937.08",Adult Care & Health ,S6121,Learning & Disability Support - Adults (18-64),
AUTISM TOGETHER,1945320,26-Nov-19,"6,127.84",Adult Care & Health ,S6121,Learning & Disability Support - Adults (18-64),
AUTISM TOGETHER,1945320,26-Nov-19,"3,500.00",Adult Care & Health ,S6121,Learning & Disability Support - Adults (18-64),
AUTISM TOGETHER,1945320,26-Nov-19,736.96,Adult Care & Health ,S6121,Learning & Disability Support - Adults (18-64),
AUTISM TOGETHER,1945320,26-Nov-19,"5,285.16",Adult Care & Health ,S6121,Learning & Disability Support - Adults (18-64),
AUTISM TOGETHER,1945320,26-Nov-19,"2,267.40",Adult Care & Health ,S6121,Learning & Disability Support - Adults (18-64),
AUTISM TOGETHER,1945320,26-Nov-19,"1,051.26",Adult Care & Health ,S6121,Learning & Disability Support - Adults (18-64),
AUTISM TOGETHER,1945320,26-Nov-19,"2,102.52",Adult Care & Health ,S6121,Learning & Disability Support - Adults (18-64),
AUTISM TOGETHER,1945320,26-Nov-19,370.84,Adult Care & Health ,S6121,Learning & Disability Support - Adults (18-64),
AUTISM TOGETHER,1945320,26-Nov-19,710.00,Adult Care & Health ,S6121,Learning & Disability Support - Adults (18-64),
AUTISM TOGETHER,1945320,26-Nov-19,"4,413.84",Adult Care & Health ,S6131,Learning & Disability Support - Adults (18-64),
AV PARTS MASTER LIMITED,1943788,19-Nov-19,79.79,Business Management ,F4300,"Equipment, Furniture & Materials",
AV PARTS MASTER LIMITED,1943993,20-Nov-19,81.41,Business Management ,F4300,"Equipment, Furniture & Materials",
AV PARTS MASTER LIMITED,1947065,29-Nov-19,85.37,Business Management ,F4300,"Equipment, Furniture & Materials",
AVALON,1945322,26-Nov-19,-414.20,Adult Care & Health ,S6121,Customer and Client - Community Care,
AVALON,1945322,26-Nov-19,"9,250.40",Adult Care & Health ,S6121,Learning & Disability Support - Adults (18-64),
AVALON,1945322,26-Nov-19,"7,252.00",Adult Care & Health ,S6162,Mental Health Support - Adults (18-64),
AVALON SCH EDUCATIONAL TRUST,1946021,28-Nov-19,"3,163.58",Childrens Services ,E1170,Services,
AVALON SCH EDUCATIONAL TRUST,1946021,28-Nov-19,"2,485.67",Childrens Services ,E1170,Services,
AVR TRANSCRIPTION LIMITED,1944421,22-Nov-19,139.50,Business Management ,A1305,General Supplies and Services,
AYNSLEY NURSING HOME,1945324,26-Nov-19,"1,884.00",Adult Care & Health ,S6142,Memory & Cognition Support - Older People (65+),
AYNSLEY NURSING HOME,1945324,26-Nov-19,"2,044.00",Adult Care & Health ,S6142,Memory & Cognition Support - Older People (65+),
AYNSLEY NURSING HOME,1945324,26-Nov-19,"1,884.00",Adult Care & Health ,S6142,Physical Support - Adults (18-64),
AYNSLEY NURSING HOME,1945324,26-Nov-19,"2,044.00",Adult Care & Health ,S6132,Physical Support - Older People (65+),
AYNSLEY NURSING HOME,1945324,26-Nov-19,803.00,Adult Care & Health ,S6141,Physical Support - Older People (65+),
AYNSLEY NURSING HOME,1945324,26-Nov-19,"2,044.00",Adult Care & Health ,S6142,Physical Support - Older People (65+),
AYNSLEY NURSING HOME,1945324,26-Nov-19,"2,044.00",Adult Care & Health ,S6142,Physical Support - Older People (65+),
AYNSLEY NURSING HOME,1945324,26-Nov-19,"2,044.00",Adult Care & Health ,S6142,Physical Support - Older People (65+),
AYNSLEY NURSING HOME,1945324,26-Nov-19,"2,044.00",Adult Care & Health ,S6142,Physical Support - Older People (65+),
AYNSLEY NURSING HOME,1945324,26-Nov-19,"2,044.00",Adult Care & Health ,S6142,Physical Support - Older People (65+),
AYNSLEY NURSING HOME,1945324,26-Nov-19,"2,044.00",Adult Care & Health ,S6142,Physical Support - Older People (65+),
AYNSLEY NURSING HOME,1945324,26-Nov-19,"1,884.00",Adult Care & Health ,S6142,Physical Support - Older People (65+),
AYNSLEY NURSING HOME,1945324,26-Nov-19,"2,044.00",Adult Care & Health ,S6142,Physical Support - Older People (65+),
AYNSLEY NURSING HOME,1945324,26-Nov-19,450.00,Adult Care & Health ,S6142,Physical Support - Older People (65+),
AYNSLEY NURSING HOME,1945324,26-Nov-19,900.00,Adult Care & Health ,S6142,Physical Support - Older People (65+),
AYNSLEY NURSING HOME,1945324,26-Nov-19,942.00,Adult Care & Health ,S6142,Physical Support - Older People (65+),
AYNSLEY NURSING HOME,1945324,26-Nov-19,"1,682.14",Adult Care & Health ,S6142,Physical Support - Older People (65+),
AYNSLEY NURSING HOME,1945324,26-Nov-19,-740.14,Adult Care & Health ,S6142,Physical Support - Older People (65+),
AYNSLEY NURSING HOME,1945324,26-Nov-19,64.29,Adult Care & Health ,S6142,Physical Support - Older People (65+),
AYNSLEY NURSING HOME,1945324,26-Nov-19,"2,044.00",Adult Care & Health ,S6142,Sensory Support - Older People (65+),
AYNSLEY NURSING HOME,1945324,26-Nov-19,"1,884.00",Adult Care & Health ,S6142,Social Care Activities,
B & M SUPPLIES,1940689,06-Nov-19,172.22,Childrens Services ,E6763,"Equipment, Furniture & Materials",
B I R C C LIMITED,1940420,04-Nov-19,"9,756.00",Adult Care & Health ,S6121,Learning & Disability Support - Adults (18-64),
B I R C C LIMITED,1940690,06-Nov-19,"44,068.87",Adult Care & Health ,S6121,School Transport - Special,
B L ROCK FERRY LIMITED T/A THE BLACK LIONS,1940209,01-Nov-19,504.00,Economic & Housing Growth ,H6080,Expenses,
B L ROCK FERRY LIMITED T/A THE BLACK LIONS,1940209,01-Nov-19,420.00,Economic & Housing Growth ,H6080,Expenses,
B L ROCK FERRY LIMITED T/A THE BLACK LIONS,1940209,01-Nov-19,714.00,Economic & Housing Growth ,H6080,Expenses,
B L ROCK FERRY LIMITED T/A THE BLACK LIONS,1940209,01-Nov-19,"1,008.00",Economic & Housing Growth ,H6080,Expenses,
B L ROCK FERRY LIMITED T/A THE BLACK LIONS,1940209,01-Nov-19,420.00,Economic & Housing Growth ,H6080,Expenses,
B L ROCK FERRY LIMITED T/A THE BLACK LIONS,1940209,01-Nov-19,714.00,Economic & Housing Growth ,H6080,Expenses,
B L ROCK FERRY LIMITED T/A THE BLACK LIONS,1940209,01-Nov-19,114.00,Economic & Housing Growth ,H6080,Expenses,
B L ROCK FERRY LIMITED T/A THE BLACK LIONS,1940209,01-Nov-19,504.00,Economic & Housing Growth ,H6080,Expenses,
B L ROCK FERRY LIMITED T/A THE BLACK LIONS,1941052,08-Nov-19,504.00,Economic & Housing Growth ,H6080,Expenses,
B L ROCK FERRY LIMITED T/A THE BLACK LIONS,1941052,08-Nov-19,420.00,Economic & Housing Growth ,H6080,Expenses,
B L ROCK FERRY LIMITED T/A THE BLACK LIONS,1941052,08-Nov-19,714.00,Economic & Housing Growth ,H6080,Expenses,
B L ROCK FERRY LIMITED T/A THE BLACK LIONS,1941052,08-Nov-19,"1,008.00",Economic & Housing Growth ,H6080,Expenses,
B L ROCK FERRY LIMITED T/A THE BLACK LIONS,1941052,08-Nov-19,300.00,Economic & Housing Growth ,H6080,Expenses,
B L ROCK FERRY LIMITED T/A THE BLACK LIONS,1941052,08-Nov-19,714.00,Economic & Housing Growth ,H6080,Expenses,
B L ROCK FERRY LIMITED T/A THE BLACK LIONS,1941052,08-Nov-19,504.00,Economic & Housing Growth ,H6080,Expenses,
B L ROCK FERRY LIMITED T/A THE BLACK LIONS,1941052,08-Nov-19,360.00,Economic & Housing Growth ,H6080,Expenses,
B L ROCK FERRY LIMITED T/A THE BLACK LIONS,1943789,19-Nov-19,504.00,Economic & Housing Growth ,H6080,Expenses,
B L ROCK FERRY LIMITED T/A THE BLACK LIONS,1943789,19-Nov-19,420.00,Economic & Housing Growth ,H6080,Expenses,
B L ROCK FERRY LIMITED T/A THE BLACK LIONS,1943789,19-Nov-19,306.00,Economic & Housing Growth ,H6080,Expenses,
B L ROCK FERRY LIMITED T/A THE BLACK LIONS,1943789,19-Nov-19,"1,008.00",Economic & Housing Growth ,H6080,Expenses,
B L ROCK FERRY LIMITED T/A THE BLACK LIONS,1943789,19-Nov-19,504.00,Economic & Housing Growth ,H6080,Expenses,
B L ROCK FERRY LIMITED T/A THE BLACK LIONS,1943789,19-Nov-19,204.00,Economic & Housing Growth ,H6080,Expenses,
B L ROCK FERRY LIMITED T/A THE BLACK LIONS,1943789,19-Nov-19,504.00,Economic & Housing Growth ,H6080,Expenses,
B L ROCK FERRY LIMITED T/A THE BLACK LIONS,1943789,19-Nov-19,510.00,Economic & Housing Growth ,H6080,Expenses,
B L ROCK FERRY LIMITED T/A THE BLACK LIONS,1943789,19-Nov-19,180.00,Economic & Housing Growth ,H6080,Expenses,
B.I.T.S (BRITISH & INTERNATIONAL TYRE SUPPLIES),1940421,04-Nov-19,"3,109.64",Delivery Services (Assistant Chief Executive) ,T4020,Direct Transport Costs,
B.I.T.S (BRITISH & INTERNATIONAL TYRE SUPPLIES),1940846,07-Nov-19,575.64,Delivery Services (Assistant Chief Executive) ,T4020,Direct Transport Costs,
BADGE CREATION LIMITED,1941369,11-Nov-19,"1,140.60",Delivery Services (Assistant Chief Executive) ,L4820,"Printing, Stationery & General Office Expenses",
BAGNALL & MORRIS WASTE SERVICES LTD,1941054,08-Nov-19,983.81,Delivery Services (Assistant Chief Executive) ,D4040,Cleaning & Domestic Supplies,
BAGNALL & MORRIS WASTE SERVICES LTD,1941370,11-Nov-19,"2,911.91",Delivery Services (Assistant Chief Executive) ,D3310,Cleaning & Domestic Supplies,
BAGNALL & MORRIS WASTE SERVICES LTD,1941614,12-Nov-19,"4,819.07",Delivery Services (Assistant Chief Executive) ,D4040,Cleaning & Domestic Supplies,
BAGNALL & MORRIS WASTE SERVICES LTD,1943791,19-Nov-19,156.07,Economic & Housing Growth ,H7420,"Equipment, Furniture & Materials",
BALMORAL HOTEL,1940558,05-Nov-19,225.00,Business Management ,A7000,Expenses,
BANNER,1944700,25-Nov-19,79.00,Childrens Services ,E6150,"Printing, Stationery & General Office Expenses",
BARCHESTER HEALTHCARE LIMITED,1945327,26-Nov-19,"1,350.00",Adult Care & Health ,S6131,Physical Support - Older People (65+),
BARCHESTER HEALTHCARE LIMITED,1945327,26-Nov-19,"-1,425.00",Adult Care & Health ,S6131,Physical Support - Older People (65+),
BARCHESTER HEALTHCARE LIMITED,1945327,26-Nov-19,"2,100.00",Adult Care & Health ,S6131,Physical Support - Older People (65+),
BARCHESTER HEALTHCARE LIMITED,1945327,26-Nov-19,"1,816.71",Adult Care & Health ,S6141,Physical Support - Older People (65+),
BARCHESTER HEALTHCARE LIMITED,1945327,26-Nov-19,"1,884.00",Adult Care & Health ,S6141,Physical Support - Older People (65+),
BARCHESTER HEALTHCARE LIMITED,1945327,26-Nov-19,538.29,Adult Care & Health ,S6141,Physical Support - Older People (65+),
BARCHESTER HEALTHCARE LIMITED,1945327,26-Nov-19,-38.45,Adult Care & Health ,S6141,Physical Support - Older People (65+),
BARCHESTER HEALTHCARE LIMITED,1945327,26-Nov-19,269.14,Adult Care & Health ,S6141,Physical Support - Older People (65+),
BARCHESTER HEALTHCARE LIMITED,1945327,26-Nov-19,201.86,Adult Care & Health ,S6141,Physical Support - Older People (65+),
BARCHESTER HEALTHCARE LIMITED,1945327,26-Nov-19,605.57,Adult Care & Health ,S6141,Physical Support - Older People (65+),
BARCHESTER HEALTHCARE LIMITED,1945327,26-Nov-19,"1,345.71",Adult Care & Health ,S6141,Physical Support - Older People (65+),
BARCHESTER HEALTHCARE LIMITED,1945327,26-Nov-19,"1,816.71",Adult Care & Health ,S6141,Physical Support - Older People (65+),
BARCHESTER HEALTHCARE LIMITED,1945327,26-Nov-19,"-2,025.00",Adult Care & Health ,S6142,Physical Support - Older People (65+),
BARCHESTER HEALTHCARE LIMITED,1945328,26-Nov-19,"2,063.40",Adult Care & Health ,S6141,Social Support - Asylum Seeker Support,
BARLASS -PMBJ LTD T/A BARLASS ROLLER SHUTTERS,1947070,29-Nov-19,180.00,Delivery Services (Assistant Chief Executive) ,D3512,"Repairs, alterations and maintenance",
BARNARDO'S,1940213,01-Nov-19,"3,587.14",Childrens Services ,E7080,Care Provision,
BARNARDO'S,1940213,01-Nov-19,"4,673.87",Childrens Services ,E7080,Care Provision,
BARNARDO'S,1940213,01-Nov-19,"4,832.28",Childrens Services ,E7080,Care Provision,
BARNSTON BUDDIES,1946031,28-Nov-19,"8,971.00",Childrens Services ,E1170,Services,
BARNSTON BUDDIES,1946031,28-Nov-19,"7,444.43",Childrens Services ,E1170,Services,
BARRETTINE,1941372,11-Nov-19,479.28,Childrens Services ,H2110,"Equipment, Furniture & Materials",
BARRETTINE,1946032,28-Nov-19,81.24,Childrens Services ,H2110,"Equipment, Furniture & Materials",
BAY MEDIA LIMITED,1940559,05-Nov-19,"3,039.60",Business Management ,B7518,General Supplies and Services,
BEACON LANGUAGES LIMITED,1940693,06-Nov-19,41.40,Childrens Services ,E7021,Care Provision,
BEACON LANGUAGES LIMITED,1941874,13-Nov-19,41.40,Childrens Services ,E7035,Care Provision,
BEBINGTON CHILDMINDERS CARLY BAIGENT AND TERRY JONES,1946034,28-Nov-19,278.79,Childrens Services ,E1170,Services,
BEBINGTON CHILDMINDERS CARLY BAIGENT AND TERRY JONES,1946034,28-Nov-19,227.06,Childrens Services ,E1170,Services,
BEBINGTON PRESCHOOL PLAYGROUP,1946035,28-Nov-19,"8,240.70",Childrens Services ,E1170,Services,
BEBINGTON PRESCHOOL PLAYGROUP,1946035,28-Nov-19,"3,870.99",Childrens Services ,E1170,Services,
BEECHWOOD (LIVERPOOL) LIMITED,1945329,26-Nov-19,-347.00,Adult Care & Health ,S6142,Customer and Client - Community Care,
BEECHWOOD (LIVERPOOL) LIMITED,1945329,26-Nov-19,"5,154.44",Adult Care & Health ,S6142,Mental Health Support - Adults (18-64),
BEECHWOOD (LIVERPOOL) LIMITED,1945329,26-Nov-19,"5,454.80",Adult Care & Health ,S6167,Mental Health Support - Older People (65+),
BEERS TIMBER & BUILDING SUPPLIES LIMITED,1943998,20-Nov-19,203.52,Delivery Services (Assistant Chief Executive) ,L4950,"Equipment, Furniture & Materials",
BEERS TIMBER & BUILDING SUPPLIES LIMITED,1941373,11-Nov-19,102.42,Delivery Services (Assistant Chief Executive) ,L4973,Grounds Maintenance,
BEES DIALECT,1943793,19-Nov-19,60.00,Childrens Services ,E7036,Care Provision,
BEES DIALECT,1943793,19-Nov-19,115.00,Childrens Services ,E7036,Care Provision,
BEES DIALECT,1943793,19-Nov-19,77.50,Childrens Services ,E7036,Care Provision,
BELL CONTRACTS LIMITED,1943063,15-Nov-19,"5,074.00",RE  Housing & Community Safety,C4115,Expenditure on Capital Grants,
BELL CONTRACTS LIMITED,1944422,22-Nov-19,"5,993.00",RE  Housing & Community Safety,C4117,Expenditure on Capital Grants,
BELMONT SANDBANKS LIMITED,1945330,26-Nov-19,"2,520.00",Adult Care & Health ,S6132,Physical Support - Older People (65+),
BELVIDERE NURSING HOME,1945331,26-Nov-19,"1,606.00",Adult Care & Health ,S6142,Memory & Cognition Support - Older People (65+),
BELVIDERE NURSING HOME,1945331,26-Nov-19,438.00,Adult Care & Health ,S6142,Memory & Cognition Support - Older People (65+),
BELVIDERE NURSING HOME,1945331,26-Nov-19,"2,044.00",Adult Care & Health ,S6142,Mental Health Support - Older People (65+),
BELVIDERE NURSING HOME,1945331,26-Nov-19,"2,044.00",Adult Care & Health ,S6132,Physical Support - Adults (18-64),
BELVIDERE NURSING HOME,1945331,26-Nov-19,"2,044.00",Adult Care & Health ,S6141,Physical Support - Older People (65+),
BELVIDERE NURSING HOME,1945331,26-Nov-19,"2,044.00",Adult Care & Health ,S6142,Physical Support - Older People (65+),
BELVIDERE NURSING HOME,1945331,26-Nov-19,"2,044.00",Adult Care & Health ,S6142,Physical Support - Older People (65+),
BELVIDERE NURSING HOME,1945331,26-Nov-19,"2,044.00",Adult Care & Health ,S6142,Physical Support - Older People (65+),
BELVIDERE NURSING HOME,1945331,26-Nov-19,"2,044.00",Adult Care & Health ,S6142,Physical Support - Older People (65+),
BELVIDERE NURSING HOME,1945331,26-Nov-19,"2,044.00",Adult Care & Health ,S6142,Physical Support - Older People (65+),
BELVIDERE NURSING HOME,1945331,26-Nov-19,"2,044.00",Adult Care & Health ,S6142,Physical Support - Older People (65+),
BELVIDERE NURSING HOME,1945331,26-Nov-19,"2,044.00",Adult Care & Health ,S6142,Physical Support - Older People (65+),
BELVIDERE NURSING HOME,1945331,26-Nov-19,"2,044.00",Adult Care & Health ,S6142,Physical Support - Older People (65+),
BELVIDERE NURSING HOME,1945331,26-Nov-19,"2,044.00",Adult Care & Health ,S6142,Physical Support - Older People (65+),
BELVIDERE NURSING HOME,1945331,26-Nov-19,"2,044.00",Adult Care & Health ,S6142,Physical Support - Older People (65+),
BELVIDERE NURSING HOME,1945331,26-Nov-19,"2,044.00",Adult Care & Health ,S6142,Physical Support - Older People (65+),
BELVIDERE NURSING HOME,1945331,26-Nov-19,803.00,Adult Care & Health ,S6142,Physical Support - Older People (65+),
BELVIDERE NURSING HOME,1945331,26-Nov-19,511.00,Adult Care & Health ,S6142,Physical Support - Older People (65+),
BELVIDERE NURSING HOME,1945331,26-Nov-19,511.00,Adult Care & Health ,S6142,Physical Support - Older People (65+),
BELVIDERE NURSING HOME,1945331,26-Nov-19,-471.00,Adult Care & Health ,S6142,Physical Support - Older People (65+),
BELVIDERE NURSING HOME,1945331,26-Nov-19,"2,044.00",Adult Care & Health ,S6142,Physical Support - Older People (65+),
BELVIDERE NURSING HOME,1945331,26-Nov-19,"-1,884.00",Adult Care & Health ,S6142,Physical Support - Older People (65+),
BELVIDERE NURSING HOME,1945331,26-Nov-19,"2,044.00",Adult Care & Health ,S6142,Physical Support - Older People (65+),
BELVIDERE NURSING HOME,1945331,26-Nov-19,"2,044.00",Adult Care & Health ,S6142,Social Care Activities,
BENTLEY SYSTEMS (UK) LIMITED,1944423,22-Nov-19,569.63,Delivery Services (Assistant Chief Executive) ,V1910,Communications & Computing,
BENTY HEATH KINDERGARTEN,1946039,28-Nov-19,"1,956.57",Childrens Services ,E1170,Services,
BENTY HEATH KINDERGARTEN,1946039,28-Nov-19,"1,223.31",Childrens Services ,E1170,Services,
BERENDSEN UK LIMITED,1944244,21-Nov-19,"1,320.76",Delivery Services (Assistant Chief Executive) ,T4020,"Clothes, Uniform & Laundry",
BERENDSEN UK LIMITED,1944706,25-Nov-19,156.53,Delivery Services (Assistant Chief Executive) ,L4975,Direct Transport Costs,
BERNHARDS SPORTS SURFACES LIMITED,1941057,08-Nov-19,"138,169.70",Sport & Recreation,C8041,Contractors - Main,
BERRYMANS LACE MAWER LLP,1941058,08-Nov-19,188.67,Balance Sheet,00000,Debtors - Inland Revenue,
BERRYMANS LACE MAWER LLP,1941058,08-Nov-19,138.00,Balance Sheet,00000,Debtors - Inland Revenue,
BERTRAM TRADING LIMITED T/A BERTRAM LIBRARY SERVICES,1940696,06-Nov-19,343.92,Delivery Services (Assistant Chief Executive) ,L2300,"Equipment, Furniture & Materials",
BERTRAM TRADING LIMITED T/A BERTRAM LIBRARY SERVICES,1940696,06-Nov-19,178.25,Delivery Services (Assistant Chief Executive) ,L2300,"Equipment, Furniture & Materials",
BERTRAM TRADING LIMITED T/A BERTRAM LIBRARY SERVICES,1940696,06-Nov-19,113.80,Delivery Services (Assistant Chief Executive) ,L2300,"Equipment, Furniture & Materials",
BERTRAM TRADING LIMITED T/A BERTRAM LIBRARY SERVICES,1940696,06-Nov-19,32.24,Delivery Services (Assistant Chief Executive) ,L2300,"Equipment, Furniture & Materials",
BERTRAM TRADING LIMITED T/A BERTRAM LIBRARY SERVICES,1940696,06-Nov-19,37.92,Delivery Services (Assistant Chief Executive) ,L2300,"Equipment, Furniture & Materials",
BERTRAM TRADING LIMITED T/A BERTRAM LIBRARY SERVICES,1940696,06-Nov-19,94.80,Delivery Services (Assistant Chief Executive) ,L2300,"Equipment, Furniture & Materials",
BERTRAM TRADING LIMITED T/A BERTRAM LIBRARY SERVICES,1940696,06-Nov-19,54.42,Delivery Services (Assistant Chief Executive) ,L2300,"Equipment, Furniture & Materials",
BERTRAM TRADING LIMITED T/A BERTRAM LIBRARY SERVICES,1940696,06-Nov-19,130.90,Delivery Services (Assistant Chief Executive) ,L2300,"Equipment, Furniture & Materials",
BERTRAM TRADING LIMITED T/A BERTRAM LIBRARY SERVICES,1940696,06-Nov-19,125.25,Delivery Services (Assistant Chief Executive) ,L2300,"Equipment, Furniture & Materials",
BERTRAM TRADING LIMITED T/A BERTRAM LIBRARY SERVICES,1940696,06-Nov-19,42.41,Delivery Services (Assistant Chief Executive) ,L2300,"Equipment, Furniture & Materials",
BERTRAM TRADING LIMITED T/A BERTRAM LIBRARY SERVICES,1940696,06-Nov-19,565.48,Delivery Services (Assistant Chief Executive) ,L2300,"Equipment, Furniture & Materials",
BERTRAM TRADING LIMITED T/A BERTRAM LIBRARY SERVICES,1940696,06-Nov-19,122.25,Delivery Services (Assistant Chief Executive) ,L2300,"Equipment, Furniture & Materials",
BERTRAM TRADING LIMITED T/A BERTRAM LIBRARY SERVICES,1940696,06-Nov-19,121.40,Delivery Services (Assistant Chief Executive) ,L2300,"Equipment, Furniture & Materials",
BERTRAM TRADING LIMITED T/A BERTRAM LIBRARY SERVICES,1940696,06-Nov-19,23.80,Delivery Services (Assistant Chief Executive) ,L2300,"Equipment, Furniture & Materials",
BERTRAM TRADING LIMITED T/A BERTRAM LIBRARY SERVICES,1941876,13-Nov-19,442.41,Delivery Services (Assistant Chief Executive) ,L2300,"Equipment, Furniture & Materials",
BERTRAM TRADING LIMITED T/A BERTRAM LIBRARY SERVICES,1941876,13-Nov-19,132.43,Delivery Services (Assistant Chief Executive) ,L2300,"Equipment, Furniture & Materials",
BERTRAM TRADING LIMITED T/A BERTRAM LIBRARY SERVICES,1941876,13-Nov-19,86.94,Delivery Services (Assistant Chief Executive) ,L2300,"Equipment, Furniture & Materials",
BERTRAM TRADING LIMITED T/A BERTRAM LIBRARY SERVICES,1941876,13-Nov-19,64.89,Delivery Services (Assistant Chief Executive) ,L2300,"Equipment, Furniture & Materials",
BERTRAM TRADING LIMITED T/A BERTRAM LIBRARY SERVICES,1944001,20-Nov-19,213.24,Delivery Services (Assistant Chief Executive) ,L2300,"Equipment, Furniture & Materials",
BERTRAM TRADING LIMITED T/A BERTRAM LIBRARY SERVICES,1944001,20-Nov-19,120.52,Delivery Services (Assistant Chief Executive) ,L2300,"Equipment, Furniture & Materials",
BERTRAM TRADING LIMITED T/A BERTRAM LIBRARY SERVICES,1944001,20-Nov-19,125.61,Delivery Services (Assistant Chief Executive) ,L2300,"Equipment, Furniture & Materials",
BERTRAM TRADING LIMITED T/A BERTRAM LIBRARY SERVICES,1944001,20-Nov-19,23.03,Delivery Services (Assistant Chief Executive) ,L2300,"Equipment, Furniture & Materials",
BERTRAM TRADING LIMITED T/A BERTRAM LIBRARY SERVICES,1944001,20-Nov-19,241.98,Delivery Services (Assistant Chief Executive) ,L2300,"Equipment, Furniture & Materials",
BERTRAM TRADING LIMITED T/A BERTRAM LIBRARY SERVICES,1944001,20-Nov-19,161.16,Delivery Services (Assistant Chief Executive) ,L2300,"Equipment, Furniture & Materials",
BERTRAM TRADING LIMITED T/A BERTRAM LIBRARY SERVICES,1944001,20-Nov-19,405.12,Delivery Services (Assistant Chief Executive) ,L2300,"Equipment, Furniture & Materials",
BERTRAM TRADING LIMITED T/A BERTRAM LIBRARY SERVICES,1944001,20-Nov-19,95.96,Delivery Services (Assistant Chief Executive) ,L2300,"Equipment, Furniture & Materials",
BERTRAM TRADING LIMITED T/A BERTRAM LIBRARY SERVICES,1944001,20-Nov-19,182.49,Delivery Services (Assistant Chief Executive) ,L2300,"Equipment, Furniture & Materials",
BERTRAM TRADING LIMITED T/A BERTRAM LIBRARY SERVICES,1944001,20-Nov-19,46.84,Delivery Services (Assistant Chief Executive) ,L2300,"Equipment, Furniture & Materials",
BERTRAM TRADING LIMITED T/A BERTRAM LIBRARY SERVICES,1944001,20-Nov-19,575.26,Delivery Services (Assistant Chief Executive) ,L2300,"Equipment, Furniture & Materials",
BERTRAM TRADING LIMITED T/A BERTRAM LIBRARY SERVICES,1944001,20-Nov-19,122.64,Delivery Services (Assistant Chief Executive) ,L2300,"Equipment, Furniture & Materials",
BERTRAM TRADING LIMITED T/A BERTRAM LIBRARY SERVICES,1944001,20-Nov-19,728.38,Delivery Services (Assistant Chief Executive) ,L2300,"Equipment, Furniture & Materials",
BERTRAM TRADING LIMITED T/A BERTRAM LIBRARY SERVICES,1944001,20-Nov-19,17.46,Delivery Services (Assistant Chief Executive) ,L2300,"Equipment, Furniture & Materials",
BERTRAM TRADING LIMITED T/A BERTRAM LIBRARY SERVICES,1944001,20-Nov-19,57.90,Delivery Services (Assistant Chief Executive) ,L2300,"Equipment, Furniture & Materials",
BERTRAM TRADING LIMITED T/A BERTRAM LIBRARY SERVICES,1945695,27-Nov-19,502.17,Delivery Services (Assistant Chief Executive) ,L2300,"Equipment, Furniture & Materials",
BERTRAM TRADING LIMITED T/A BERTRAM LIBRARY SERVICES,1945695,27-Nov-19,173.68,Delivery Services (Assistant Chief Executive) ,L2300,"Equipment, Furniture & Materials",
BERTRAM TRADING LIMITED T/A BERTRAM LIBRARY SERVICES,1945695,27-Nov-19,379.91,Delivery Services (Assistant Chief Executive) ,L2300,"Equipment, Furniture & Materials",
BERTRAM TRADING LIMITED T/A BERTRAM LIBRARY SERVICES,1945695,27-Nov-19,128.00,Delivery Services (Assistant Chief Executive) ,L2300,"Equipment, Furniture & Materials",
BERTRAM TRADING LIMITED T/A BERTRAM LIBRARY SERVICES,1945695,27-Nov-19,27.60,Delivery Services (Assistant Chief Executive) ,L2300,"Equipment, Furniture & Materials",
BERTRAM TRADING LIMITED T/A BERTRAM LIBRARY SERVICES,1945695,27-Nov-19,110.33,Delivery Services (Assistant Chief Executive) ,L2300,"Equipment, Furniture & Materials",
BERTRAM TRADING LIMITED T/A BERTRAM LIBRARY SERVICES,1945695,27-Nov-19,188.04,Delivery Services (Assistant Chief Executive) ,L2300,"Equipment, Furniture & Materials",
BERTRAM TRADING LIMITED T/A BERTRAM LIBRARY SERVICES,1945695,27-Nov-19,11.90,Delivery Services (Assistant Chief Executive) ,L2300,"Equipment, Furniture & Materials",
BERTRAM TRADING LIMITED T/A BERTRAM LIBRARY SERVICES,1945695,27-Nov-19,23.40,Delivery Services (Assistant Chief Executive) ,L2300,"Equipment, Furniture & Materials",
BERTRAM TRADING LIMITED T/A BERTRAM LIBRARY SERVICES,1945695,27-Nov-19,151.46,Delivery Services (Assistant Chief Executive) ,L2300,"Equipment, Furniture & Materials",
BESTCO LIMITED,1944424,22-Nov-19,352.22,Delivery Services (Assistant Chief Executive) ,L3320,"Equipment, Furniture & Materials",
BESTCO LIMITED,1944424,22-Nov-19,84.71,Delivery Services (Assistant Chief Executive) ,L3320,"Repairs, alterations and maintenance",
BESTCO LIMITED,1944424,22-Nov-19,25.68,Delivery Services (Assistant Chief Executive) ,L3320,"Repairs, alterations and maintenance",
BESTCO LIMITED,1944424,22-Nov-19,246.48,Delivery Services (Assistant Chief Executive) ,L3320,"Repairs, alterations and maintenance",
BETHANY DAY NURSERY LTD,1946046,28-Nov-19,"2,509.07",Childrens Services ,E1170,Services,
BETHANY DAY NURSERY LTD,1946046,28-Nov-19,"3,512.59",Childrens Services ,E1170,Services,
BETHANY DAY NURSERY LTD,1946046,28-Nov-19,"1,842.60",Childrens Services ,E1170,Services,
BEVAN BRITTAN LLP,1943065,15-Nov-19,"1,202.88",Business Management ,B8466,Consultants,
BGC,1941619,12-Nov-19,"1,254.80",Business Management ,F8000,Debt Managment,
BGC,1946049,28-Nov-19,"3,413.70",Business Management ,F8000,Debt Managment,
BIDDYAVE BUDDIES,1946050,28-Nov-19,"7,901.25",Childrens Services ,E1170,Services,
BIDDYAVE BUDDIES,1946050,28-Nov-19,"4,935.54",Childrens Services ,E1170,Services,
BIFFA WASTE SERVICES,1942173,14-Nov-19,"18,945.48",Delivery Services (Assistant Chief Executive) ,H2940,"Equipment, Furniture & Materials",
BIFFA WASTE SERVICES,1942173,14-Nov-19,"12,440.06",Delivery Services (Assistant Chief Executive) ,H2940,"Equipment, Furniture & Materials",
BIFFA WASTE SERVICES,1946051,28-Nov-19,641.02,Delivery Services (Assistant Chief Executive) ,T4020,"Repairs, alterations and maintenance",
BIFFA WASTE SERVICES,1940697,06-Nov-19,"4,300.80",Delivery Services (Assistant Chief Executive) ,H2930,Waste Service Provider,
BIFFA WASTE SERVICES,1940697,06-Nov-19,"4,556.11",Delivery Services (Assistant Chief Executive) ,H2930,Waste Service Provider,
BIFFA WASTE SERVICES,1942173,14-Nov-19,"-4,556.11",Delivery Services (Assistant Chief Executive) ,H2930,Waste Service Provider,
BIFFA WASTE SERVICES,1942173,14-Nov-19,"1,057,703.11",Delivery Services (Assistant Chief Executive) ,H2940,Waste Service Provider,
BIFFA WASTE SERVICES,1943067,15-Nov-19,"11,080.14",Delivery Services (Assistant Chief Executive) ,H2940,Waste Service Provider,
BIFFA WASTE SERVICES,1943067,15-Nov-19,"10,274.16",Delivery Services (Assistant Chief Executive) ,H2940,Waste Service Provider,
BIFFA WASTE SERVICES,1943794,19-Nov-19,"20,964.05",Delivery Services (Assistant Chief Executive) ,H2940,Waste Service Provider,
BIFFA WASTE SERVICES,1944425,22-Nov-19,"3,789.60",Delivery Services (Assistant Chief Executive) ,L4973,Waste Service Provider,
BIFFA WASTE SERVICES,1944709,25-Nov-19,"10,008.67",Delivery Services (Assistant Chief Executive) ,H2930,Waste Service Provider,
BIFFA WASTE SERVICES,1944709,25-Nov-19,"38,981.96",Delivery Services (Assistant Chief Executive) ,H2930,Waste Service Provider,
BIFFA WASTE SERVICES,1944709,25-Nov-19,"1,578.22",Delivery Services (Assistant Chief Executive) ,H2940,Waste Service Provider,
BIFFA WASTE SERVICES,1944709,25-Nov-19,"20,386.07",Delivery Services (Assistant Chief Executive) ,H2940,Waste Service Provider,
BIRKENHEAD DRIVING SCHOOL LIMITED,1941878,13-Nov-19,475.00,Childrens Services ,E7034,Care Provision,
BIRKENHEAD MONUMENTAL LIMITED,1941375,11-Nov-19,33.06,Delivery Services (Assistant Chief Executive) ,L4950,"Equipment, Furniture & Materials",
BIRKENHEAD MONUMENTAL LIMITED,1941375,11-Nov-19,25.08,Delivery Services (Assistant Chief Executive) ,L4950,"Equipment, Furniture & Materials",
BIRKENHEAD MONUMENTAL LIMITED,1941375,11-Nov-19,148.80,Delivery Services (Assistant Chief Executive) ,L4950,"Equipment, Furniture & Materials",
BIRKENHEAD POWDER COATINGS,1945697,27-Nov-19,492.00,RE  Environment & Regulation,C5311,Contractors - Main,
BIRKENHEAD POWDER COATINGS,1943522,18-Nov-19,"1,078.00",Childrens Services ,E9965,Grants & Subscriptions,
BIRKENHEAD PREPARATORY SCHOOL,1946054,28-Nov-19,"15,139.98",Childrens Services ,E1170,Services,
BIRKENHEAD PREPARATORY SCHOOL,1946054,28-Nov-19,"10,846.56",Childrens Services ,E1170,Services,
BIRKENHEAD YMCA,1943070,15-Nov-19,169.24,Economic & Housing Growth ,H6080,Expenses,
BIRKENHEAD YMCA,1943795,19-Nov-19,"9,554.60",Economic & Housing Growth ,H7180,Government Grants,
BIRKENHEAD YMCA,1943795,19-Nov-19,"30,905.57",Economic & Housing Growth ,H7180,Grants Paid,
BIRMINGHAM CHILDREN'S HOSPITAL NHS TRUST,1940214,01-Nov-19,77.76,Business Management ,A1305,Legal Service Provider,
BIRTENSHAW,1940215,01-Nov-19,"19,475.66",Childrens Services ,E7080,Care Provision,
BIRTENSHAW,1940215,01-Nov-19,"17,847.59",Childrens Services ,E7080,Care Provision,
BIRTENSHAW,1940215,01-Nov-19,"20,440.32",Childrens Services ,E7080,Care Provision,
BIRTENSHAW,1940215,01-Nov-19,"17,802.67",Childrens Services ,E7080,Care Provision,
BIRTENSHAW,1940215,01-Nov-19,239.78,Childrens Services ,E7080,Care Provision,
BIRTENSHAW,1946055,28-Nov-19,239.78,Childrens Services ,E7080,Care Provision,
BIRTENSHAW,1947075,29-Nov-19,"3,092.44",Childrens Services ,E5870,Specialist Contracts & Fees,
BLACKPOOL FYLDE & WYRE SOCIETY FOR THE DEAF,1945334,26-Nov-19,-569.40,Adult Care & Health ,S6132,Customer and Client - Community Care,
BLACKPOOL FYLDE & WYRE SOCIETY FOR THE DEAF,1945334,26-Nov-19,"2,236.44",Adult Care & Health ,S6132,Sensory Support - Older People (65+),
BLOOD PRESSURE UK,1940423,04-Nov-19,528.96,Adult Care & Health ,P4201,Services,
BLUE LOOS EVENT HIRE LIMITED,1946056,28-Nov-19,"1,056.00",Delivery Services (Assistant Chief Executive) ,V1920,"Equipment, Furniture & Materials",
BLUEBELLS DAY NURSERY,1946057,28-Nov-19,557.57,Childrens Services ,E1170,Services,
BLUEBELLS DAY NURSERY,1946057,28-Nov-19,"6,566.70",Childrens Services ,E1170,Services,
BLUEBELLS DAY NURSERY,1946057,28-Nov-19,"3,604.07",Childrens Services ,E1170,Services,
BLUEBELLS DAY NURSERY LTD,1946058,28-Nov-19,"1,393.93",Childrens Services ,E1170,Services,
BLUEBELLS DAY NURSERY LTD,1946058,28-Nov-19,"6,354.14",Childrens Services ,E1170,Services,
BLUEBELLS DAY NURSERY LTD,1946058,28-Nov-19,"2,261.31",Childrens Services ,E1170,Services,
BMB INDUSTRIAL CABS LIMITED,1943523,18-Nov-19,"1,078.00",Childrens Services ,E9965,Grants & Subscriptions,
BNR AGENCY LIMITED,1941061,08-Nov-19,"35,786.65",Adult Care & Health ,S6121,Learning & Disability Support - Adults (18-64),
BOC LIMITED,1942178,14-Nov-19,197.64,Delivery Services (Assistant Chief Executive) ,L3950,Catering,
BOC LIMITED,1941621,12-Nov-19,177.73,Delivery Services (Assistant Chief Executive) ,V1920,"Equipment, Furniture & Materials",
BODDY LANGUAGE LIMITED,1940424,04-Nov-19,90.00,Childrens Services ,E7029,Care Provision,
BODDY LANGUAGE LIMITED,1943796,19-Nov-19,90.00,Childrens Services ,E7029,Care Provision,
BODDY LANGUAGE LIMITED,1943796,19-Nov-19,180.00,Childrens Services ,E7029,Care Provision,
BOLINDA UK LIMITED,1940699,06-Nov-19,479.40,Balance Sheet,00000,Debtors - Inland Revenue,
BOLINDA UK LIMITED,1940699,06-Nov-19,479.40,Balance Sheet,00000,Debtors - Inland Revenue,
BOLINDA UK LIMITED,1944003,20-Nov-19,527.34,Balance Sheet,00000,Debtors - Inland Revenue,
BONDCARE WILLINGTON LIMITED,1945335,26-Nov-19,"2,044.00",Adult Care & Health ,S6121,Learning & Disability Support - Adults (18-64),
BONDCARE WILLINGTON LIMITED,1945335,26-Nov-19,"2,100.00",Adult Care & Health ,S6121,Learning & Disability Support - Older People (65+),
BONDCARE WILLINGTON LIMITED,1945335,26-Nov-19,540.00,Adult Care & Health ,S6121,Learning & Disability Support - Older People (65+),
BONDCARE WILLINGTON LIMITED,1945335,26-Nov-19,"2,116.00",Adult Care & Health ,S6131,Memory & Cognition Support - Older People (65+),
BONDCARE WILLINGTON LIMITED,1945335,26-Nov-19,"2,116.00",Adult Care & Health ,S6131,Memory & Cognition Support - Older People (65+),
BONDCARE WILLINGTON LIMITED,1945335,26-Nov-19,"2,100.00",Adult Care & Health ,S6131,Memory & Cognition Support - Older People (65+),
BONDCARE WILLINGTON LIMITED,1945335,26-Nov-19,"2,116.00",Adult Care & Health ,S6131,Memory & Cognition Support - Older People (65+),
BONDCARE WILLINGTON LIMITED,1945335,26-Nov-19,"2,100.00",Adult Care & Health ,S6132,Memory & Cognition Support - Older People (65+),
BONDCARE WILLINGTON LIMITED,1945335,26-Nov-19,"2,116.00",Adult Care & Health ,S6167,Memory & Cognition Support - Older People (65+),
BONDCARE WILLINGTON LIMITED,1945335,26-Nov-19,"2,116.00",Adult Care & Health ,S6167,Memory & Cognition Support - Older People (65+),
BONDCARE WILLINGTON LIMITED,1945335,26-Nov-19,"2,116.00",Adult Care & Health ,S6167,Memory & Cognition Support - Older People (65+),
BONDCARE WILLINGTON LIMITED,1945335,26-Nov-19,"2,100.00",Adult Care & Health ,S6131,Mental Health Support - Older People (65+),
BONDCARE WILLINGTON LIMITED,1945335,26-Nov-19,"2,116.00",Adult Care & Health ,S6131,Mental Health Support - Older People (65+),
BONDCARE WILLINGTON LIMITED,1945335,26-Nov-19,"2,116.00",Adult Care & Health ,S6131,Mental Health Support - Older People (65+),
BONDCARE WILLINGTON LIMITED,1945335,26-Nov-19,"2,116.00",Adult Care & Health ,S6132,Mental Health Support - Older People (65+),
BONDCARE WILLINGTON LIMITED,1945335,26-Nov-19,"2,100.00",Adult Care & Health ,S6167,Mental Health Support - Older People (65+),
BONDCARE WILLINGTON LIMITED,1945335,26-Nov-19,"2,116.00",Adult Care & Health ,S6167,Mental Health Support - Older People (65+),
BONDCARE WILLINGTON LIMITED,1945335,26-Nov-19,"2,100.00",Adult Care & Health ,S6131,Physical Support - Older People (65+),
BONDCARE WILLINGTON LIMITED,1945335,26-Nov-19,"2,044.00",Adult Care & Health ,S6131,Physical Support - Older People (65+),
BONDCARE WILLINGTON LIMITED,1945335,26-Nov-19,"2,116.00",Adult Care & Health ,S6131,Physical Support - Older People (65+),
BONDCARE WILLINGTON LIMITED,1945335,26-Nov-19,"1,884.00",Adult Care & Health ,S6131,Physical Support - Older People (65+),
BONDCARE WILLINGTON LIMITED,1945335,26-Nov-19,200.00,Adult Care & Health ,S6131,Physical Support - Older People (65+),
BONDCARE WILLINGTON LIMITED,1945335,26-Nov-19,"2,044.00",Adult Care & Health ,S6131,Physical Support - Older People (65+),
BONDCARE WILLINGTON LIMITED,1945335,26-Nov-19,"1,884.00",Adult Care & Health ,S6131,Physical Support - Older People (65+),
BONDCARE WILLINGTON LIMITED,1945335,26-Nov-19,"2,116.00",Adult Care & Health ,S6131,Physical Support - Older People (65+),
BONDCARE WILLINGTON LIMITED,1945335,26-Nov-19,"2,044.00",Adult Care & Health ,S6131,Physical Support - Older People (65+),
BONDCARE WILLINGTON LIMITED,1945335,26-Nov-19,"1,884.00",Adult Care & Health ,S6131,Physical Support - Older People (65+),
BONDCARE WILLINGTON LIMITED,1945335,26-Nov-19,"2,116.00",Adult Care & Health ,S6132,Physical Support - Older People (65+),
BONDCARE WILLINGTON LIMITED,1945335,26-Nov-19,"2,100.00",Adult Care & Health ,S6132,Physical Support - Older People (65+),
BONDCARE WILLINGTON LIMITED,1945335,26-Nov-19,"2,100.00",Adult Care & Health ,S6132,Physical Support - Older People (65+),
BONDCARE WILLINGTON LIMITED,1945335,26-Nov-19,"2,116.00",Adult Care & Health ,S6132,Physical Support - Older People (65+),
BONDCARE WILLINGTON LIMITED,1945335,26-Nov-19,"2,116.00",Adult Care & Health ,S6132,Physical Support - Older People (65+),
BONDCARE WILLINGTON LIMITED,1945335,26-Nov-19,"2,116.00",Adult Care & Health ,S6167,Physical Support - Older People (65+),
BONDCARE WILLINGTON LIMITED,1945335,26-Nov-19,"2,100.00",Adult Care & Health ,S6131,Sensory Support - Older People (65+),
BOWLAND PSYCHOLOGICAL SERVICES,1943073,15-Nov-19,880.00,Business Management ,A1305,Legal Service Provider,
BOYSENBERRY CATERING,1941880,13-Nov-19,369.00,Business Management ,A2000,Catering,
BRAKES BROS LIMITED,1940216,01-Nov-19,251.36,Delivery Services (Assistant Chief Executive) ,D2700,Catering,
BRAKES BROS LIMITED,1940564,05-Nov-19,233.71,Delivery Services (Assistant Chief Executive) ,L3950,Catering,
BRAKES BROS LIMITED,1943797,19-Nov-19,455.42,Delivery Services (Assistant Chief Executive) ,L3950,Catering,
BRENNAN PROPERTY MANAGEMENT,1944431,22-Nov-19,"1,185.00",Economic & Housing Growth ,H6080,Expenses,
BRENNTAG UK LIMITED,1941881,13-Nov-19,463.03,Delivery Services (Assistant Chief Executive) ,L3180,"Equipment, Furniture & Materials",
BRENNTAG UK LIMITED,1941881,13-Nov-19,246.21,Delivery Services (Assistant Chief Executive) ,L3250,"Equipment, Furniture & Materials",
BRENNTAG UK LIMITED,1942184,14-Nov-19,306.38,Delivery Services (Assistant Chief Executive) ,L3190,"Equipment, Furniture & Materials",
BRIDGES EDUCATION LIMITED,1947080,29-Nov-19,145.20,Business Management ,A1305,General Supplies and Services,
BRIGHT SMILES DAY NURSERY,1946063,28-Nov-19,557.57,Childrens Services ,E1170,Services,
BRIGHT SMILES DAY NURSERY,1946063,28-Nov-19,"2,763.90",Childrens Services ,E1170,Services,
BRIGHT SMILES DAY NURSERY,1946063,28-Nov-19,844.53,Childrens Services ,E1170,Services,
BRIGHT STARS CHILDCARE - CHARLOTTE TULLETT,1946064,28-Nov-19,227.06,Childrens Services ,E1170,Services,
BRIMARK SIGNS LIMITED,1941377,11-Nov-19,499.68,Childrens Services ,E6150,"Advertising, Publicity & Marketing",
BRITISH GAS,CC,18-Oct-19,10.00,Economic & Housing Growth ,H6080,Energy Costs,
BRITISH GAS,CC,19-Oct-19,10.00,Economic & Housing Growth ,H6080,Energy Costs,
BRITISH GAS,CC,19-Oct-19,10.00,Economic & Housing Growth ,H6080,Energy Costs,
BRITISH GAS,CC,31-Oct-19,60.00,Economic & Housing Growth ,H6080,Energy Costs,
BRITISH GAS,CC,02-Nov-19,10.00,Economic & Housing Growth ,H6080,Energy Costs,
BRITISH GAS,CC,04-Nov-19,15.00,Economic & Housing Growth ,H6080,Energy Costs,
BRITISH GAS,CC,04-Nov-19,15.00,Economic & Housing Growth ,H6080,Energy Costs,
BRITISH GAS,CC,04-Nov-19,15.00,Economic & Housing Growth ,H6080,Energy Costs,
BRITISH GAS,CC,05-Nov-19,15.00,Economic & Housing Growth ,H6080,Energy Costs,
BRITISH GAS,CC,05-Nov-19,15.00,Economic & Housing Growth ,H6080,Energy Costs,
BRITISH GAS,CC,05-Nov-19,10.00,Economic & Housing Growth ,H6080,Energy Costs,
BRITISH GAS,CC,09-Nov-19,10.00,Economic & Housing Growth ,H6080,Energy Costs,
BRITISH GAS,CC,18-Nov-19,20.00,Economic & Housing Growth ,H6080,Energy Costs,
BRITISH GAS,CC,18-Nov-19,20.00,Economic & Housing Growth ,H6080,Energy Costs,
BRITISH GAS,CC,19-Nov-19,10.00,Economic & Housing Growth ,H6080,Energy Costs,
BRITISH GAS,CC,19-Nov-19,10.00,Economic & Housing Growth ,H6080,Energy Costs,
BRITISH GAS BUSINESS,1941882,13-Nov-19,273.02,Adult Care & Health ,S5340,Energy Costs,
BRITISH GAS BUSINESS,1941882,13-Nov-19,273.31,Adult Care & Health ,S6136,Energy Costs,
BRITISH GAS BUSINESS,1941882,13-Nov-19,649.00,Adult Care & Health ,S6244,Energy Costs,
BRITISH GAS BUSINESS,1941882,13-Nov-19,"1,040.76",Childrens Services ,E1220,Energy Costs,
BRITISH GAS BUSINESS,1941882,13-Nov-19,696.66,Childrens Services ,E1410,Energy Costs,
BRITISH GAS BUSINESS,1941882,13-Nov-19,360.34,Childrens Services ,E1410,Energy Costs,
BRITISH GAS BUSINESS,1941882,13-Nov-19,"1,108.12",Childrens Services ,E1420,Energy Costs,
BRITISH GAS BUSINESS,1941882,13-Nov-19,140.87,Childrens Services ,E1440,Energy Costs,
BRITISH GAS BUSINESS,1941882,13-Nov-19,101.31,Childrens Services ,E6350,Energy Costs,
BRITISH GAS BUSINESS,1941882,13-Nov-19,766.42,Childrens Services ,E6763,Energy Costs,
BRITISH GAS BUSINESS,1941882,13-Nov-19,126.97,Childrens Services ,E7483,Energy Costs,
BRITISH GAS BUSINESS,1941882,13-Nov-19,96.11,Childrens Services ,E7493,Energy Costs,
BRITISH GAS BUSINESS,1941882,13-Nov-19,58.76,Childrens Services ,E8610,Energy Costs,
BRITISH GAS BUSINESS,1941882,13-Nov-19,264.25,Childrens Services ,E8660,Energy Costs,
BRITISH GAS BUSINESS,1941882,13-Nov-19,570.66,Childrens Services ,E8940,Energy Costs,
BRITISH GAS BUSINESS,1941882,13-Nov-19,252.49,Childrens Services ,E9160,Energy Costs,
BRITISH GAS BUSINESS,1941882,13-Nov-19,160.24,Childrens Services ,E9890,Energy Costs,
BRITISH GAS BUSINESS,1941882,13-Nov-19,31.12,Childrens Services ,H2910,Energy Costs,
BRITISH GAS BUSINESS,1941882,13-Nov-19,13.91,Childrens Services ,H2910,Energy Costs,
BRITISH GAS BUSINESS,1941882,13-Nov-19,28.30,Childrens Services ,H2910,Energy Costs,
BRITISH GAS BUSINESS,1941882,13-Nov-19,110.58,Childrens Services ,H2910,Energy Costs,
BRITISH GAS BUSINESS,1941882,13-Nov-19,39.23,Childrens Services ,H2910,Energy Costs,
BRITISH GAS BUSINESS,1941378,11-Nov-19,45.00,Delivery Services (Assistant Chief Executive) ,D4040,Energy Costs,
BRITISH GAS BUSINESS,1941626,12-Nov-19,18.70,Delivery Services (Assistant Chief Executive) ,D2140,Energy Costs,
BRITISH GAS BUSINESS,1941626,12-Nov-19,18.09,Delivery Services (Assistant Chief Executive) ,D2140,Energy Costs,
BRITISH GAS BUSINESS,1941626,12-Nov-19,18.70,Delivery Services (Assistant Chief Executive) ,D2140,Energy Costs,
BRITISH GAS BUSINESS,1941626,12-Nov-19,18.09,Delivery Services (Assistant Chief Executive) ,D2140,Energy Costs,
BRITISH GAS BUSINESS,1941626,12-Nov-19,18.70,Delivery Services (Assistant Chief Executive) ,D2140,Energy Costs,
BRITISH GAS BUSINESS,1941626,12-Nov-19,18.70,Delivery Services (Assistant Chief Executive) ,D2140,Energy Costs,
BRITISH GAS BUSINESS,1941626,12-Nov-19,16.88,Delivery Services (Assistant Chief Executive) ,D2140,Energy Costs,
BRITISH GAS BUSINESS,1941626,12-Nov-19,17.49,Delivery Services (Assistant Chief Executive) ,D2140,Energy Costs,
BRITISH GAS BUSINESS,1941626,12-Nov-19,18.70,Delivery Services (Assistant Chief Executive) ,D2140,Energy Costs,
BRITISH GAS BUSINESS,1941626,12-Nov-19,19.29,Delivery Services (Assistant Chief Executive) ,D2140,Energy Costs,
BRITISH GAS BUSINESS,1941626,12-Nov-19,32.57,Delivery Services (Assistant Chief Executive) ,D2140,Energy Costs,
BRITISH GAS BUSINESS,1941626,12-Nov-19,123.53,Delivery Services (Assistant Chief Executive) ,D2140,Energy Costs,
BRITISH GAS BUSINESS,1941626,12-Nov-19,-123.53,Delivery Services (Assistant Chief Executive) ,D2140,Energy Costs,
BRITISH GAS BUSINESS,1941626,12-Nov-19,24.67,Delivery Services (Assistant Chief Executive) ,D2140,Energy Costs,
BRITISH GAS BUSINESS,1941626,12-Nov-19,22.29,Delivery Services (Assistant Chief Executive) ,D2140,Energy Costs,
BRITISH GAS BUSINESS,1941626,12-Nov-19,23.31,Delivery Services (Assistant Chief Executive) ,D2140,Energy Costs,
BRITISH GAS BUSINESS,1941626,12-Nov-19,25.47,Delivery Services (Assistant Chief Executive) ,D2140,Energy Costs,
BRITISH GAS BUSINESS,1941626,12-Nov-19,24.69,Delivery Services (Assistant Chief Executive) ,D3310,Energy Costs,
BRITISH GAS BUSINESS,1941882,13-Nov-19,76.15,Delivery Services (Assistant Chief Executive) ,D2020,Energy Costs,
BRITISH GAS BUSINESS,1941882,13-Nov-19,39.82,Delivery Services (Assistant Chief Executive) ,D2020,Energy Costs,
BRITISH GAS BUSINESS,1941882,13-Nov-19,304.82,Delivery Services (Assistant Chief Executive) ,D2140,Energy Costs,
BRITISH GAS BUSINESS,1941882,13-Nov-19,872.01,Delivery Services (Assistant Chief Executive) ,D2180,Energy Costs,
BRITISH GAS BUSINESS,1941882,13-Nov-19,"5,082.84",Delivery Services (Assistant Chief Executive) ,D2550,Energy Costs,
BRITISH GAS BUSINESS,1941882,13-Nov-19,"1,296.45",Delivery Services (Assistant Chief Executive) ,D2550,Energy Costs,
BRITISH GAS BUSINESS,1941882,13-Nov-19,7.27,Delivery Services (Assistant Chief Executive) ,D2550,Energy Costs,
BRITISH GAS BUSINESS,1941882,13-Nov-19,"2,375.50",Delivery Services (Assistant Chief Executive) ,D2550,Energy Costs,
BRITISH GAS BUSINESS,1941882,13-Nov-19,569.96,Delivery Services (Assistant Chief Executive) ,D2610,Energy Costs,
BRITISH GAS BUSINESS,1941882,13-Nov-19,85.06,Delivery Services (Assistant Chief Executive) ,D2610,Energy Costs,
BRITISH GAS BUSINESS,1941882,13-Nov-19,6.07,Delivery Services (Assistant Chief Executive) ,D2610,Energy Costs,
BRITISH GAS BUSINESS,1941882,13-Nov-19,"1,805.17",Delivery Services (Assistant Chief Executive) ,D2620,Energy Costs,
BRITISH GAS BUSINESS,1941882,13-Nov-19,"1,127.58",Delivery Services (Assistant Chief Executive) ,D2640,Energy Costs,
BRITISH GAS BUSINESS,1941882,13-Nov-19,68.20,Delivery Services (Assistant Chief Executive) ,D2640,Energy Costs,
BRITISH GAS BUSINESS,1941882,13-Nov-19,320.47,Delivery Services (Assistant Chief Executive) ,D2650,Energy Costs,
BRITISH GAS BUSINESS,1941882,13-Nov-19,"1,433.62",Delivery Services (Assistant Chief Executive) ,D2680,Energy Costs,
BRITISH GAS BUSINESS,1941882,13-Nov-19,"2,536.41",Delivery Services (Assistant Chief Executive) ,D2700,Energy Costs,
BRITISH GAS BUSINESS,1941882,13-Nov-19,17.71,Delivery Services (Assistant Chief Executive) ,D3150,Energy Costs,
BRITISH GAS BUSINESS,1941882,13-Nov-19,41.39,Delivery Services (Assistant Chief Executive) ,D3150,Energy Costs,
BRITISH GAS BUSINESS,1941882,13-Nov-19,8.21,Delivery Services (Assistant Chief Executive) ,D3150,Energy Costs,
BRITISH GAS BUSINESS,1941882,13-Nov-19,289.47,Delivery Services (Assistant Chief Executive) ,D3160,Energy Costs,
BRITISH GAS BUSINESS,1941882,13-Nov-19,8.21,Delivery Services (Assistant Chief Executive) ,D3310,Energy Costs,
BRITISH GAS BUSINESS,1941882,13-Nov-19,13.63,Delivery Services (Assistant Chief Executive) ,D3310,Energy Costs,
BRITISH GAS BUSINESS,1941882,13-Nov-19,8.90,Delivery Services (Assistant Chief Executive) ,D3310,Energy Costs,
BRITISH GAS BUSINESS,1941882,13-Nov-19,-17.45,Delivery Services (Assistant Chief Executive) ,D3310,Energy Costs,
BRITISH GAS BUSINESS,1941882,13-Nov-19,32.21,Delivery Services (Assistant Chief Executive) ,D3310,Energy Costs,
BRITISH GAS BUSINESS,1941882,13-Nov-19,46.51,Delivery Services (Assistant Chief Executive) ,D3310,Energy Costs,
BRITISH GAS BUSINESS,1941882,13-Nov-19,7.41,Delivery Services (Assistant Chief Executive) ,D3310,Energy Costs,
BRITISH GAS BUSINESS,1941882,13-Nov-19,365.71,Delivery Services (Assistant Chief Executive) ,D3310,Energy Costs,
BRITISH GAS BUSINESS,1941882,13-Nov-19,8.37,Delivery Services (Assistant Chief Executive) ,D3310,Energy Costs,
BRITISH GAS BUSINESS,1941882,13-Nov-19,256.36,Delivery Services (Assistant Chief Executive) ,D3501,Energy Costs,
BRITISH GAS BUSINESS,1941882,13-Nov-19,743.10,Delivery Services (Assistant Chief Executive) ,D3503,Energy Costs,
BRITISH GAS BUSINESS,1941882,13-Nov-19,414.86,Delivery Services (Assistant Chief Executive) ,D3504,Energy Costs,
BRITISH GAS BUSINESS,1941882,13-Nov-19,302.92,Delivery Services (Assistant Chief Executive) ,D3505,Energy Costs,
BRITISH GAS BUSINESS,1941882,13-Nov-19,458.61,Delivery Services (Assistant Chief Executive) ,D3506,Energy Costs,
BRITISH GAS BUSINESS,1941882,13-Nov-19,297.54,Delivery Services (Assistant Chief Executive) ,D3507,Energy Costs,
BRITISH GAS BUSINESS,1941882,13-Nov-19,683.70,Delivery Services (Assistant Chief Executive) ,D3508,Energy Costs,
BRITISH GAS BUSINESS,1941882,13-Nov-19,128.06,Delivery Services (Assistant Chief Executive) ,D3510,Energy Costs,
BRITISH GAS BUSINESS,1941882,13-Nov-19,949.03,Delivery Services (Assistant Chief Executive) ,D3512,Energy Costs,
BRITISH GAS BUSINESS,1941882,13-Nov-19,135.58,Delivery Services (Assistant Chief Executive) ,D3513,Energy Costs,
BRITISH GAS BUSINESS,1941882,13-Nov-19,94.53,Delivery Services (Assistant Chief Executive) ,D3514,Energy Costs,
BRITISH GAS BUSINESS,1941882,13-Nov-19,542.66,Delivery Services (Assistant Chief Executive) ,D3518,Energy Costs,
BRITISH GAS BUSINESS,1941882,13-Nov-19,167.03,Delivery Services (Assistant Chief Executive) ,D3519,Energy Costs,
BRITISH GAS BUSINESS,1941882,13-Nov-19,948.84,Delivery Services (Assistant Chief Executive) ,D3520,Energy Costs,
BRITISH GAS BUSINESS,1941882,13-Nov-19,218.00,Delivery Services (Assistant Chief Executive) ,D3521,Energy Costs,
BRITISH GAS BUSINESS,1941882,13-Nov-19,649.60,Delivery Services (Assistant Chief Executive) ,D3541,Energy Costs,
BRITISH GAS BUSINESS,1941882,13-Nov-19,24.83,Delivery Services (Assistant Chief Executive) ,D3542,Energy Costs,
BRITISH GAS BUSINESS,1941882,13-Nov-19,79.41,Delivery Services (Assistant Chief Executive) ,D3543,Energy Costs,
BRITISH GAS BUSINESS,1941882,13-Nov-19,57.44,Delivery Services (Assistant Chief Executive) ,D3547,Energy Costs,
BRITISH GAS BUSINESS,1941882,13-Nov-19,8.21,Delivery Services (Assistant Chief Executive) ,D5500,Energy Costs,
BRITISH GAS BUSINESS,1941882,13-Nov-19,8.52,Delivery Services (Assistant Chief Executive) ,L2430,Energy Costs,
BRITISH GAS BUSINESS,1941882,13-Nov-19,960.52,Delivery Services (Assistant Chief Executive) ,L2470,Energy Costs,
BRITISH GAS BUSINESS,1941882,13-Nov-19,227.70,Delivery Services (Assistant Chief Executive) ,L2470,Energy Costs,
BRITISH GAS BUSINESS,1941882,13-Nov-19,8.21,Delivery Services (Assistant Chief Executive) ,L2470,Energy Costs,
BRITISH GAS BUSINESS,1941882,13-Nov-19,"1,965.74",Delivery Services (Assistant Chief Executive) ,L3030,Energy Costs,
BRITISH GAS BUSINESS,1941882,13-Nov-19,15.16,Delivery Services (Assistant Chief Executive) ,L3190,Energy Costs,
BRITISH GAS BUSINESS,1941882,13-Nov-19,279.30,Delivery Services (Assistant Chief Executive) ,L3190,Energy Costs,
BRITISH GAS BUSINESS,1941882,13-Nov-19,134.42,Delivery Services (Assistant Chief Executive) ,L3402,Energy Costs,
BRITISH GAS BUSINESS,1941882,13-Nov-19,58.04,Delivery Services (Assistant Chief Executive) ,L3402,Energy Costs,
BRITISH GAS BUSINESS,1941882,13-Nov-19,8.77,Delivery Services (Assistant Chief Executive) ,L3402,Energy Costs,
BRITISH GAS BUSINESS,1941882,13-Nov-19,224.37,Delivery Services (Assistant Chief Executive) ,L3402,Energy Costs,
BRITISH GAS BUSINESS,1941882,13-Nov-19,38.17,Delivery Services (Assistant Chief Executive) ,L3403,Energy Costs,
BRITISH GAS BUSINESS,1941882,13-Nov-19,5.88,Delivery Services (Assistant Chief Executive) ,L3403,Energy Costs,
BRITISH GAS BUSINESS,1941882,13-Nov-19,621.30,Delivery Services (Assistant Chief Executive) ,L3403,Energy Costs,
BRITISH GAS BUSINESS,1941882,13-Nov-19,106.60,Delivery Services (Assistant Chief Executive) ,L3720,Energy Costs,
BRITISH GAS BUSINESS,1941882,13-Nov-19,280.89,Delivery Services (Assistant Chief Executive) ,L3720,Energy Costs,
BRITISH GAS BUSINESS,1941882,13-Nov-19,"2,052.79",Delivery Services (Assistant Chief Executive) ,L3910,Energy Costs,
BRITISH GAS BUSINESS,1941882,13-Nov-19,46.85,Delivery Services (Assistant Chief Executive) ,L4820,Energy Costs,
BRITISH GAS BUSINESS,1941882,13-Nov-19,28.64,Delivery Services (Assistant Chief Executive) ,L4820,Energy Costs,
BRITISH GAS BUSINESS,1941882,13-Nov-19,34.59,Delivery Services (Assistant Chief Executive) ,L4820,Energy Costs,
BRITISH GAS BUSINESS,1941882,13-Nov-19,303.92,Delivery Services (Assistant Chief Executive) ,L4820,Energy Costs,
BRITISH GAS BUSINESS,1941882,13-Nov-19,34.70,Delivery Services (Assistant Chief Executive) ,L4950,Energy Costs,
BRITISH GAS BUSINESS,1941882,13-Nov-19,111.24,Delivery Services (Assistant Chief Executive) ,L4950,Energy Costs,
BRITISH GAS BUSINESS,1941882,13-Nov-19,14.23,Delivery Services (Assistant Chief Executive) ,L4950,Energy Costs,
BRITISH GAS BUSINESS,1941882,13-Nov-19,135.74,Delivery Services (Assistant Chief Executive) ,L4950,Energy Costs,
BRITISH GAS BUSINESS,1941882,13-Nov-19,126.14,Delivery Services (Assistant Chief Executive) ,L4950,Energy Costs,
BRITISH GAS BUSINESS,1941882,13-Nov-19,377.29,Delivery Services (Assistant Chief Executive) ,L4950,Energy Costs,
BRITISH GAS BUSINESS,1941882,13-Nov-19,113.89,Delivery Services (Assistant Chief Executive) ,L4950,Energy Costs,
BRITISH GAS BUSINESS,1941882,13-Nov-19,153.88,Delivery Services (Assistant Chief Executive) ,L4950,Energy Costs,
BRITISH GAS BUSINESS,1941882,13-Nov-19,97.44,Delivery Services (Assistant Chief Executive) ,L4950,Energy Costs,
BRITISH GAS BUSINESS,1941882,13-Nov-19,100.82,Delivery Services (Assistant Chief Executive) ,L4950,Energy Costs,
BRITISH GAS BUSINESS,1941882,13-Nov-19,"3,814.65",Delivery Services (Assistant Chief Executive) ,L4950,Energy Costs,
BRITISH GAS BUSINESS,1941882,13-Nov-19,82.18,Delivery Services (Assistant Chief Executive) ,L4971,Energy Costs,
BRITISH GAS BUSINESS,1941882,13-Nov-19,250.50,Delivery Services (Assistant Chief Executive) ,L4971,Energy Costs,
BRITISH GAS BUSINESS,1941882,13-Nov-19,9.04,Delivery Services (Assistant Chief Executive) ,L4971,Energy Costs,
BRITISH GAS BUSINESS,1941882,13-Nov-19,114.39,Delivery Services (Assistant Chief Executive) ,L4971,Energy Costs,
BRITISH GAS BUSINESS,1941882,13-Nov-19,7.94,Delivery Services (Assistant Chief Executive) ,L4971,Energy Costs,
BRITISH GAS BUSINESS,1941882,13-Nov-19,44.53,Delivery Services (Assistant Chief Executive) ,L4971,Energy Costs,
BRITISH GAS BUSINESS,1941882,13-Nov-19,13.67,Delivery Services (Assistant Chief Executive) ,L4971,Energy Costs,
BRITISH GAS BUSINESS,1941882,13-Nov-19,19.37,Delivery Services (Assistant Chief Executive) ,L4971,Energy Costs,
BRITISH GAS BUSINESS,1941882,13-Nov-19,400.41,Delivery Services (Assistant Chief Executive) ,L4971,Energy Costs,
BRITISH GAS BUSINESS,1941882,13-Nov-19,39.23,Delivery Services (Assistant Chief Executive) ,L4971,Energy Costs,
BRITISH GAS BUSINESS,1941882,13-Nov-19,155.54,Delivery Services (Assistant Chief Executive) ,L4971,Energy Costs,
BRITISH GAS BUSINESS,1941882,13-Nov-19,167.79,Delivery Services (Assistant Chief Executive) ,L4971,Energy Costs,
BRITISH GAS BUSINESS,1941882,13-Nov-19,29.30,Delivery Services (Assistant Chief Executive) ,L4971,Energy Costs,
BRITISH GAS BUSINESS,1941882,13-Nov-19,13.91,Delivery Services (Assistant Chief Executive) ,L4971,Energy Costs,
BRITISH GAS BUSINESS,1941882,13-Nov-19,701.43,Delivery Services (Assistant Chief Executive) ,L4971,Energy Costs,
BRITISH GAS BUSINESS,1941882,13-Nov-19,109.00,Delivery Services (Assistant Chief Executive) ,L4971,Energy Costs,
BRITISH GAS BUSINESS,1941882,13-Nov-19,118.10,Delivery Services (Assistant Chief Executive) ,L4971,Energy Costs,
BRITISH GAS BUSINESS,1941882,13-Nov-19,8.21,Delivery Services (Assistant Chief Executive) ,L4971,Energy Costs,
BRITISH GAS BUSINESS,1941882,13-Nov-19,30.39,Delivery Services (Assistant Chief Executive) ,L4971,Energy Costs,
BRITISH GAS BUSINESS,1941882,13-Nov-19,11.25,Delivery Services (Assistant Chief Executive) ,L4971,Energy Costs,
BRITISH GAS BUSINESS,1941882,13-Nov-19,147.16,Delivery Services (Assistant Chief Executive) ,L4971,Energy Costs,
BRITISH GAS BUSINESS,1941882,13-Nov-19,138.23,Delivery Services (Assistant Chief Executive) ,L4971,Energy Costs,
BRITISH GAS BUSINESS,1941882,13-Nov-19,36.85,Delivery Services (Assistant Chief Executive) ,L4971,Energy Costs,
BRITISH GAS BUSINESS,1941882,13-Nov-19,9.10,Delivery Services (Assistant Chief Executive) ,L4972,Energy Costs,
BRITISH GAS BUSINESS,1941882,13-Nov-19,8.70,Delivery Services (Assistant Chief Executive) ,L4972,Energy Costs,
BRITISH GAS BUSINESS,1941882,13-Nov-19,14.66,Delivery Services (Assistant Chief Executive) ,L4972,Energy Costs,
BRITISH GAS BUSINESS,1941882,13-Nov-19,8.11,Delivery Services (Assistant Chief Executive) ,L4972,Energy Costs,
BRITISH GAS BUSINESS,1941882,13-Nov-19,7.94,Delivery Services (Assistant Chief Executive) ,L4972,Energy Costs,
BRITISH GAS BUSINESS,1941882,13-Nov-19,14.66,Delivery Services (Assistant Chief Executive) ,L4972,Energy Costs,
BRITISH GAS BUSINESS,1941882,13-Nov-19,17.80,Delivery Services (Assistant Chief Executive) ,L4972,Energy Costs,
BRITISH GAS BUSINESS,1941882,13-Nov-19,56.12,Delivery Services (Assistant Chief Executive) ,L4972,Energy Costs,
BRITISH GAS BUSINESS,1941882,13-Nov-19,340.83,Delivery Services (Assistant Chief Executive) ,L4972,Energy Costs,
BRITISH GAS BUSINESS,1941882,13-Nov-19,"1,545.13",Delivery Services (Assistant Chief Executive) ,L4972,Energy Costs,
BRITISH GAS BUSINESS,1941882,13-Nov-19,236.74,Delivery Services (Assistant Chief Executive) ,L4972,Energy Costs,
BRITISH GAS BUSINESS,1941882,13-Nov-19,55.89,Delivery Services (Assistant Chief Executive) ,L4972,Energy Costs,
BRITISH GAS BUSINESS,1941882,13-Nov-19,156.83,Delivery Services (Assistant Chief Executive) ,L4972,Energy Costs,
BRITISH GAS BUSINESS,1941882,13-Nov-19,64.90,Delivery Services (Assistant Chief Executive) ,L4972,Energy Costs,
BRITISH GAS BUSINESS,1941882,13-Nov-19,26.32,Delivery Services (Assistant Chief Executive) ,L4972,Energy Costs,
BRITISH GAS BUSINESS,1941882,13-Nov-19,32.70,Delivery Services (Assistant Chief Executive) ,L4972,Energy Costs,
BRITISH GAS BUSINESS,1941882,13-Nov-19,743.90,Delivery Services (Assistant Chief Executive) ,L4972,Energy Costs,
BRITISH GAS BUSINESS,1941882,13-Nov-19,7.94,Delivery Services (Assistant Chief Executive) ,L4972,Energy Costs,
BRITISH GAS BUSINESS,1941882,13-Nov-19,296.44,Delivery Services (Assistant Chief Executive) ,L4972,Energy Costs,
BRITISH GAS BUSINESS,1941882,13-Nov-19,21.52,Delivery Services (Assistant Chief Executive) ,L4972,Energy Costs,
BRITISH GAS BUSINESS,1941882,13-Nov-19,35.02,Delivery Services (Assistant Chief Executive) ,L4972,Energy Costs,
BRITISH GAS BUSINESS,1941882,13-Nov-19,8.44,Delivery Services (Assistant Chief Executive) ,L4972,Energy Costs,
BRITISH GAS BUSINESS,1941882,13-Nov-19,33.61,Delivery Services (Assistant Chief Executive) ,L4972,Energy Costs,
BRITISH GAS BUSINESS,1941882,13-Nov-19,8.21,Delivery Services (Assistant Chief Executive) ,L4972,Energy Costs,
BRITISH GAS BUSINESS,1941882,13-Nov-19,7.94,Delivery Services (Assistant Chief Executive) ,L4973,Energy Costs,
BRITISH GAS BUSINESS,1941882,13-Nov-19,11.20,Delivery Services (Assistant Chief Executive) ,L4973,Energy Costs,
BRITISH GAS BUSINESS,1941882,13-Nov-19,45.85,Delivery Services (Assistant Chief Executive) ,L4973,Energy Costs,
BRITISH GAS BUSINESS,1941882,13-Nov-19,53.89,Delivery Services (Assistant Chief Executive) ,L4973,Energy Costs,
BRITISH GAS BUSINESS,1941882,13-Nov-19,18.46,Delivery Services (Assistant Chief Executive) ,L4973,Energy Costs,
BRITISH GAS BUSINESS,1941882,13-Nov-19,594.88,Delivery Services (Assistant Chief Executive) ,L4973,Energy Costs,
BRITISH GAS BUSINESS,1941882,13-Nov-19,224.29,Delivery Services (Assistant Chief Executive) ,L4973,Energy Costs,
BRITISH GAS BUSINESS,1941882,13-Nov-19,8.21,Delivery Services (Assistant Chief Executive) ,L4973,Energy Costs,
BRITISH GAS BUSINESS,1941882,13-Nov-19,23.84,Delivery Services (Assistant Chief Executive) ,L4973,Energy Costs,
BRITISH GAS BUSINESS,1941882,13-Nov-19,41.22,Delivery Services (Assistant Chief Executive) ,L4973,Energy Costs,
BRITISH GAS BUSINESS,1941882,13-Nov-19,40.65,Delivery Services (Assistant Chief Executive) ,L4973,Energy Costs,
BRITISH GAS BUSINESS,1941882,13-Nov-19,61.91,Delivery Services (Assistant Chief Executive) ,L4973,Energy Costs,
BRITISH GAS BUSINESS,1941882,13-Nov-19,8.11,Delivery Services (Assistant Chief Executive) ,L4973,Energy Costs,
BRITISH GAS BUSINESS,1941882,13-Nov-19,7.94,Delivery Services (Assistant Chief Executive) ,L4973,Energy Costs,
BRITISH GAS BUSINESS,1941882,13-Nov-19,218.02,Delivery Services (Assistant Chief Executive) ,L4973,Energy Costs,
BRITISH GAS BUSINESS,1941882,13-Nov-19,26.81,Delivery Services (Assistant Chief Executive) ,L4973,Energy Costs,
BRITISH GAS BUSINESS,1941882,13-Nov-19,37.74,Delivery Services (Assistant Chief Executive) ,L4973,Energy Costs,
BRITISH GAS BUSINESS,1941882,13-Nov-19,8.21,Delivery Services (Assistant Chief Executive) ,L4974,Energy Costs,
BRITISH GAS BUSINESS,1941882,13-Nov-19,37.34,Delivery Services (Assistant Chief Executive) ,L4974,Energy Costs,
BRITISH GAS BUSINESS,1941882,13-Nov-19,120.28,Delivery Services (Assistant Chief Executive) ,L4974,Energy Costs,
BRITISH GAS BUSINESS,1941882,13-Nov-19,68.47,Delivery Services (Assistant Chief Executive) ,L4974,Energy Costs,
BRITISH GAS BUSINESS,1941882,13-Nov-19,271.22,Delivery Services (Assistant Chief Executive) ,L4974,Energy Costs,
BRITISH GAS BUSINESS,1941882,13-Nov-19,36.51,Delivery Services (Assistant Chief Executive) ,L5210,Energy Costs,
BRITISH GAS BUSINESS,1941882,13-Nov-19,"1,005.75",Delivery Services (Assistant Chief Executive) ,L5330,Energy Costs,
BRITISH GAS BUSINESS,1941882,13-Nov-19,392.86,Delivery Services (Assistant Chief Executive) ,L5410,Energy Costs,
BRITISH GAS BUSINESS,1941882,13-Nov-19,161.63,Delivery Services (Assistant Chief Executive) ,L5510,Energy Costs,
BRITISH GAS BUSINESS,1941882,13-Nov-19,"1,194.04",Delivery Services (Assistant Chief Executive) ,T4020,Energy Costs,
BRITISH GAS BUSINESS,1941882,13-Nov-19,417.32,Delivery Services (Assistant Chief Executive) ,V1920,Energy Costs,
BRITISH GAS BUSINESS,1941883,13-Nov-19,45.96,Delivery Services (Assistant Chief Executive) ,D4040,Energy Costs,
BRITISH GAS BUSINESS,1941883,13-Nov-19,1.85,Delivery Services (Assistant Chief Executive) ,D4040,Energy Costs,
BRITISH GAS BUSINESS,1942188,14-Nov-19,9.05,Delivery Services (Assistant Chief Executive) ,D2140,Energy Costs,
BRITISH GAS BUSINESS,1942188,14-Nov-19,257.56,Delivery Services (Assistant Chief Executive) ,D2140,Energy Costs,
BRITISH GAS BUSINESS,1942188,14-Nov-19,-257.56,Delivery Services (Assistant Chief Executive) ,D2140,Energy Costs,
BRITISH GAS BUSINESS,1943527,18-Nov-19,52.86,Delivery Services (Assistant Chief Executive) ,D2140,Energy Costs,
BRITISH GAS BUSINESS,1943527,18-Nov-19,54.11,Delivery Services (Assistant Chief Executive) ,D2140,Energy Costs,
BRITISH GAS BUSINESS,1943527,18-Nov-19,61.04,Delivery Services (Assistant Chief Executive) ,D2140,Energy Costs,
BRITISH GAS BUSINESS,1941882,13-Nov-19,80.55,Childrens Services ,H2400,"Repairs, alterations and maintenance",
BRITISH HARDWOOD TREE NURSERY LIMITED,1945339,26-Nov-19,"1,964.75",Delivery Services (Assistant Chief Executive) ,L4976,"Repairs, alterations and maintenance",
BRITISH LIBRARY,1946066,28-Nov-19,90.90,Delivery Services (Assistant Chief Executive) ,L2300,Hired or Contracted services,
BROMBOROUGH METHODIST CHURCH,1940566,05-Nov-19,2.20,Business Management ,A4000,Services,
BROMBOROUGH PAINT & BUILDING SUPPLIES LIMITED,1940853,07-Nov-19,-16.65,Business Management ,L4320,Grounds Maintenance,
BROMBOROUGH PAINTS,CC,25-Oct-19,71.10,Economic & Housing Growth ,H6080,Lodging Allowances,
BROMILOW ARCHITECTS LIMITED,1941380,11-Nov-19,624.00,RE  Housing & Community Safety,C4117,Expenditure on Capital Grants,
BROOKDALE PRE SCHOOL GROUP,1946069,28-Nov-19,278.79,Childrens Services ,E1170,Services,
BROOKDALE PRE SCHOOL GROUP,1946069,28-Nov-19,"6,410.40",Childrens Services ,E1170,Services,
BROOKDALE PRE SCHOOL GROUP,1946069,28-Nov-19,"4,747.86",Childrens Services ,E1170,Services,
BROOKFIELD CARE AGENCY LIMITED,1943800,19-Nov-19,"21,110.70",Adult Care & Health ,S6111,Physical Support - Older People (65+),
BROOKFIELD HOUSE,1940217,01-Nov-19,"11,520.00",Childrens Services ,E7080,Care Provision,
BROOKHURST PRE SCHOOL,1946070,28-Nov-19,278.79,Childrens Services ,E1170,Services,
BROOKHURST PRE SCHOOL,1946070,28-Nov-19,"7,968.58",Childrens Services ,E1170,Services,
BROOKHURST PRE SCHOOL,1946070,28-Nov-19,"2,764.61",Childrens Services ,E1170,Services,
BROOKLANDS CARE HOME,1945340,26-Nov-19,"2,111.48",Adult Care & Health ,S6142,Physical Support - Older People (65+),
BROTHERS OF CHARITY SERVICES  ,1943801,19-Nov-19,"11,535.17",Adult Care & Health ,S6121,Learning & Disability Support - Adults (18-64),
BROXAP LIMITED,1944250,21-Nov-19,"3,336.00",Delivery Services (Assistant Chief Executive) ,V1920,"Equipment, Furniture & Materials",
BROXAP LIMITED,1941627,12-Nov-19,628.44,Delivery Services (Assistant Chief Executive) ,L4973,Grounds Maintenance,
BROXAP LIMITED,1944713,25-Nov-19,"4,770.00",Delivery Services (Assistant Chief Executive) ,L4971,"Repairs, alterations and maintenance",
BRYN MELYN CARE LIMITED,1940218,01-Nov-19,"24,259.71",Childrens Services ,E7080,Care Provision,
BRYN MELYN CARE LIMITED,1940218,01-Nov-19,"22,439.57",Childrens Services ,E7080,Care Provision,
BT BUSINESS DIRECT,1941886,13-Nov-19,18.09,Business Management ,F4418,Communications & Computing,
BT BUSINESS DIRECT,1944714,25-Nov-19,"1,098.00",Business Management ,F4410,Communications & Computing,
BT BUSINESS DIRECT,1944714,25-Nov-19,74.64,Business Management ,F4418,Communications & Computing,
BT BUSINESS DIRECT,1944714,25-Nov-19,233.42,Business Management ,F4418,Communications & Computing,
BT GLOBAL SERVICES,1947082,29-Nov-19,141.90,Childrens Services ,E1210,Communications & Computing,
BT GLOBAL SERVICES,1947082,29-Nov-19,102.05,Childrens Services ,E1220,Communications & Computing,
BT GLOBAL SERVICES,1947082,29-Nov-19,97.15,Childrens Services ,E1850,Communications & Computing,
BT GLOBAL SERVICES,1947082,29-Nov-19,101.84,Childrens Services ,E2860,Communications & Computing,
BT GLOBAL SERVICES,1947082,29-Nov-19,139.91,Childrens Services ,E3090,Communications & Computing,
BT GLOBAL SERVICES,1947082,29-Nov-19,147.35,Childrens Services ,E3150,Communications & Computing,
BT GLOBAL SERVICES,1947082,29-Nov-19,102.05,Childrens Services ,E3580,Communications & Computing,
BT GLOBAL SERVICES,1947082,29-Nov-19,869.24,Childrens Services ,E4470,Communications & Computing,
BT GLOBAL SERVICES,1947082,29-Nov-19,573.56,Childrens Services ,E4510,Communications & Computing,
BT GLOBAL SERVICES,1947082,29-Nov-19,573.56,Childrens Services ,E5500,Communications & Computing,
BT GLOBAL SERVICES,1947082,29-Nov-19,147.35,Childrens Services ,E5540,Communications & Computing,
BT GLOBAL SERVICES,1947082,29-Nov-19,371.96,Childrens Services ,E5570,Communications & Computing,
BT GLOBAL SERVICES,1947082,29-Nov-19,102.05,Childrens Services ,E8940,Communications & Computing,
BT GLOBAL SERVICES,1947082,29-Nov-19,116.46,Childrens Services ,E9600,Communications & Computing,
BT GLOBAL SERVICES,1947082,29-Nov-19,96.90,Delivery Services (Assistant Chief Executive) ,L3402,Communications & Computing,
BT GLOBAL SERVICES,1947082,29-Nov-19,96.66,Delivery Services (Assistant Chief Executive) ,L3402,Communications & Computing,
BT GLOBAL SERVICES,1947082,29-Nov-19,"2,005.70",Business Management ,F4410,Hired or Contracted services,
BT GLOBAL SERVICES,1947082,29-Nov-19,587.53,Business Management ,F4410,Hired or Contracted services,
BT GLOBAL SERVICES,1947082,29-Nov-19,"2,128.73",Business Management ,F4410,Hired or Contracted services,
BT GLOBAL SERVICES,1947082,29-Nov-19,137.81,Business Management ,F4410,Hired or Contracted services,
BT GLOBAL SERVICES,1947082,29-Nov-19,573.56,Business Management ,F4410,Hired or Contracted services,
BT GLOBAL SERVICES,1947082,29-Nov-19,573.56,Business Management ,F4410,Hired or Contracted services,
BT GLOBAL SERVICES,1947082,29-Nov-19,573.56,Business Management ,F4410,Hired or Contracted services,
BT GLOBAL SERVICES,1947082,29-Nov-19,573.56,Business Management ,F4410,Hired or Contracted services,
BT GLOBAL SERVICES,1947082,29-Nov-19,950.41,Business Management ,F4410,Hired or Contracted services,
BT GLOBAL SERVICES,1947082,29-Nov-19,587.53,Business Management ,F4410,Hired or Contracted services,
BT GLOBAL SERVICES,1947082,29-Nov-19,636.14,Business Management ,F4410,Hired or Contracted services,
BT GLOBAL SERVICES,1947082,29-Nov-19,340.46,Business Management ,F4410,Hired or Contracted services,
BT GLOBAL SERVICES,1947082,29-Nov-19,916.81,Business Management ,F4410,Hired or Contracted services,
BT GLOBAL SERVICES,1947082,29-Nov-19,587.53,Business Management ,F4410,Hired or Contracted services,
BT GLOBAL SERVICES,1947082,29-Nov-19,587.53,Business Management ,F4410,Hired or Contracted services,
BT GLOBAL SERVICES,1947082,29-Nov-19,587.53,Business Management ,F4410,Hired or Contracted services,
BT GLOBAL SERVICES,1947082,29-Nov-19,102.05,Business Management ,F4410,Hired or Contracted services,
BT GLOBAL SERVICES,1947082,29-Nov-19,587.54,Business Management ,F4410,Hired or Contracted services,
BT GLOBAL SERVICES,1947082,29-Nov-19,573.56,Business Management ,F4410,Hired or Contracted services,
BT GLOBAL SERVICES,1947082,29-Nov-19,"2,005.70",Business Management ,F4410,Hired or Contracted services,
BT GLOBAL SERVICES,1947082,29-Nov-19,587.53,Business Management ,F4410,Hired or Contracted services,
BT GLOBAL SERVICES,1947082,29-Nov-19,883.21,Business Management ,F4410,Hired or Contracted services,
BT GLOBAL SERVICES,1947082,29-Nov-19,587.53,Business Management ,F4410,Hired or Contracted services,
BT GLOBAL SERVICES,1947082,29-Nov-19,102.05,Business Management ,F4410,Hired or Contracted services,
BT GLOBAL SERVICES,1947082,29-Nov-19,102.05,Business Management ,F4410,Hired or Contracted services,
BT GLOBAL SERVICES,1947082,29-Nov-19,573.56,Business Management ,F4410,Hired or Contracted services,
BT GLOBAL SERVICES,1947082,29-Nov-19,102.05,Business Management ,F4410,Hired or Contracted services,
BT GLOBAL SERVICES,1947082,29-Nov-19,102.05,Business Management ,F4410,Hired or Contracted services,
BT GLOBAL SERVICES,1947082,29-Nov-19,102.05,Business Management ,F4410,Hired or Contracted services,
BT GLOBAL SERVICES,1947082,29-Nov-19,102.05,Business Management ,F4410,Hired or Contracted services,
BT GLOBAL SERVICES,1947082,29-Nov-19,137.81,Business Management ,F4410,Hired or Contracted services,
BT GLOBAL SERVICES,1947082,29-Nov-19,101.84,Business Management ,F4410,Hired or Contracted services,
BT GLOBAL SERVICES,1947082,29-Nov-19,102.05,Business Management ,F4410,Hired or Contracted services,
BT GLOBAL SERVICES,1947082,29-Nov-19,124.92,Business Management ,F4410,Hired or Contracted services,
BT GLOBAL SERVICES,1947082,29-Nov-19,102.05,Business Management ,F4410,Hired or Contracted services,
BT GLOBAL SERVICES,1947082,29-Nov-19,102.05,Business Management ,F4410,Hired or Contracted services,
BT GLOBAL SERVICES,1947082,29-Nov-19,102.05,Business Management ,F4410,Hired or Contracted services,
BT GLOBAL SERVICES,1947082,29-Nov-19,102.05,Business Management ,F4410,Hired or Contracted services,
BT GLOBAL SERVICES,1947082,29-Nov-19,102.05,Business Management ,F4410,Hired or Contracted services,
BT GLOBAL SERVICES,1947082,29-Nov-19,102.05,Business Management ,F4410,Hired or Contracted services,
BT GLOBAL SERVICES,1947082,29-Nov-19,102.05,Business Management ,F4410,Hired or Contracted services,
BT GLOBAL SERVICES,1947082,29-Nov-19,102.05,Business Management ,F4410,Hired or Contracted services,
BT GLOBAL SERVICES,1947082,29-Nov-19,102.05,Business Management ,F4410,Hired or Contracted services,
BT GLOBAL SERVICES,1947082,29-Nov-19,102.05,Business Management ,F4410,Hired or Contracted services,
BT GLOBAL SERVICES,1947082,29-Nov-19,102.05,Business Management ,F4410,Hired or Contracted services,
BT GLOBAL SERVICES,1947082,29-Nov-19,102.05,Business Management ,F4410,Hired or Contracted services,
BT GLOBAL SERVICES,1947082,29-Nov-19,573.56,Business Management ,F4410,Hired or Contracted services,
BT GLOBAL SERVICES,1947082,29-Nov-19,573.56,Business Management ,F4410,Hired or Contracted services,
BT GLOBAL SERVICES,1947082,29-Nov-19,340.46,Business Management ,F4410,Hired or Contracted services,
BT GLOBAL SERVICES,1947082,29-Nov-19,102.05,Business Management ,F4410,Hired or Contracted services,
BT GLOBAL SERVICES,1947082,29-Nov-19,340.46,Business Management ,F4410,Hired or Contracted services,
BT GLOBAL SERVICES,1947082,29-Nov-19,340.46,Business Management ,F4410,Hired or Contracted services,
BT GLOBAL SERVICES,1947082,29-Nov-19,147.35,Business Management ,F4410,Hired or Contracted services,
BT GLOBAL SERVICES,1947082,29-Nov-19,96.41,Business Management ,F4410,Hired or Contracted services,
BT GLOBAL SERVICES,1947082,29-Nov-19,587.53,Business Management ,F4410,Hired or Contracted services,
BT GLOBAL SERVICES,1947082,29-Nov-19,116.22,Business Management ,F4410,Hired or Contracted services,
BT GLOBAL SERVICES,1947082,29-Nov-19,116.22,Business Management ,F4410,Hired or Contracted services,
BT GLOBAL SERVICES,1947082,29-Nov-19,156.89,Business Management ,F4410,Hired or Contracted services,
BT GLOBAL SERVICES,1947082,29-Nov-19,161.72,Business Management ,F4410,Hired or Contracted services,
BT GLOBAL SERVICES,1947082,29-Nov-19,101.83,Business Management ,F4410,Hired or Contracted services,
BT GLOBAL SERVICES,1947082,29-Nov-19,147.35,Business Management ,F4410,Hired or Contracted services,
BT GLOBAL SERVICES,1947082,29-Nov-19,"2,194.91",Business Management ,F4410,Hired or Contracted services,
BT GLOBAL SERVICES,1947082,29-Nov-19,116.52,Business Management ,F4410,Hired or Contracted services,
BT GLOBAL SERVICES,1947082,29-Nov-19,576.06,Business Management ,F4410,Hired or Contracted services,
BUILDING BLOCKS DAY NURSERY,1946072,28-Nov-19,"4,460.56",Childrens Services ,E1170,Services,
BUILDING BLOCKS DAY NURSERY,1946072,28-Nov-19,"9,126.95",Childrens Services ,E1170,Services,
BUILDING BLOCKS DAY NURSERY,1946072,28-Nov-19,"3,311.12",Childrens Services ,E1170,Services,
BUILDING BRIDGES (CARE HOMES) LTD,1941887,13-Nov-19,"11,071.43",Childrens Services ,E7080,Care Provision,
BUILDING BRIDGES (CARE HOMES) LTD,1941887,13-Nov-19,"11,071.43",Childrens Services ,E7080,Care Provision,
BUILDING BRIDGES (CARE HOMES) LTD,1941887,13-Nov-19,"11,735.71",Childrens Services ,E7080,Care Provision,
BUPA CARE HOMES,1945341,26-Nov-19,"2,100.00",Adult Care & Health ,S6141,Memory & Cognition Support - Older People (65+),
BUPA CARE HOMES,1945341,26-Nov-19,"2,100.00",Adult Care & Health ,S6132,Physical Support - Older People (65+),
BUPA CARE HOMES,1945341,26-Nov-19,"2,044.00",Adult Care & Health ,S6141,Physical Support - Older People (65+),
BUPA CARE HOMES,1945341,26-Nov-19,"2,044.00",Adult Care & Health ,S6142,Physical Support - Older People (65+),
BURLINGTON CARE LIMITED,1945342,26-Nov-19,"2,322.40",Adult Care & Health ,S6167,Mental Health Support - Older People (65+),
BUSY BEES BROMBOROUGH,1943803,19-Nov-19,"1,075.20",Childrens Services ,E1170,Services,
BUSY BEES BROMBOROUGH,1946073,28-Nov-19,"2,230.28",Childrens Services ,E1170,Services,
BUSY BEES BROMBOROUGH,1946073,28-Nov-19,"12,910.43",Childrens Services ,E1170,Services,
BUSY BEES BROMBOROUGH,1946073,28-Nov-19,"5,528.74",Childrens Services ,E1170,Services,
BUSY NOUGHT TO FIVES,1946074,28-Nov-19,"3,058.13",Childrens Services ,E1170,Services,
BUSY NOUGHT TO FIVES,1946074,28-Nov-19,677.91,Childrens Services ,E1170,Services,
BUTTERCUPS CHILDMINDING - VICTORIA ASHWORTH,1946075,28-Nov-19,836.36,Childrens Services ,E1170,Services,
BUTTERCUPS CHILDMINDING - VICTORIA ASHWORTH,1946075,28-Nov-19,223.25,Childrens Services ,E1170,Services,
BUTTERCUPS CHILDMINDING - VICTORIA ASHWORTH,1946075,28-Nov-19,104.18,Childrens Services ,E1170,Services,
BY THE BRIDGE LIMITED,1940219,01-Nov-19,"6,592.59",Childrens Services ,E7080,Care Provision,
BY THE BRIDGE LIMITED,1940219,01-Nov-19,"3,892.05",Childrens Services ,E7080,Care Provision,
BY THE BRIDGE LIMITED,1940219,01-Nov-19,"4,101.30",Childrens Services ,E7080,Care Provision,
BY THE BRIDGE LIMITED,1940219,01-Nov-19,"4,395.40",Childrens Services ,E7080,Care Provision,
BY THE BRIDGE LIMITED,1940219,01-Nov-19,"4,097.98",Childrens Services ,E7080,Care Provision,
BY THE BRIDGE LIMITED,1940219,01-Nov-19,"4,101.30",Childrens Services ,E7080,Care Provision,
BY THE BRIDGE LIMITED,1940219,01-Nov-19,"4,101.30",Childrens Services ,E7080,Care Provision,
BY THE BRIDGE LIMITED,1940219,01-Nov-19,"4,318.30",Childrens Services ,E7081,Care Provision,
BY THE BRIDGE LIMITED,1940219,01-Nov-19,"4,097.98",Childrens Services ,E7081,Care Provision,
BYWATER TRAINING LIMITED,1946076,28-Nov-19,"5,994.00",Business Management ,P1000,Training Expenses,
BYWATER TRAINING LIMITED,1946076,28-Nov-19,"2,394.00",Business Management ,P1000,Training Expenses,
C & D SURFACING LIMITED,1944252,21-Nov-19,"42,706.21",Delivery Services (Assistant Chief Executive) ,V1920,Hired or Contracted services,
CABLE SERVICES LIMITED,1942192,14-Nov-19,216.00,Delivery Services (Assistant Chief Executive) ,V1920,"Equipment, Furniture & Materials",
CABLE SERVICES LIMITED,1945343,26-Nov-19,216.00,Delivery Services (Assistant Chief Executive) ,V1920,"Equipment, Furniture & Materials",
CALBARRIE LIMITED,1941070,08-Nov-19,-0.24,Delivery Services (Assistant Chief Executive) ,D3544,"Equipment, Furniture & Materials",
CALDY CONSTRUCTION LIMITED,1941382,11-Nov-19,"6,061.00",RE  Housing & Community Safety,C4115,Expenditure on Capital Grants,
CALDY CONSTRUCTION LIMITED,1943075,15-Nov-19,379.00,RE  Housing & Community Safety,C4114,Expenditure on Capital Grants,
CALDY CONSTRUCTION LIMITED,1943075,15-Nov-19,280.00,RE  Housing & Community Safety,C4117,Expenditure on Capital Grants,
CALDY CONSTRUCTION LIMITED,1944434,22-Nov-19,"11,189.32",RE  Housing & Community Safety,C4117,Expenditure on Capital Grants,
CALDY CONSTRUCTION LIMITED,1947084,29-Nov-19,"4,679.00",RE  Housing & Community Safety,C4115,Expenditure on Capital Grants,
CALLCOTT ENGINEERING SURVEYING LIMITED,1941628,12-Nov-19,750.00,Children & Young People,C2091,Contractors - Main,
CALOO LIMITED,1942193,14-Nov-19,"1,614.00",Delivery Services (Assistant Chief Executive) ,L4971,"Equipment, Furniture & Materials",
CAMBIAN CHILDCARE LIMITED,1940220,01-Nov-19,"14,835.67",Childrens Services ,E7080,Care Provision,
CAMBIAN CHILDCARE LIMITED,1940220,01-Nov-19,"13,728.66",Childrens Services ,E7080,Care Provision,
CAMBIAN CHILDCARE LIMITED,1940220,01-Nov-19,"19,928.66",Childrens Services ,E7080,Care Provision,
CAMBIAN CHILDCARE LIMITED,1940220,01-Nov-19,"3,542.99",Childrens Services ,E5870,Specialist Contracts & Fees,
CAMBRIAN SUPPORTED LIVING,1941071,08-Nov-19,"30,562.12",Adult Care & Health ,S6121,Learning & Disability Support - Adults (18-64),
CAMBRIANWAY LIMITED,1944435,22-Nov-19,"1,953.12",Delivery Services (Assistant Chief Executive) ,X8500,Credit,
CAMBRIANWAY LIMITED,1944435,22-Nov-19,"5,095.99",Delivery Services (Assistant Chief Executive) ,X8500,Credit,
CAMBRIANWAY LIMITED,1944435,22-Nov-19,"4,777.44",Delivery Services (Assistant Chief Executive) ,X8500,Credit,
CAMBRIANWAY LIMITED,1944435,22-Nov-19,"9,574.79",Delivery Services (Assistant Chief Executive) ,X8500,Credit,
CAMFIL LIMITED,1943076,15-Nov-19,"1,116.89",Delivery Services (Assistant Chief Executive) ,D3532,"Repairs, alterations and maintenance",
CAMFIL LIMITED,1943076,15-Nov-19,185.62,Delivery Services (Assistant Chief Executive) ,D3532,"Repairs, alterations and maintenance",
CAMFIL LIMITED,1943076,15-Nov-19,76.56,Delivery Services (Assistant Chief Executive) ,D3534,"Repairs, alterations and maintenance",
CAMFIL LIMITED,1943076,15-Nov-19,168.05,Delivery Services (Assistant Chief Executive) ,D3534,"Repairs, alterations and maintenance",
CAMFIL LIMITED,1943076,15-Nov-19,22.10,Delivery Services (Assistant Chief Executive) ,D3534,"Repairs, alterations and maintenance",
CAMFIL LIMITED,1943076,15-Nov-19,19.70,Delivery Services (Assistant Chief Executive) ,D3534,"Repairs, alterations and maintenance",
CANARY CARE GLOBAL LIMITED,1943077,15-Nov-19,704.40,Adult Social Care Services,C8205,Equipment,
CANDA COPYING LTD,1940221,01-Nov-19,"4,464.00",Business Management ,F4410,"Printing, Stationery & General Office Expenses",
CANDA COPYING LTD,1940221,01-Nov-19,"1,082.86",Business Management ,F4410,"Printing, Stationery & General Office Expenses",
CANDA COPYING LTD,1940221,01-Nov-19,86.34,Business Management ,F4410,"Printing, Stationery & General Office Expenses",
CANDA COPYING LTD,1940221,01-Nov-19,173.35,Business Management ,F4410,"Printing, Stationery & General Office Expenses",
CANDA COPYING LTD,1940221,01-Nov-19,185.12,Business Management ,F4410,"Printing, Stationery & General Office Expenses",
CANDA COPYING LTD,1940221,01-Nov-19,262.80,Business Management ,F4410,"Printing, Stationery & General Office Expenses",
CANDA COPYING LTD,1940221,01-Nov-19,71.99,Business Management ,F4410,"Printing, Stationery & General Office Expenses",
CANDA COPYING LTD,1940221,01-Nov-19,455.39,Business Management ,F4410,"Printing, Stationery & General Office Expenses",
CANDA COPYING LTD,1940221,01-Nov-19,86.10,Business Management ,F4410,"Printing, Stationery & General Office Expenses",
CANDA COPYING LTD,1940221,01-Nov-19,176.57,Business Management ,F4410,"Printing, Stationery & General Office Expenses",
CANDA COPYING LTD,1940221,01-Nov-19,89.35,Business Management ,F4410,"Printing, Stationery & General Office Expenses",
CANDA COPYING LTD,1940221,01-Nov-19,127.31,Business Management ,F4410,"Printing, Stationery & General Office Expenses",
CANDA COPYING LTD,1940221,01-Nov-19,218.89,Business Management ,F4410,"Printing, Stationery & General Office Expenses",
CANDA COPYING LTD,1940221,01-Nov-19,154.14,Business Management ,F4410,"Printing, Stationery & General Office Expenses",
CANDA COPYING LTD,1940221,01-Nov-19,179.36,Business Management ,F4410,"Printing, Stationery & General Office Expenses",
CANDA COPYING LTD,1940221,01-Nov-19,108.08,Business Management ,F4410,"Printing, Stationery & General Office Expenses",
CANDA COPYING LTD,1940221,01-Nov-19,80.83,Business Management ,F4410,"Printing, Stationery & General Office Expenses",
CANDA COPYING LTD,1940221,01-Nov-19,"1,153.52",Business Management ,F4410,"Printing, Stationery & General Office Expenses",
CANDA COPYING LTD,1940221,01-Nov-19,251.02,Business Management ,F4410,"Printing, Stationery & General Office Expenses",
CANDA COPYING LTD,1940221,01-Nov-19,56.06,Business Management ,F4410,"Printing, Stationery & General Office Expenses",
CANDA COPYING LTD,1940221,01-Nov-19,82.30,Business Management ,F4410,"Printing, Stationery & General Office Expenses",
CANDA COPYING LTD,1940221,01-Nov-19,72.98,Business Management ,F4410,"Printing, Stationery & General Office Expenses",
CANDA COPYING LTD,1940221,01-Nov-19,85.39,Business Management ,F4410,"Printing, Stationery & General Office Expenses",
CANDA COPYING LTD,1940221,01-Nov-19,48.80,Business Management ,F4410,"Printing, Stationery & General Office Expenses",
CANDA COPYING LTD,1940221,01-Nov-19,93.52,Business Management ,F4410,"Printing, Stationery & General Office Expenses",
CANDA COPYING LTD,1940221,01-Nov-19,65.69,Business Management ,F4410,"Printing, Stationery & General Office Expenses",
CANDA COPYING LTD,1940221,01-Nov-19,389.53,Business Management ,F4410,"Printing, Stationery & General Office Expenses",
CANDA COPYING LTD,1940221,01-Nov-19,"5,332.34",Business Management ,F4410,"Printing, Stationery & General Office Expenses",
CANDA COPYING LTD,1940221,01-Nov-19,"6,111.16",Business Management ,F4410,"Printing, Stationery & General Office Expenses",
CANDA COPYING LTD,1940221,01-Nov-19,"5,444.78",Business Management ,F4410,"Printing, Stationery & General Office Expenses",
CANDA COPYING LTD,1940221,01-Nov-19,98.96,Business Management ,F4410,"Printing, Stationery & General Office Expenses",
CANDA COPYING LTD,1940221,01-Nov-19,320.35,Business Management ,F4410,"Printing, Stationery & General Office Expenses",
CANDA COPYING LTD,1940221,01-Nov-19,50.59,Business Management ,F4410,"Printing, Stationery & General Office Expenses",
CANDA COPYING LTD,1940221,01-Nov-19,97.36,Business Management ,F4410,"Printing, Stationery & General Office Expenses",
CANDA COPYING LTD,1940221,01-Nov-19,56.99,Business Management ,F4410,"Printing, Stationery & General Office Expenses",
CANDA COPYING LTD,1940221,01-Nov-19,399.64,Business Management ,F4410,"Printing, Stationery & General Office Expenses",
CANDA COPYING LTD,1940221,01-Nov-19,382.01,Business Management ,F4630,"Printing, Stationery & General Office Expenses",
CANDA COPYING LTD,1940221,01-Nov-19,441.78,Business Management ,F4630,"Printing, Stationery & General Office Expenses",
CANFORD AUDIO LIMITED,1944009,20-Nov-19,117.31,Delivery Services (Assistant Chief Executive) ,L3950,"Equipment, Furniture & Materials",
CANNON HYGIENE LIMITED,1943078,15-Nov-19,124.34,Childrens Services ,E1440,Cleaning & Domestic Supplies,
CAPITA BUSINESS SERVICES LIMITED,1940854,07-Nov-19,"1,560.00",Business Management ,F6000,Communications & Computing,
CAPITA BUSINESS SERVICES LIMITED,1940701,06-Nov-19,162.00,Balance Sheet,00000,Creditors - Other Entities and Individuals,
CARDIAC SCIENCE HOLDINGS UK LIMITED,1940855,07-Nov-19,"1,980.00",Business Management ,B7642,Grants to Voluntary Organisations,
CARE 4 CHILDREN RESIDENTIAL SERVICES LIMITED,1941889,13-Nov-19,"2,227.47",Childrens Services ,E7080,Care Provision,
CARE 4 CHILDREN RESIDENTIAL SERVICES LIMITED,1941889,13-Nov-19,"2,249.94",Childrens Services ,E7080,Care Provision,
CARE CONNECT WIRRAL LTD,1943080,15-Nov-19,"11,657.10",Adult Care & Health ,S6132,Physical Support - Adults (18-64),
CARE IN MIND RESIDENTIAL SERVICES,1945345,26-Nov-19,"16,660.00",Adult Care & Health ,S6161,Mental Health Support - Adults (18-64),
CARPENTER BUILD LIMITED,1944727,25-Nov-19,"2,791.00",RE  Housing & Community Safety,C4212,Legal Charges,
CARR STONEWORK,1947086,29-Nov-19,280.00,Delivery Services (Assistant Chief Executive) ,L4972,Grounds Maintenance,
CARR STONEWORK,1940570,05-Nov-19,575.00,Delivery Services (Assistant Chief Executive) ,L4972,"Repairs, alterations and maintenance",
CARR STONEWORK,1940703,06-Nov-19,850.00,Delivery Services (Assistant Chief Executive) ,L4973,"Repairs, alterations and maintenance",
CARRIE DOLAN CHILDMINDING SERVICE - CARRIE DOLAN,1946106,28-Nov-19,451.94,Childrens Services ,E1170,Services,
CARRIE-ANNE'S CHILDMINDING-CARRIE-ANNE MARMION,1946107,28-Nov-19,203.37,Childrens Services ,E1170,Services,
CARRIE-ANNE'S CHILDMINDING-CARRIE-ANNE MARMION,1946107,28-Nov-19,225.97,Childrens Services ,E1170,Services,
CASCBARROW LIMITED,1940222,01-Nov-19,"10,500.00",Childrens Services ,E7080,Care Provision,
CASTLE ACCESSIBLE TRANSPORT,1940571,05-Nov-19,"3,960.00",Delivery Services (Assistant Chief Executive) ,S5600,Care Provision,
CASTLE ACCESSIBLE TRANSPORT,1941630,12-Nov-19,"3,960.00",Delivery Services (Assistant Chief Executive) ,S5600,Care Provision,
CASTLE ACCESSIBLE TRANSPORT,1943533,18-Nov-19,"3,960.00",Delivery Services (Assistant Chief Executive) ,S5600,Care Provision,
CASTLE ACCESSIBLE TRANSPORT,1944729,25-Nov-19,"3,960.00",Delivery Services (Assistant Chief Executive) ,S5600,Care Provision,
CATER WALSH REPORTING LIMITED,1943087,15-Nov-19,858.00,Business Management ,A1305,General Supplies and Services,
CATER WALSH REPORTING LIMITED,1947087,29-Nov-19,541.20,Business Management ,A1305,General Supplies and Services,
CATHERINE JONES - CHILDMINDER,1946116,28-Nov-19,525.34,Childrens Services ,E1170,Services,
CATHERINE REILLY-CHILDMINDER,1946120,28-Nov-19,230.33,Childrens Services ,E1170,Services,
CATHERINE REILLY-CHILDMINDER,1946120,28-Nov-19,230.33,Childrens Services ,E1170,Services,
CATHERINE ROWLANDS,1940704,06-Nov-19,600.00,Business Management ,A1305,Legal Service Provider,
CATHERINE ROWLANDS,1945346,26-Nov-19,600.00,Business Management ,A1305,Legal Service Provider,
CATHOLIC ARCHIVES SOCIETY,1942234,14-Nov-19,7.00,Delivery Services (Assistant Chief Executive) ,L2300,"Printing, Stationery & General Office Expenses",
CATHS CARE - CATHERINE DUGGAN,1946122,28-Nov-19,272.88,Childrens Services ,E1170,Services,
CBC COMPUTER SYSTEMS LIMITED,1943088,15-Nov-19,34.80,Business Management ,F4300,"Equipment, Furniture & Materials",
CBC COMPUTER SYSTEMS LIMITED,1943088,15-Nov-19,119.70,Business Management ,F4300,"Equipment, Furniture & Materials",
CBC COMPUTER SYSTEMS LIMITED,1944254,21-Nov-19,68.40,Business Management ,F4300,"Equipment, Furniture & Materials",
CBC COMPUTER SYSTEMS LIMITED,1946123,28-Nov-19,78.00,Business Management ,F4300,"Equipment, Furniture & Materials",
CECILIA WALSH T/A RELEVANT PERSONS REPRESENTATIVE SERVICES,1940705,06-Nov-19,187.75,Adult Care & Health ,S6211,Medical Service Provider,
CEDARS CARE GROUP LIMITED,1945347,26-Nov-19,"1,990.20",Adult Care & Health ,S6142,Physical Support - Older People (65+),
CELLS PROJECT CIC,1943089,15-Nov-19,965.00,Business Management ,B7565,Grants to Voluntary Organisations,
CELLS PROJECT CIC,1944255,21-Nov-19,965.00,Business Management ,B7565,Grants to Voluntary Organisations,
CENCODE LIMITED,1941385,11-Nov-19,"2,661.05",RE  Environment & Regulation,C5233,Consultants Fees,
CENCODE LIMITED,1941385,11-Nov-19,"1,092.00",RE  Environment & Regulation,C5233,Consultants Fees,
CENCODE LIMITED,1944014,20-Nov-19,"2,688.40",RE  Environment & Regulation,C5233,Consultants Fees,
CENTURY HEALTHCARE LIMITED,1945349,26-Nov-19,"2,116.00",Adult Care & Health ,S6131,Memory & Cognition Support - Older People (65+),
CENTURY HEALTHCARE LIMITED,1945349,26-Nov-19,"2,116.00",Adult Care & Health ,S6131,Memory & Cognition Support - Older People (65+),
CENTURY HEALTHCARE LIMITED,1945349,26-Nov-19,715.36,Adult Care & Health ,S6131,Memory & Cognition Support - Older People (65+),
CENTURY HEALTHCARE LIMITED,1945349,26-Nov-19,"2,116.00",Adult Care & Health ,S6132,Memory & Cognition Support - Older People (65+),
CENTURY HEALTHCARE LIMITED,1945349,26-Nov-19,"2,116.00",Adult Care & Health ,S6132,Memory & Cognition Support - Older People (65+),
CENTURY HEALTHCARE LIMITED,1945349,26-Nov-19,"-1,813.71",Adult Care & Health ,S6141,Memory & Cognition Support - Older People (65+),
CENTURY HEALTHCARE LIMITED,1945349,26-Nov-19,"2,116.00",Adult Care & Health ,S6167,Memory & Cognition Support - Older People (65+),
CENTURY HEALTHCARE LIMITED,1945349,26-Nov-19,"2,044.00",Adult Care & Health ,S6132,Mental Health Support - Older People (65+),
CENTURY HEALTHCARE LIMITED,1945349,26-Nov-19,"2,116.00",Adult Care & Health ,S6167,Mental Health Support - Older People (65+),
CENTURY HEALTHCARE LIMITED,1945349,26-Nov-19,"1,587.00",Adult Care & Health ,S6167,Mental Health Support - Older People (65+),
CENTURY HEALTHCARE LIMITED,1945349,26-Nov-19,"2,116.00",Adult Care & Health ,S6167,Mental Health Support - Older People (65+),
CENTURY HEALTHCARE LIMITED,1945349,26-Nov-19,"2,116.00",Adult Care & Health ,S6167,Mental Health Support - Older People (65+),
CENTURY HEALTHCARE LIMITED,1945349,26-Nov-19,595.36,Adult Care & Health ,S6167,Mental Health Support - Older People (65+),
CENTURY HEALTHCARE LIMITED,1945349,26-Nov-19,"2,116.00",Adult Care & Health ,S6167,Mental Health Support - Older People (65+),
CENTURY HEALTHCARE LIMITED,1945349,26-Nov-19,"2,116.00",Adult Care & Health ,S6142,Physical Support - Older People (65+),
CENTURY HEALTHCARE LIMITED,1945349,26-Nov-19,605.36,Adult Care & Health ,S6142,Physical Support - Older People (65+),
CENTURY HEALTHCARE LIMITED,1945349,26-Nov-19,620.00,Adult Care & Health ,S6167,Physical Support - Older People (65+),
CENTURY HEALTHCARE LIMITED,1945349,26-Nov-19,"2,116.00",Adult Care & Health ,S6167,Physical Support - Older People (65+),
CERYS WILLIAMS,1940224,01-Nov-19,520.00,Business Management ,A1305,Legal Service Provider,
CERYS WILLIAMS,1940224,01-Nov-19,584.00,Business Management ,A1305,Legal Service Provider,
CERYS WILLIAMS,1940224,01-Nov-19,"1,032.00",Business Management ,A1305,Legal Service Provider,
CERYS WILLIAMS,1940224,01-Nov-19,780.00,Business Management ,A1305,Legal Service Provider,
CERYS WILLIAMS,1940224,01-Nov-19,680.00,Business Management ,A1305,Legal Service Provider,
CERYS WILLIAMS,1942237,14-Nov-19,771.20,Business Management ,A1305,Legal Service Provider,
CHAMBERS TOURING LIMITED,1940706,06-Nov-19,"3,015.10",Delivery Services (Assistant Chief Executive) ,L3950,Customer and Client Receipts - Non Vatable,
CHANDRIKA MEETEN (CHILDREN MATTER),1940429,04-Nov-19,260.00,Childrens Services ,E7037,Care Provision,
CHANDRIKA MEETEN (CHILDREN MATTER),1940429,04-Nov-19,335.00,Childrens Services ,E7037,Care Provision,
CHANGE GROW LIVE SERVICES LIMITED,1947091,29-Nov-19,"672,717.00",Adult Care & Health ,P4029,Contracts With Voluntary Organisations,
CHAPEL HOUSE CARE LIMITED,1945350,26-Nov-19,"8,464.00",Adult Care & Health ,S6161,Memory & Cognition Support - Older People (65+),
CHERISE HALL,1947092,29-Nov-19,200.00,Childrens Services ,E7021,Care Provision,
CHERRY COTTAGE LIMITED,1941632,12-Nov-19,"13,950.00",Childrens Services ,E7080,Care Provision,
CHERRY COTTAGE LIMITED,1941632,12-Nov-19,"13,500.00",Childrens Services ,E7080,Care Provision,
CHERYL JONES,1946127,28-Nov-19,460.65,Childrens Services ,E1170,Services,
CHERYL JONES,1946127,28-Nov-19,460.65,Childrens Services ,E1170,Services,
CHESCOMBE TRUST LTD,1945351,26-Nov-19,-414.20,Adult Care & Health ,S6121,Customer and Client - Community Care,
CHESCOMBE TRUST LTD,1945351,26-Nov-19,"7,969.16",Adult Care & Health ,S6121,Learning & Disability Support - Adults (18-64),
CHESCOMBE TRUST LTD,1945351,26-Nov-19,"5,660.48",Adult Care & Health ,S6121,Learning & Disability Support - Adults (18-64),
CHESHIRE & WIRRAL PARTNERSHIP NHS FOUNDATION TRUST,1944257,21-Nov-19,"458,089.00",Adult Care & Health ,S6003,General Supplies and Services,
CHESHIRE & WIRRAL PARTNERSHIP NHS FOUNDATION TRUST,1944257,21-Nov-19,"458,089.00",Adult Care & Health ,S6003,General Supplies and Services,
CHESHIRE & WIRRAL PARTNERSHIP NHS FOUNDATION TRUST,1941386,11-Nov-19,"83,434.25",Childrens Services ,E9675,Hired or Contracted services,
CHESHIRE & WIRRAL PARTNERSHIP NHS FOUNDATION TRUST,1940857,07-Nov-19,"4,935.00",Adult Care & Health ,P4192,School Transport - Primary,
CHESHIRE BATHROOMS & WET ROOMS,1943092,15-Nov-19,"4,327.00",RE  Housing & Community Safety,C4115,Expenditure on Capital Grants,
CHESHIRE RES HOMES TRUST,1945352,26-Nov-19,"1,884.00",Adult Care & Health ,S6167,Mental Health Support - Older People (65+),
CHESHIRE RETAIL (NW) LIMITED,1941387,11-Nov-19,43.50,Delivery Services (Assistant Chief Executive) ,L2300,"Printing, Stationery & General Office Expenses",
CHESHIRE WEST & CHESTER COUNCIL,1944016,20-Nov-19,"12,439.24",Childrens Services ,E5360,Services,
CHESHIRE WEST & CHESTER COUNCIL,1945353,26-Nov-19,"22,971.00",Childrens Services ,E5360,Services,
CHOICE LIMITED,1945356,26-Nov-19,"7,344.00",Adult Care & Health ,S6121,Learning & Disability Support - Adults (18-64),
CHOICES HOME FOR CHILDREN LIMITED,1944258,21-Nov-19,"-1,108.00",Childrens Services ,E7080,Care Provision,
CHOICES HOME FOR CHILDREN LIMITED,1944258,21-Nov-19,"1,108.00",Childrens Services ,E7080,Care Provision,
CHOICES HOME FOR CHILDREN LIMITED,1944258,21-Nov-19,"17,174.00",Childrens Services ,E7080,Care Provision,
CHRIS EDWARDS T/A CVTS MAC TOOLS,1945357,26-Nov-19,42.00,Delivery Services (Assistant Chief Executive) ,T4020,"Equipment, Furniture & Materials",
CHRIS EDWARDS T/A CVTS MAC TOOLS,1945357,26-Nov-19,204.00,Delivery Services (Assistant Chief Executive) ,T4020,"Equipment, Furniture & Materials",
CHRISTIAN SMITH PHOTOGRAPHY,1940573,05-Nov-19,144.00,Economic & Housing Growth ,H8050,Services,
CHRISTLETON HIGH SCHOOL,1947094,29-Nov-19,450.00,Childrens Services ,E7043,Services,
CIPFA,1941388,11-Nov-19,300.00,Delivery Services (Assistant Chief Executive) ,D2020,Services,
CIPFA,1943101,15-Nov-19,200.00,Business Management ,F1200,Training Expenses,
CITRON HYGIENE UK LIMITED,1940574,05-Nov-19,456.77,Childrens Services ,E1410,Cleaning & Domestic Supplies,
CITY ELECTRICAL FACTORS LTD,1940226,01-Nov-19,44.40,Delivery Services (Assistant Chief Executive) ,V1920,"Equipment, Furniture & Materials",
CITY ELECTRICAL FACTORS LTD,1944750,25-Nov-19,100.68,Delivery Services (Assistant Chief Executive) ,V1920,"Equipment, Furniture & Materials",
CJ WILDBIRD FOODS LTD,1940858,07-Nov-19,434.44,Delivery Services (Assistant Chief Executive) ,L4972,"Equipment, Furniture & Materials",
CJG INTERIM LIMITED,1941894,13-Nov-19,"2,997.00",RE  Housing & Community Safety,C4212,Expenditure on Capital Grants,
CLAIRE'S CARE,1946152,28-Nov-19,180.78,Childrens Services ,E1170,Services,
CLAIRE'S CARE,1946152,28-Nov-19,90.39,Childrens Services ,E1170,Services,
CLARE HALLETT,1946154,28-Nov-19,278.79,Childrens Services ,E1170,Services,
CLARE HALLETT,1946154,28-Nov-19,223.25,Childrens Services ,E1170,Services,
CLARE PORTER-PHILLIPS,1944438,22-Nov-19,480.00,Business Management ,A1305,Legal Service Provider,
CLARE PORTER-PHILLIPS,1944438,22-Nov-19,610.00,Business Management ,A1305,Legal Service Provider,
CLARE PORTER-PHILLIPS,1944438,22-Nov-19,690.00,Business Management ,A1305,Legal Service Provider,
CLICK TRAVEL,1945716,27-Nov-19,"4,843.29",Adult Care & Health ,S6244,Services,
CLICK TRAVEL,1940575,05-Nov-19,"4,465.08",Business Management ,F4600,Services,
CLICK TRAVEL,1943107,15-Nov-19,"3,550.78",Business Management ,B7512,Services,
CLICK TRAVEL,1940575,05-Nov-19,"5,030.67",Childrens Services ,E7023,Services,
CLICK TRAVEL,1943107,15-Nov-19,"5,752.24",Delivery Services (Assistant Chief Executive) ,L4375,Services,
CLICK TRAVEL,1940575,05-Nov-19,-52.11,Childrens Services ,E1005,Travel - Online Booking Service,
CLOVER TECHNICAL SERVICES LIMITED,1947097,29-Nov-19,107.10,Children & Young People,C0916,Contractors - Main,
CLOVER TECHNICAL SERVICES LIMITED,1947097,29-Nov-19,122.40,Children & Young People,C0916,Contractors - Main,
CLOVER TECHNICAL SERVICES LIMITED,1940709,06-Nov-19,122.40,Childrens Services ,E5560,"Repairs, alterations and maintenance",
CLOVER TECHNICAL SERVICES LIMITED,1940709,06-Nov-19,204.00,Childrens Services ,E5560,"Repairs, alterations and maintenance",
CLOVER TECHNICAL SERVICES LIMITED,1940709,06-Nov-19,188.94,Childrens Services ,E5580,"Repairs, alterations and maintenance",
CLOVER TECHNICAL SERVICES LIMITED,1940709,06-Nov-19,122.40,Childrens Services ,E9600,"Repairs, alterations and maintenance",
CLOVER TECHNICAL SERVICES LIMITED,1947097,29-Nov-19,45.90,Childrens Services ,E9490,"Repairs, alterations and maintenance",
CLOVER TECHNICAL SERVICES LIMITED,1947097,29-Nov-19,20.40,Childrens Services ,E9600,"Repairs, alterations and maintenance",
CLOVER TECHNICAL SERVICES LIMITED,1947097,29-Nov-19,35.70,Childrens Services ,E9600,"Repairs, alterations and maintenance",
CLOVER TECHNICAL SERVICES LIMITED,1940709,06-Nov-19,61.20,Delivery Services (Assistant Chief Executive) ,D2510,"Repairs, alterations and maintenance",
CLOVER TECHNICAL SERVICES LIMITED,1940709,06-Nov-19,306.00,Delivery Services (Assistant Chief Executive) ,D2620,"Repairs, alterations and maintenance",
CLOVER TECHNICAL SERVICES LIMITED,1940709,06-Nov-19,306.00,Delivery Services (Assistant Chief Executive) ,D2620,"Repairs, alterations and maintenance",
CLOVER TECHNICAL SERVICES LIMITED,1940709,06-Nov-19,91.80,Delivery Services (Assistant Chief Executive) ,D2700,"Repairs, alterations and maintenance",
CLOVER TECHNICAL SERVICES LIMITED,1940709,06-Nov-19,158.10,Delivery Services (Assistant Chief Executive) ,D2700,"Repairs, alterations and maintenance",
CLOVER TECHNICAL SERVICES LIMITED,1940709,06-Nov-19,383.35,Delivery Services (Assistant Chief Executive) ,D3530,"Repairs, alterations and maintenance",
CLOVER TECHNICAL SERVICES LIMITED,1940709,06-Nov-19,244.12,Delivery Services (Assistant Chief Executive) ,D3532,"Repairs, alterations and maintenance",
CLOVER TECHNICAL SERVICES LIMITED,1940709,06-Nov-19,30.60,Delivery Services (Assistant Chief Executive) ,D3534,"Repairs, alterations and maintenance",
CLOVER TECHNICAL SERVICES LIMITED,1940709,06-Nov-19,749.70,Delivery Services (Assistant Chief Executive) ,D3535,"Repairs, alterations and maintenance",
CLOVER TECHNICAL SERVICES LIMITED,1940709,06-Nov-19,127.74,Delivery Services (Assistant Chief Executive) ,D3535,"Repairs, alterations and maintenance",
CLOVER TECHNICAL SERVICES LIMITED,1940709,06-Nov-19,188.94,Delivery Services (Assistant Chief Executive) ,D3535,"Repairs, alterations and maintenance",
CLOVER TECHNICAL SERVICES LIMITED,1940709,06-Nov-19,122.40,Delivery Services (Assistant Chief Executive) ,D3535,"Repairs, alterations and maintenance",
CLOVER TECHNICAL SERVICES LIMITED,1940709,06-Nov-19,188.94,Delivery Services (Assistant Chief Executive) ,D3535,"Repairs, alterations and maintenance",
CLOVER TECHNICAL SERVICES LIMITED,1940709,06-Nov-19,25.50,Delivery Services (Assistant Chief Executive) ,D3543,"Repairs, alterations and maintenance",
CLOVER TECHNICAL SERVICES LIMITED,1940709,06-Nov-19,45.90,Delivery Services (Assistant Chief Executive) ,D3543,"Repairs, alterations and maintenance",
CLOVER TECHNICAL SERVICES LIMITED,1940709,06-Nov-19,142.80,Delivery Services (Assistant Chief Executive) ,L3970,"Repairs, alterations and maintenance",
CLOVER TECHNICAL SERVICES LIMITED,1947097,29-Nov-19,382.50,Delivery Services (Assistant Chief Executive) ,D2510,"Repairs, alterations and maintenance",
CLOVER TECHNICAL SERVICES LIMITED,1947097,29-Nov-19,25.50,Delivery Services (Assistant Chief Executive) ,D2510,"Repairs, alterations and maintenance",
CLOVER TECHNICAL SERVICES LIMITED,1947097,29-Nov-19,30.60,Delivery Services (Assistant Chief Executive) ,D2540,"Repairs, alterations and maintenance",
CLOVER TECHNICAL SERVICES LIMITED,1947097,29-Nov-19,91.80,Delivery Services (Assistant Chief Executive) ,D2540,"Repairs, alterations and maintenance",
CLOVER TECHNICAL SERVICES LIMITED,1947097,29-Nov-19,137.70,Delivery Services (Assistant Chief Executive) ,D2680,"Repairs, alterations and maintenance",
CLOVER TECHNICAL SERVICES LIMITED,1947097,29-Nov-19,81.60,Delivery Services (Assistant Chief Executive) ,D2680,"Repairs, alterations and maintenance",
CLOVER TECHNICAL SERVICES LIMITED,1947097,29-Nov-19,127.50,Delivery Services (Assistant Chief Executive) ,D2680,"Repairs, alterations and maintenance",
CLOVER TECHNICAL SERVICES LIMITED,1947097,29-Nov-19,214.20,Delivery Services (Assistant Chief Executive) ,D3530,"Repairs, alterations and maintenance",
CLOVER TECHNICAL SERVICES LIMITED,1947097,29-Nov-19,362.40,Delivery Services (Assistant Chief Executive) ,D3532,"Repairs, alterations and maintenance",
CLOVER TECHNICAL SERVICES LIMITED,1947097,29-Nov-19,76.50,Delivery Services (Assistant Chief Executive) ,D3537,"Repairs, alterations and maintenance",
CLOVER TECHNICAL SERVICES LIMITED,1947097,29-Nov-19,"1,305.60",Delivery Services (Assistant Chief Executive) ,D4040,"Repairs, alterations and maintenance",
CLOVER TECHNICAL SERVICES LIMITED,1947097,29-Nov-19,136.18,Delivery Services (Assistant Chief Executive) ,D4040,"Repairs, alterations and maintenance",
CLOVER TECHNICAL SERVICES LIMITED,1947097,29-Nov-19,214.20,Delivery Services (Assistant Chief Executive) ,L3970,"Repairs, alterations and maintenance",
CLOVER TECHNICAL SERVICES LIMITED,1947097,29-Nov-19,20.40,Delivery Services (Assistant Chief Executive) ,L5330,"Repairs, alterations and maintenance",
CLYDE & CO LLP,240040,08-Nov-19,118.90,Balance Sheet,00000,Debtors - Inland Revenue,
COASTAL ENGINEERING UK LIMITED,1941393,11-Nov-19,"1,192.80",Delivery Services (Assistant Chief Executive) ,V1430,General Supplies and Services,
COLLISTER & GLOVER (PIPELINE MATERIALS) LIMITED,1943538,18-Nov-19,106.92,Delivery Services (Assistant Chief Executive) ,D3532,"Repairs, alterations and maintenance",
COLLISTER & GLOVER (PIPELINE MATERIALS) LIMITED,1947098,29-Nov-19,912.90,Delivery Services (Assistant Chief Executive) ,D3544,"Repairs, alterations and maintenance",
COLOURTONE LIMITED,1943812,19-Nov-19,370.14,Delivery Services (Assistant Chief Executive) ,T4020,"Equipment, Furniture & Materials",
COMBINED CATERING SERVICES LIMITED,1947099,29-Nov-19,"5,284.29",Children & Young People,C2928,Contractors - Main,
COMMS EXPRESS LTD,1945718,27-Nov-19,552.10,Business Management ,F4300,"Equipment, Furniture & Materials",
COMMUNITY CARING LTD          ,1944022,20-Nov-19,"1,388.40",Adult Care & Health ,S6999,Physical Support - Adults (18-64),
COMMUNITY CARING LTD          ,1940431,04-Nov-19,"176,581.14",Adult Care & Health ,S6111,Physical Support - Older People (65+),
COMMUNITY CARING LTD          ,1944262,21-Nov-19,312.00,Adult Care & Health ,S6131,Physical Support - Older People (65+),
COMMUNITY CARING LTD          ,1940710,06-Nov-19,"8,827.01",Adult Care & Health ,S6121,School Transport - Special,
COMMUNITY INTEGRATED CARE,1940711,06-Nov-19,"36,716.66",Adult Care & Health ,S6121,Learning & Disability Support - Adults (18-64),
COMMUNITY SUPPORTED LIVING LTD,1944023,20-Nov-19,795.60,Adult Care & Health ,S6161,Mental Health Support - Older People (65+),
COMMUNITY SUPPORTED LIVING LTD,1941395,11-Nov-19,"75,851.64",Adult Care & Health ,S6132,Social Support - Substance Misuse,
COMPASS FOSTERING NORTH LIMITED,1940229,01-Nov-19,"2,994.94",Childrens Services ,E7080,Care Provision,
COMPASS FOSTERING NORTH LIMITED,1940229,01-Nov-19,"2,994.94",Childrens Services ,E7080,Care Provision,
COMPASS FOSTERING NORTH LIMITED,1940229,01-Nov-19,"3,347.29",Childrens Services ,E7080,Care Provision,
COMPASS FOSTERING NORTH LIMITED,1940229,01-Nov-19,"2,574.81",Childrens Services ,E7080,Care Provision,
COMPASS FOSTERING NORTH LIMITED,1940229,01-Nov-19,"3,627.00",Childrens Services ,E7080,Care Provision,
COMPASS FOSTERING NORTH LIMITED,1940229,01-Nov-19,"3,627.00",Childrens Services ,E7080,Care Provision,
COMPASS FOSTERING NORTH LIMITED,1940229,01-Nov-19,"3,627.00",Childrens Services ,E7080,Care Provision,
COMPASS FOSTERING NORTH LIMITED,1940229,01-Nov-19,"3,542.68",Childrens Services ,E7080,Care Provision,
COMPLETE NETWORK SERVICES LIMITED,1944443,22-Nov-19,546.00,Business Management ,F4418,"Printing, Stationery & General Office Expenses",
COMPRESSED AIR MANAGEMENT 2008 LTD,1947100,29-Nov-19,466.98,Delivery Services (Assistant Chief Executive) ,L3320,"Repairs, alterations and maintenance",
COMPUTER CAB(LIVERPOOL)LIMITED,1940577,05-Nov-19,971.03,Delivery Services (Assistant Chief Executive) ,E5730,School Transport - College,
CONCEPT HYGIENE LIMITED,1943111,15-Nov-19,79.20,Delivery Services (Assistant Chief Executive) ,L4820,"Equipment, Furniture & Materials",
CONCEPT HYGIENE LIMITED,1947101,29-Nov-19,79.20,Delivery Services (Assistant Chief Executive) ,L4820,"Equipment, Furniture & Materials",
CONCERTO SUPPORT SERVICES LIMITED,1946162,28-Nov-19,450.00,Transformation and Resources,C0320,Contractors - Main,
CONCERTO SUPPORT SERVICES LIMITED,1946162,28-Nov-19,"5,400.00",Transformation and Resources,C0320,Contractors - Main,
CONIFERS CARE HOMES LIMITED,1945361,26-Nov-19,"3,600.00",Adult Care & Health ,S6131,Physical Support - Adults (18-64),
CONSENSUS SUPPORT SERVICES LIMITED,1945362,26-Nov-19,"-10,141.40",Adult Care & Health ,S6121,School Bus Passes - Primary,
CONSENSUS SUPPORT SERVICES LIMITED,1945362,26-Nov-19,"-4,346.31",Adult Care & Health ,S6121,School Bus Passes - Primary,
CONSENSUS SUPPORT SERVICES LIMITED,1945362,26-Nov-19,"-10,141.40",Adult Care & Health ,S6121,School Transport - Primary,
CONSENSUS SUPPORT SERVICES LIMITED,1945362,26-Nov-19,"10,293.52",Adult Care & Health ,S6121,School Transport - Primary,
CONSENSUS SUPPORT SERVICES LIMITED,1945362,26-Nov-19,"10,293.52",Adult Care & Health ,S6121,School Transport - Primary,
CONSENSUS SUPPORT SERVICES LIMITED,1945362,26-Nov-19,"-10,141.40",Adult Care & Health ,S6121,School Transport - Primary,
CONSENSUS SUPPORT SERVICES LIMITED,1945362,26-Nov-19,"-10,141.40",Adult Care & Health ,S6121,School Transport - Primary,
CONSENSUS SUPPORT SERVICES LIMITED,1945362,26-Nov-19,"10,293.52",Adult Care & Health ,S6121,School Transport - Primary,
CONSENSUS SUPPORT SERVICES LIMITED,1945362,26-Nov-19,"-10,141.40",Adult Care & Health ,S6121,School Transport - Primary,
CONSENSUS SUPPORT SERVICES LIMITED,1945362,26-Nov-19,"10,293.52",Adult Care & Health ,S6121,School Transport - Primary,
CONSENSUS SUPPORT SERVICES LIMITED,1945362,26-Nov-19,"10,293.52",Adult Care & Health ,S6121,School Transport - Secondary,
CONSENSUS SUPPORT SERVICES LIMITED,1945362,26-Nov-19,"10,293.52",Adult Care & Health ,S6121,School Transport - Secondary,
CONSENSUS SUPPORT SERVICES LIMITED,1945362,26-Nov-19,"-10,141.40",Adult Care & Health ,S6121,School Transport - Secondary,
CONSENSUS SUPPORT SERVICES LIMITED,1945362,26-Nov-19,"-10,141.40",Adult Care & Health ,S6121,School Transport - Secondary,
CONSENSUS SUPPORT SERVICES LIMITED,1945362,26-Nov-19,"10,293.52",Adult Care & Health ,S6121,School Transport - Secondary,
CONSENSUS SUPPORT SERVICES LIMITED,1945362,26-Nov-19,"4,411.51",Adult Care & Health ,S6121,School Transport - Secondary,
CONSENSUS SUPPORT SERVICES LIMITED,1945362,26-Nov-19,-724.39,Adult Care & Health ,S6121,School Transport - Special,
CONSENSUS SUPPORT SERVICES LIMITED,1945362,26-Nov-19,735.25,Adult Care & Health ,S6121,School Transport - Special,
CONSENSUS SUPPORT SERVICES LIMITED,1945362,26-Nov-19,"5,146.76",Adult Care & Health ,S6121,School Transport - Special,
CONSENSUS SUPPORT SERVICES LIMITED,1945362,26-Nov-19,"-5,070.70",Adult Care & Health ,S6121,School Transport - Special,
CONSENSUS SUPPORT SERVICES LIMITED,1945362,26-Nov-19,"10,293.52",Adult Care & Health ,S6121,School Transport - Special,
CONSENSUS SUPPORT SERVICES LIMITED,1945362,26-Nov-19,"-10,141.40",Adult Care & Health ,S6121,School Transport - Special,
CONSENSUS SUPPORT SERVICES LIMITED,1945362,26-Nov-19,"-10,141.40",Adult Care & Health ,S6121,School Transport - Special,
CONSENSUS SUPPORT SERVICES LIMITED,1945362,26-Nov-19,"10,293.52",Adult Care & Health ,S6121,School Transport - Special,
CONSENSUS SUPPORT SERVICES LIMITED,1945362,26-Nov-19,"10,293.52",Adult Care & Health ,S6121,School Transport - Special,
CONSENSUS SUPPORT SERVICES LIMITED,1945362,26-Nov-19,"-10,141.40",Adult Care & Health ,S6121,School Transport - Special,
CONSENSUS SUPPORT SERVICES LIMITED,1945362,26-Nov-19,"-10,141.40",Adult Care & Health ,S6121,School Transport - Special,
CONSENSUS SUPPORT SERVICES LIMITED,1945362,26-Nov-19,"4,584.32",Adult Care & Health ,S6121,School Transport - Special,
CONSENSUS SUPPORT SERVICES LIMITED,1945362,26-Nov-19,"-10,141.40",Adult Care & Health ,S6121,School Transport - Special,
CONSENSUS SUPPORT SERVICES LIMITED,1945362,26-Nov-19,"10,293.52",Adult Care & Health ,S6121,School Transport - Special,
CONSENSUS SUPPORT SERVICES LIMITED,1945362,26-Nov-19,"4,411.51",Adult Care & Health ,S6121,School Transport - Special,
CONSENSUS SUPPORT SERVICES LIMITED,1945362,26-Nov-19,82.73,Adult Care & Health ,S6121,School Transport - Special,
CONSIDERATE CARE LIMITED,1940230,01-Nov-19,"11,935.00",Childrens Services ,E7080,Care Provision,
CONSORTIA INTEGRATED SERVICES LIMITED,1940578,05-Nov-19,511.16,Adult Care & Health ,S6136,"Repairs, alterations and maintenance",
CONSORTIA INTEGRATED SERVICES LIMITED,1940578,05-Nov-19,97.60,Adult Care & Health ,S6136,"Repairs, alterations and maintenance",
CONSORTIA INTEGRATED SERVICES LIMITED,1940578,05-Nov-19,"1,671.00",Adult Care & Health ,S6136,"Repairs, alterations and maintenance",
CONSORTIA INTEGRATED SERVICES LIMITED,1940578,05-Nov-19,46.80,Childrens Services ,E1200,"Repairs, alterations and maintenance",
CONSORTIA INTEGRATED SERVICES LIMITED,1940578,05-Nov-19,175.80,Childrens Services ,E1720,"Repairs, alterations and maintenance",
CONSORTIA INTEGRATED SERVICES LIMITED,1940578,05-Nov-19,"2,071.50",Childrens Services ,E3050,"Repairs, alterations and maintenance",
CONSORTIA INTEGRATED SERVICES LIMITED,1940578,05-Nov-19,992.39,Childrens Services ,E3050,"Repairs, alterations and maintenance",
CONSORTIA INTEGRATED SERVICES LIMITED,1940578,05-Nov-19,681.53,Childrens Services ,E3050,"Repairs, alterations and maintenance",
CONSORTIA INTEGRATED SERVICES LIMITED,1940578,05-Nov-19,81.32,Childrens Services ,E3220,"Repairs, alterations and maintenance",
CONSORTIA INTEGRATED SERVICES LIMITED,1940578,05-Nov-19,81.32,Childrens Services ,E3220,"Repairs, alterations and maintenance",
CONSORTIA INTEGRATED SERVICES LIMITED,1940578,05-Nov-19,97.60,Childrens Services ,E3220,"Repairs, alterations and maintenance",
CONSORTIA INTEGRATED SERVICES LIMITED,1940578,05-Nov-19,97.60,Childrens Services ,E3220,"Repairs, alterations and maintenance",
CONSORTIA INTEGRATED SERVICES LIMITED,1940578,05-Nov-19,81.32,Childrens Services ,E8660,"Repairs, alterations and maintenance",
CONSORTIA INTEGRATED SERVICES LIMITED,1940578,05-Nov-19,58.56,Childrens Services ,E8760,"Repairs, alterations and maintenance",
CONSORTIA INTEGRATED SERVICES LIMITED,1940578,05-Nov-19,58.56,Childrens Services ,E8760,"Repairs, alterations and maintenance",
CONSORTIA INTEGRATED SERVICES LIMITED,1940712,06-Nov-19,92.39,Childrens Services ,E1410,"Repairs, alterations and maintenance",
CONSORTIA INTEGRATED SERVICES LIMITED,1941636,12-Nov-19,985.94,Childrens Services ,E1910,"Repairs, alterations and maintenance",
CONSORTIA INTEGRATED SERVICES LIMITED,1941636,12-Nov-19,437.40,Childrens Services ,E2120,"Repairs, alterations and maintenance",
CONSORTIA INTEGRATED SERVICES LIMITED,1941636,12-Nov-19,228.00,Childrens Services ,E2200,"Repairs, alterations and maintenance",
CONSORTIA INTEGRATED SERVICES LIMITED,1941636,12-Nov-19,336.00,Childrens Services ,E2200,"Repairs, alterations and maintenance",
CONSORTIA INTEGRATED SERVICES LIMITED,1941636,12-Nov-19,390.38,Childrens Services ,E2290,"Repairs, alterations and maintenance",
CONSORTIA INTEGRATED SERVICES LIMITED,1941636,12-Nov-19,421.44,Childrens Services ,E2290,"Repairs, alterations and maintenance",
CONSORTIA INTEGRATED SERVICES LIMITED,1941636,12-Nov-19,195.19,Childrens Services ,E2450,"Repairs, alterations and maintenance",
CONSORTIA INTEGRATED SERVICES LIMITED,1941636,12-Nov-19,45.59,Childrens Services ,E2450,"Repairs, alterations and maintenance",
CONSORTIA INTEGRATED SERVICES LIMITED,1941636,12-Nov-19,65.06,Childrens Services ,E2910,"Repairs, alterations and maintenance",
CONSORTIA INTEGRATED SERVICES LIMITED,1941636,12-Nov-19,234.20,Childrens Services ,E2910,"Repairs, alterations and maintenance",
CONSORTIA INTEGRATED SERVICES LIMITED,1941636,12-Nov-19,92.39,Childrens Services ,E3040,"Repairs, alterations and maintenance",
CONSORTIA INTEGRATED SERVICES LIMITED,1941636,12-Nov-19,243.83,Childrens Services ,E3140,"Repairs, alterations and maintenance",
CONSORTIA INTEGRATED SERVICES LIMITED,1941636,12-Nov-19,76.79,Childrens Services ,E5500,"Repairs, alterations and maintenance",
CONSORTIA INTEGRATED SERVICES LIMITED,1944025,20-Nov-19,92.39,Childrens Services ,E1410,"Repairs, alterations and maintenance",
CONSORTIA INTEGRATED SERVICES LIMITED,1944025,20-Nov-19,81.32,Childrens Services ,E3090,"Repairs, alterations and maintenance",
CONSORTIA INTEGRATED SERVICES LIMITED,1944025,20-Nov-19,65.06,Childrens Services ,E3090,"Repairs, alterations and maintenance",
CONSORTIA INTEGRATED SERVICES LIMITED,1945720,27-Nov-19,81.32,Childrens Services ,E1850,"Repairs, alterations and maintenance",
CONSORTIA INTEGRATED SERVICES LIMITED,1945720,27-Nov-19,92.39,Childrens Services ,E8660,"Repairs, alterations and maintenance",
CONSORTIA INTEGRATED SERVICES LIMITED,1940578,05-Nov-19,"1,116.30",Delivery Services (Assistant Chief Executive) ,D2510,"Repairs, alterations and maintenance",
CONSORTIA INTEGRATED SERVICES LIMITED,1940578,05-Nov-19,87.84,Delivery Services (Assistant Chief Executive) ,D2540,"Repairs, alterations and maintenance",
CONSORTIA INTEGRATED SERVICES LIMITED,1940578,05-Nov-19,87.84,Delivery Services (Assistant Chief Executive) ,D2540,"Repairs, alterations and maintenance",
CONSORTIA INTEGRATED SERVICES LIMITED,1940578,05-Nov-19,45.59,Delivery Services (Assistant Chief Executive) ,D2700,"Repairs, alterations and maintenance",
CONSORTIA INTEGRATED SERVICES LIMITED,1940578,05-Nov-19,43.91,Delivery Services (Assistant Chief Executive) ,D3505,"Repairs, alterations and maintenance",
CONSORTIA INTEGRATED SERVICES LIMITED,1940578,05-Nov-19,43.91,Delivery Services (Assistant Chief Executive) ,D3505,"Repairs, alterations and maintenance",
CONSORTIA INTEGRATED SERVICES LIMITED,1940578,05-Nov-19,87.84,Delivery Services (Assistant Chief Executive) ,D3530,"Repairs, alterations and maintenance",
CONSORTIA INTEGRATED SERVICES LIMITED,1940578,05-Nov-19,961.50,Delivery Services (Assistant Chief Executive) ,D3535,"Repairs, alterations and maintenance",
CONSORTIA INTEGRATED SERVICES LIMITED,1940578,05-Nov-19,"1,848.72",Delivery Services (Assistant Chief Executive) ,L3910,"Repairs, alterations and maintenance",
CONSORTIA INTEGRATED SERVICES LIMITED,1940578,05-Nov-19,179.88,Delivery Services (Assistant Chief Executive) ,L4972,"Repairs, alterations and maintenance",
CONSORTIA INTEGRATED SERVICES LIMITED,1940578,05-Nov-19,73.19,Delivery Services (Assistant Chief Executive) ,L4972,"Repairs, alterations and maintenance",
CONSORTIA INTEGRATED SERVICES LIMITED,1940578,05-Nov-19,48.79,Delivery Services (Assistant Chief Executive) ,L4972,"Repairs, alterations and maintenance",
CONSORTIA INTEGRATED SERVICES LIMITED,1940578,05-Nov-19,73.19,Delivery Services (Assistant Chief Executive) ,L4974,"Repairs, alterations and maintenance",
CONSORTIA INTEGRATED SERVICES LIMITED,1940712,06-Nov-19,706.38,Delivery Services (Assistant Chief Executive) ,D3540,"Repairs, alterations and maintenance",
CONSORTIA INTEGRATED SERVICES LIMITED,1940864,07-Nov-19,87.84,Delivery Services (Assistant Chief Executive) ,D3530,"Repairs, alterations and maintenance",
CONSORTIA INTEGRATED SERVICES LIMITED,1941092,08-Nov-19,65.06,Delivery Services (Assistant Chief Executive) ,D3542,"Repairs, alterations and maintenance",
CONSORTIA INTEGRATED SERVICES LIMITED,1941092,08-Nov-19,65.06,Delivery Services (Assistant Chief Executive) ,D3542,"Repairs, alterations and maintenance",
CONSORTIA INTEGRATED SERVICES LIMITED,1941092,08-Nov-19,81.32,Delivery Services (Assistant Chief Executive) ,L3910,"Repairs, alterations and maintenance",
CONSORTIA INTEGRATED SERVICES LIMITED,1941092,08-Nov-19,65.06,Delivery Services (Assistant Chief Executive) ,L3910,"Repairs, alterations and maintenance",
CONSORTIA INTEGRATED SERVICES LIMITED,1941092,08-Nov-19,81.32,Delivery Services (Assistant Chief Executive) ,L3910,"Repairs, alterations and maintenance",
CONSORTIA INTEGRATED SERVICES LIMITED,1941396,11-Nov-19,81.32,Delivery Services (Assistant Chief Executive) ,L3910,"Repairs, alterations and maintenance",
CONSORTIA INTEGRATED SERVICES LIMITED,1941396,11-Nov-19,81.32,Delivery Services (Assistant Chief Executive) ,L3910,"Repairs, alterations and maintenance",
CONSORTIA INTEGRATED SERVICES LIMITED,1941396,11-Nov-19,81.32,Delivery Services (Assistant Chief Executive) ,L3910,"Repairs, alterations and maintenance",
CONSORTIA INTEGRATED SERVICES LIMITED,1941636,12-Nov-19,406.20,Delivery Services (Assistant Chief Executive) ,D2403,"Repairs, alterations and maintenance",
CONSORTIA INTEGRATED SERVICES LIMITED,1941636,12-Nov-19,405.60,Delivery Services (Assistant Chief Executive) ,D2403,"Repairs, alterations and maintenance",
CONSORTIA INTEGRATED SERVICES LIMITED,1941636,12-Nov-19,92.39,Delivery Services (Assistant Chief Executive) ,D2510,"Repairs, alterations and maintenance",
CONSORTIA INTEGRATED SERVICES LIMITED,1941636,12-Nov-19,92.39,Delivery Services (Assistant Chief Executive) ,D3513,"Repairs, alterations and maintenance",
CONSORTIA INTEGRATED SERVICES LIMITED,1941636,12-Nov-19,45.59,Delivery Services (Assistant Chief Executive) ,D4040,"Repairs, alterations and maintenance",
CONSORTIA INTEGRATED SERVICES LIMITED,1941636,12-Nov-19,76.79,Delivery Services (Assistant Chief Executive) ,L4973,"Repairs, alterations and maintenance",
CONSORTIA INTEGRATED SERVICES LIMITED,1944025,20-Nov-19,92.39,Delivery Services (Assistant Chief Executive) ,D2700,"Repairs, alterations and maintenance",
CONSORTIA INTEGRATED SERVICES LIMITED,1944767,25-Nov-19,92.39,Delivery Services (Assistant Chief Executive) ,D2130,"Repairs, alterations and maintenance",
CONSORTIA INTEGRATED SERVICES LIMITED,1944767,25-Nov-19,92.39,Delivery Services (Assistant Chief Executive) ,D2130,"Repairs, alterations and maintenance",
CONSORTIA INTEGRATED SERVICES LIMITED,1944767,25-Nov-19,92.39,Delivery Services (Assistant Chief Executive) ,D2403,"Repairs, alterations and maintenance",
CONSORTIA INTEGRATED SERVICES LIMITED,1944767,25-Nov-19,92.39,Delivery Services (Assistant Chief Executive) ,D2680,"Repairs, alterations and maintenance",
CONSORTIA INTEGRATED SERVICES LIMITED,1945720,27-Nov-19,372.34,Delivery Services (Assistant Chief Executive) ,D4040,"Repairs, alterations and maintenance",
CONSORTIA INTEGRATED SERVICES LIMITED,1945720,27-Nov-19,650.12,Delivery Services (Assistant Chief Executive) ,L4972,"Repairs, alterations and maintenance",
CONTESSA HOTELS AND SPAS LIMITED,1943541,18-Nov-19,"1,149.40",Childrens Services ,E9965,Grants & Subscriptions,
CONTESSA HOTELS AND SPAS LIMITED,1943541,18-Nov-19,"1,078.00",Childrens Services ,E9965,Grants & Subscriptions,
CONTESSA HOTELS AND SPAS LIMITED,1943541,18-Nov-19,"1,035.30",Childrens Services ,E9965,Grants & Subscriptions,
CONTINENTAL LANDSCAPES LIMITED,1942274,14-Nov-19,"1,002.88",Economic & Housing Growth ,H7100,"Repairs, alterations and maintenance",
CONTINENTAL LANDSCAPES LIMITED,1943815,19-Nov-19,"4,372.63",Economic & Housing Growth ,H7140,"Repairs, alterations and maintenance",
CONTINENTAL LANDSCAPES LIMITED,1944446,22-Nov-19,"1,002.88",Economic & Housing Growth ,H7140,"Repairs, alterations and maintenance",
CONTINENTAL LANDSCAPES LIMITED,1944768,25-Nov-19,"1,002.88",Economic & Housing Growth ,H7100,"Repairs, alterations and maintenance",
CONTINENTAL LANDSCAPES LIMITED,1947104,29-Nov-19,"1,002.88",Economic & Housing Growth ,H7100,"Repairs, alterations and maintenance",
CONTINENTAL LANDSCAPES LIMITED,1943542,18-Nov-19,216.00,Business Management ,H3070,Waste Service Provider,
CONTINENTAL LANDSCAPES LIMITED,1941898,13-Nov-19,"6,402.50",Delivery Services (Assistant Chief Executive) ,H2930,Waste Service Provider,
CONTINENTAL LANDSCAPES LIMITED,1941898,13-Nov-19,"1,962.05",Delivery Services (Assistant Chief Executive) ,H2930,Waste Service Provider,
CONTOUR HOUSING ASSOCIATION,1943816,19-Nov-19,174.00,Economic & Housing Growth ,H7180,Grants Paid,
CONWY COUNTY BOROUGH COUNCIL,1944769,25-Nov-19,267.12,Delivery Services (Assistant Chief Executive) ,E5730,Care Provision,
CO-OP ACADEMY BEBINGTON,1943811,19-Nov-19,882.58,Childrens Services ,E2030,Consultants,
CO-OP ACADEMY WOODSLEE,1941634,12-Nov-19,460.80,Childrens Services ,E9902,Educational Provider,
COPPER BEECH RESIDENTIAL HOME,1945363,26-Nov-19,-569.40,Adult Care & Health ,S6142,Customer and Client - Community Care,
COPPER BEECH RESIDENTIAL HOME,1945363,26-Nov-19,-414.20,Adult Care & Health ,S6142,Customer and Client - Community Care,
COPPER BEECH RESIDENTIAL HOME,1945363,26-Nov-19,"1,884.00",Adult Care & Health ,S6142,Learning & Disability Support - Older People (65+),
COPPER BEECH RESIDENTIAL HOME,1945363,26-Nov-19,"1,884.00",Adult Care & Health ,S6142,Mental Health Support - Adults (18-64),
COPPER BEECH RESIDENTIAL HOME,1945363,26-Nov-19,"1,884.00",Adult Care & Health ,S6142,Mental Health Support - Adults (18-64),
COPPER BEECH RESIDENTIAL HOME,1945363,26-Nov-19,"1,884.00",Adult Care & Health ,S6142,Mental Health Support - Adults (18-64),
COPPER BEECH RESIDENTIAL HOME,1945363,26-Nov-19,"1,884.00",Adult Care & Health ,S6142,Mental Health Support - Adults (18-64),
COPPER BEECH RESIDENTIAL HOME,1945363,26-Nov-19,"1,884.00",Adult Care & Health ,S6142,Mental Health Support - Adults (18-64),
COPPER BEECH RESIDENTIAL HOME,1945363,26-Nov-19,"1,884.00",Adult Care & Health ,S6142,Mental Health Support - Adults (18-64),
COPPER BEECH RESIDENTIAL HOME,1945363,26-Nov-19,"1,884.00",Adult Care & Health ,S6161,Mental Health Support - Adults (18-64),
COPPER BEECH RESIDENTIAL HOME,1945363,26-Nov-19,"1,884.00",Adult Care & Health ,S6161,Mental Health Support - Adults (18-64),
COPPER BEECH RESIDENTIAL HOME,1945363,26-Nov-19,"1,884.00",Adult Care & Health ,S6162,Mental Health Support - Adults (18-64),
COPPER BEECH RESIDENTIAL HOME,1945363,26-Nov-19,"1,884.00",Adult Care & Health ,S6162,Mental Health Support - Adults (18-64),
COPPER BEECH RESIDENTIAL HOME,1945363,26-Nov-19,"1,884.00",Adult Care & Health ,S6165,Mental Health Support - Adults (18-64),
COPPER BEECH RESIDENTIAL HOME,1945363,26-Nov-19,"1,884.00",Adult Care & Health ,S6165,Mental Health Support - Adults (18-64),
COPPER BEECH RESIDENTIAL HOME,1945363,26-Nov-19,"1,884.00",Adult Care & Health ,S6165,Mental Health Support - Adults (18-64),
COPPER BEECH RESIDENTIAL HOME,1945363,26-Nov-19,"1,884.00",Adult Care & Health ,S6142,Mental Health Support - Older People (65+),
COPPER BEECH RESIDENTIAL HOME,1945363,26-Nov-19,"1,884.00",Adult Care & Health ,S6142,Mental Health Support - Older People (65+),
